Workbook

Sheet Spells
A1: Max base spell level available | B1: 9 | C1: 7 | D1: 7 | E1: 7 | F1: 8 | G1: 6 | H1: 5 | X1: Grakis | AE1: =COUNTIF(AE5:AE240,"B") -> 21 | AF1: =COUNTIF(AF5:AF240,"B") -> 0 | AG1: =COUNTIF(AG5:AG240,"B") -> 0 | AH1: =COUNTIF(AH5:AH240,"B") -> 0 | AI1: =COUNTIF(AI5:AI240,"B") -> 8 | AL1: =COUNTIF(AL5:AL240,"B") -> 0 | AN1: Adventurer | AO1: Tower
B2: Alteration | C2: Emotion | D2: E-mag | E2: Elemental | F2: C/A | G2: Force | H2: Divination | I2: level | J2: Ki | K2: Bahrie | L2: Correllion | M2: Eo | N2: Grim Reaper | O2: Hast | P2: Innana | Q2: Loki | R2: Moradin | S2: Set | T2: Thor | U2: Poseidon | V2: =X1 & "'s "& Z1 -> Grakis's | W2: Book | AA2: Damage | AB2: Save | AC2: Type | AD2: Save | AE2: Grakis | AF2: Jurak | AG2: Blondin | AH2: Errol | AI2: Leaphorn | AJ2: Possible | AK2: Location | AL2: Ella | AM2: Book | AN2: Maria | AO2: Casper
A3: Spell Name | B3: =VLOOKUP($X$1,Mage,4,FALSE) -> 4 | C3: =VLOOKUP($X$1,Mage,5,FALSE) -> 0 | D3: =VLOOKUP($X$1,Mage,6,FALSE) -> 2 | E3: =VLOOKUP($X$1,Mage,7,FALSE) -> 0 | F3: =VLOOKUP($X$1,Mage,8,FALSE) -> 2 | G3: =VLOOKUP($X$1,Mage,9,FALSE) -> 4 | H3: =VLOOKUP($X$1,Mage,10,FALSE) -> 0 | V3: Description | W3: Range | X3: Duration | Y3: Area | Z3: Save Vs | AB3: =VLOOKUP(X1,Mage,2,FALSE)+ VLOOKUP(X1,Mage,3,FALSE) -> 8 | AD3: ongoing | AE3: =COUNTIF(AE5:AE240,"X") -> 23 | AF3: =COUNTIF(AF5:AF240,"X") -> 25 | AG3: =COUNTIF(AG5:AG240,"X") -> 24 | AH3: =COUNTIF(AH5:AH240,"X") -> 10 | AI3: =COUNTIF(AI5:AI240,"X") -> 39 | AJ3: No. Spells | AL3: =COUNTIF(AL5:AL240,"X") -> 26
A5: Acid Spray | B5: 2 | I5: =MIN(B5:H5,J5:U5) -> 2 | R5: 2 | S5: 2 | T5: 2 | U5: 2 | V5: Level 2: Bubble, (4d8) Hurl a bubble of acid. Spell attack. Miss = 1/2 splash damage as it explodes in front of them If hit then ENDURE save or be partially blinded for 1r (disadvantage) Level 3: Melf's Acid Arrow, 4 arrows of (3d6) spell attack. Minor action in following rounds, 1 + minor in the round cast. Level 4: Spray (3d6) Cone 20' x 90°. (DODGE save) Level 5: Rain, (3d6) 80' diameter, STDx10 range (No save) Level 7: Storm, (4d8) 1/2 mile diameter, 1 mile range (No save) DIFFICULT TERRAIN, Strong winds buffet large flying creatures forcing them to land. 3 random lightning strikes doing the same damage. | W5: Std | X5: Instantaneous | Y5: 1 creature | AA5: Vary | AB5: =IF(Z5="","",IF(AA5<>"",6+AB$3,IF(OR(Z5="STR",Z5="INT"),INT(AB$3/3) &"+d3",IF(Z5="Special","???",(4+AB$3)&"+d4")))) ->  | AD5: Ongoing | AE5: X | AI5: X | AJ5: =IF(OR(AND(B5<>"",B5<=$B$3),AND(C5<>"",C5<=$C$3),AND(D5<>"",D5<=$D$3),AND(E5<>"",E5<=$E$3),AND(F5<>"",F5<+$F$3),AND(G5<>"",G5<=$G$3),AND(H5<>"",H5<=$H$3)),"Y","N") -> Y | AK5: Homebrew
A6: Air Mirror | D6: 1 | I6: =MIN(B6:H6,J6:U6) -> 1 | Q6: 1 | V6: Form a 1 way mirror in the air to look around corners and to reflect gaze attacks | W6: Std | X6: 1 minute | Y6: 1' diameter | AB6: =IF(Z6="","",IF(AA6<>"",6+AB$3,IF(OR(Z6="STR",Z6="INT"),INT(AB$3/3) &"+d3",IF(Z6="Special","???",(4+AB$3)&"+d4")))) ->  | AC6: Utility | AE6: B | AJ6: =IF(OR(AND(B6<>"",B6<=$B$3),AND(C6<>"",C6<=$C$3),AND(D6<>"",D6<=$D$3),AND(E6<>"",E6<=$E$3),AND(F6<>"",F6<+$F$3),AND(G6<>"",G6<=$G$3),AND(H6<>"",H6<=$H$3)),"Y","N") -> Y | AK6: Homebrew
A7: Airboat | E7: 5 | I7: =MIN(B7:H7,J7:U7) -> 5 | J7: 5 | K7: 5 | L7: 5 | M7: 5 | T7: 5 | U7: 5 | V7: Cast under a cloudy sky. A cloud descends and takes any form. May be used as transport for 1 person/PP. Can travel at 90mph. Cannot pass through arid areas. | W7: 0 | X7: 18 hours | Y7: 1 cloud | AB7: =IF(Z7="","",IF(AA7<>"",6+AB$3,IF(OR(Z7="STR",Z7="INT"),INT(AB$3/3) &"+d3",IF(Z7="Special","???",(4+AB$3)&"+d4")))) ->  | AC7: Utility | AJ7: =IF(OR(AND(B7<>"",B7<=$B$3),AND(C7<>"",C7<=$C$3),AND(D7<>"",D7<=$D$3),AND(E7<>"",E7<=$E$3),AND(F7<>"",F7<+$F$3),AND(G7<>"",G7<=$G$3),AND(H7<>"",H7<=$H$3)),"Y","N") -> N
A8: Alarm | H8: 1 | I8: =MIN(B8:H8,J8:U8) -> 1 | V8: Tripwire alarm covering complete sphere (creatures >1' tall) Awakens everyone within the area instantly | W8: 0 | X8: 1 rest period | Y8: 35' diameter | AB8: =IF(Z8="","",IF(AA8<>"",6+AB$3,IF(OR(Z8="STR",Z8="INT"),INT(AB$3/3) &"+d3",IF(Z8="Special","???",(4+AB$3)&"+d4")))) ->  | AC8: Utility | AJ8: =IF(OR(AND(B8<>"",B8<=$B$3),AND(C8<>"",C8<=$C$3),AND(D8<>"",D8<=$D$3),AND(E8<>"",E8<=$E$3),AND(F8<>"",F8<+$F$3),AND(G8<>"",G8<=$G$3),AND(H8<>"",H8<=$H$3)),"Y","N") -> N | AK8: Unearthed | AO8: X
A9: Alter density | B9: 1 | I9: =MIN(B9:H9,J9:U9) -> 1 | Q9: 1 | R9: 1 | U9: 1 | V9: Halves the density of target. A person could walk on water An object is all the connected parts. The whole must fit within the area. Does not affect strength or other aspects. +1 level = x2 density change +2 levels = range std/2 | W9: Touch | X9: 5 hours | Y9: 1 large creature or <4' cube | Z9: Endure | AB9: =IF(Z9="","",IF(AA9<>"",6+AB$3,IF(OR(Z9="STR",Z9="INT"),INT(AB$3/3) &"+d3",IF(Z9="Special","???",(4+AB$3)&"+d4")))) -> 12+d4 | AC9: Utility | AE9: B | AJ9: =IF(OR(AND(B9<>"",B9<=$B$3),AND(C9<>"",C9<=$C$3),AND(D9<>"",D9<=$D$3),AND(E9<>"",E9<=$E$3),AND(F9<>"",F9<+$F$3),AND(G9<>"",G9<=$G$3),AND(H9<>"",H9<=$H$3)),"Y","N") -> Y | AK9: Tome of Magic | AO9: X
A10: Alter Self | B10: 2 | I10: =MIN(B10:H10,J10:U10) -> 2 | V10: Select between: Aquatic:- gain gills and webbed limbs (Swim 15') Appearance:- same size change race, features, weight, hair... Natural weapons:- Fangs, claws 1d6 brawling, use spell attack Level 3: Flight:- Wings (Fly 50') +2 levels = 2d4 people within 18' diameter | W10: Self | X10: 4d8 rounds | Y10: Self | AB10: =IF(Z10="","",IF(AA10<>"",6+AB$3,IF(OR(Z10="STR",Z10="INT"),INT(AB$3/3) &"+d3",IF(Z10="Special","???",(4+AB$3)&"+d4")))) ->  | AC10: Utility | AJ10: =IF(OR(AND(B10<>"",B10<=$B$3),AND(C10<>"",C10<=$C$3),AND(D10<>"",D10<=$D$3),AND(E10<>"",E10<=$E$3),AND(F10<>"",F10<+$F$3),AND(G10<>"",G10<=$G$3),AND(H10<>"",H10<=$H$3)),"Y","N") -> Y | AK10: Unearthed
A11: Animate Dead | F11: 1 | I11: =MIN(B11:H11,J11:U11) -> 1 | V11: Animate medium creatures Level 1 :Skeletons Level 2: Zombies Level 3: Ghouls Level 4: Ghasts +1 or more levels special abilities +1 level +2 sizes | W11: Std | X11: Permanent | Y11: Faith x2 levels | AB11: =IF(Z11="","",IF(AA11<>"",6+AB$3,IF(OR(Z11="STR",Z11="INT"),INT(AB$3/3) &"+d3",IF(Z11="Special","???",(4+AB$3)&"+d4")))) ->  | AC11: Utility | AJ11: =IF(OR(AND(B11<>"",B11<=$B$3),AND(C11<>"",C11<=$C$3),AND(D11<>"",D11<=$D$3),AND(E11<>"",E11<=$E$3),AND(F11<>"",F11<+$F$3),AND(G11<>"",G11<=$G$3),AND(H11<>"",H11<=$H$3)),"Y","N") -> Y
A12: Animate Object | G12: 3 | I12: =MIN(B12:H12,J12:U12) -> 3 | J12: 3 | K12: 3 | R12: 3 | V12: Animate non-magical objects. mentally command within 500'. Blindsight up to 30', cannot see beyond that. Size = Level x Level x 3 cubic feet' AC = Level + 5 HP = Level x 5 Atk = +Level Dmg = Level + d8 Minor action to control Ki = Only plants (includes wooden objects, living trees...) Moradin = Only Metal & stone | W12: Touch | X12: 2d4 rounds | Y12: 500' diameter | AB12: =IF(Z12="","",IF(AA12<>"",6+AB$3,IF(OR(Z12="STR",Z12="INT"),INT(AB$3/3) &"+d3",IF(Z12="Special","???",(4+AB$3)&"+d4")))) ->  | AJ12: =IF(OR(AND(B12<>"",B12<=$B$3),AND(C12<>"",C12<=$C$3),AND(D12<>"",D12<=$D$3),AND(E12<>"",E12<=$E$3),AND(F12<>"",F12<+$F$3),AND(G12<>"",G12<=$G$3),AND(H12<>"",H12<=$H$3)),"Y","N") -> Y | AK12: PHB
A13: Armour | B13: 1 | G13: 1 | I13: =MIN(B13:H13,J13:U13) -> 1 | J13: 1 | K13: 1 | M13: 1 | P13: 1 | R13: 1 | V13: Target's skin changes giving better effective armour. Not cumulative with actual armour. Level 1: Leather : x1.2 (+20%) Level 2: Padded : x1 Level 3: Mail = x 3/4 Level 4: Coat of Plates = x 2/3 Level 5: Plate = x 1/2 Level 6: Dragon = 1/3 (Needs a dragon scale, not consumed) | W13: Self | X13: 2d4 hours | Y13: Self | AB13: =IF(Z13="","",IF(AA13<>"",6+AB$3,IF(OR(Z13="STR",Z13="INT"),INT(AB$3/3) &"+d3",IF(Z13="Special","???",(4+AB$3)&"+d4")))) ->  | AC13: Utility | AE13: X | AI13: X | AJ13: =IF(OR(AND(B13<>"",B13<=$B$3),AND(C13<>"",C13<=$C$3),AND(D13<>"",D13<=$D$3),AND(E13<>"",E13<=$E$3),AND(F13<>"",F13<+$F$3),AND(G13<>"",G13<=$G$3),AND(H13<>"",H13<=$H$3)),"Y","N") -> Y | AK13: Homebrew | AO13: X
A14: Armour fit | B14: 2 | V14: Makes generic armour fit the user comfortably Level 2: Leather Level 3: Padded Level 4: Mail Level 5: Brigandine Level 6: Plate
A15: Aura of Righteousness | I15: =MIN(B15:H15,J15:U15) -> 5 | J15: 5 | K15: 5 | L15: 5 | M15: 5 | N15: 5 | O15: 5 | P15: 5 | R15: 5 | S15: 5 | T15: 5 | U15: 5 | V15: Aura of radiant light that prevents touch attacks by the undead (+2 defence). Undead attempting to touch you (melee touch attack) are turned @ +2, if they save they take the damage but hit you. | W15: Self | X15: 10 minutes | Y15: Self | Z15: Endure | AA15: 5d10 | AB15: =IF(Z15="","",IF(AA15<>"",6+AB$3,IF(OR(Z15="STR",Z15="INT"),INT(AB$3/3) &"+d3",IF(Z15="Special","???",(4+AB$3)&"+d4")))) -> 14 | AF15: X | AG15: X | AJ15: =IF(OR(AND(B15<>"",B15<=$B$3),AND(C15<>"",C15<=$C$3),AND(D15<>"",D15<=$D$3),AND(E15<>"",E15<=$E$3),AND(F15<>"",F15<+$F$3),AND(G15<>"",G15<=$G$3),AND(H15<>"",H15<=$H$3)),"Y","N") -> N | AK15: PHB 2
A16: Aura of the Crusaders | I16: =MIN(B16:H16,J16:U16) -> 4 | J16: 4 | K16: 4 | M16: 4 | O16: 4 | P16: 4 | R16: 4 | S16: 4 | T16: 4 | U16: 4 | V16: Holy power radiates from you, each ally deals additional radiant damage (melee/ranged/ damaging spell) per round | W16: 0 | X16: CONCENTRATE up to 2d4 rounds | Y16: 35' diameter | AA16: 1d4 | AB16: =IF(Z16="","",IF(AA16<>"",6+AB$3,IF(OR(Z16="STR",Z16="INT"),INT(AB$3/3) &"+d3",IF(Z16="Special","???",(4+AB$3)&"+d4")))) ->  | AJ16: =IF(OR(AND(B16<>"",B16<=$B$3),AND(C16<>"",C16<=$C$3),AND(D16<>"",D16<=$D$3),AND(E16<>"",E16<=$E$3),AND(F16<>"",F16<+$F$3),AND(G16<>"",G16<=$G$3),AND(H16<>"",H16<=$H$3)),"Y","N") -> N | AK16: Homebrew
A17: Awaken | C17: 2 | I17: =MIN(B17:H17,J17:U17) -> 2 | J17: 2 | K17: 2 | L17: 2 | N17: 2 | P17: 2 | V17: Instantly awakens everyone within range. (Shouting = Dazed then Frozen) | W17: 0 | X17: Instantaneous | Y17: 35' diameter | AB17: =IF(Z17="","",IF(AA17<>"",6+AB$3,IF(OR(Z17="STR",Z17="INT"),INT(AB$3/3) &"+d3",IF(Z17="Special","???",(4+AB$3)&"+d4")))) ->  | AC17: Battle | AG17: X | AJ17: =IF(OR(AND(B17<>"",B17<=$B$3),AND(C17<>"",C17<=$C$3),AND(D17<>"",D17<=$D$3),AND(E17<>"",E17<=$E$3),AND(F17<>"",F17<+$F$3),AND(G17<>"",G17<=$G$3),AND(H17<>"",H17<=$H$3)),"Y","N") -> N | AK17: Homebrew
A18: Battlespeed | I18: =MIN(B18:H18,J18:U18) -> 1 | M18: 1 | P18: 1 | V18: Creature can move within the battlefield at +5' base speed, Halved if encumbered. +1 level = +5' | W18: Touch | X18: 4 minutes | Y18: 1 creature | AB18: =IF(Z18="","",IF(AA18<>"",6+AB$3,IF(OR(Z18="STR",Z18="INT"),INT(AB$3/3) &"+d3",IF(Z18="Special","???",(4+AB$3)&"+d4")))) ->  | AC18: Battle | AH18: X | AJ18: =IF(OR(AND(B18<>"",B18<=$B$3),AND(C18<>"",C18<=$C$3),AND(D18<>"",D18<=$D$3),AND(E18<>"",E18<=$E$3),AND(F18<>"",F18<+$F$3),AND(G18<>"",G18<=$G$3),AND(H18<>"",H18<=$H$3)),"Y","N") -> N | AK18: Homebrew
A19: Bigby's Hand | G19: 5 | I19: =MIN(B19:H19,J19:U19) -> 5 | V19: Defence = 16, SP=10x PP Interposing Hand: Stays between you and target (STR 10 +1/level) Forceful Hand: Push 5' x STR level success (Opposed STR = 8 +1/level) Adv if ≤ medium Grasping Hand: Grapple & crush. Melee spell attack with adv vs dodge Clenched Fist: Strike one creature, Melee spell attack with adv. vs dodge Minor action to re-command. | W19: Std | X19: 2d4 rounds | Y19: 1 Hand | AA19: 5d10 | AB19: =IF(Z19="","",IF(AA19<>"",6+AB$3,IF(OR(Z19="STR",Z19="INT"),INT(AB$3/3) &"+d3",IF(Z19="Special","???",(4+AB$3)&"+d4")))) ->  | AJ19: =IF(OR(AND(B19<>"",B19<=$B$3),AND(C19<>"",C19<=$C$3),AND(D19<>"",D19<=$D$3),AND(E19<>"",E19<=$E$3),AND(F19<>"",F19<+$F$3),AND(G19<>"",G19<=$G$3),AND(H19<>"",H19<=$H$3)),"Y","N") -> N | AK19: PHB
A20: Blade Barrier | F20: 6 | I20: =MIN(B20:H20,J20:U20) -> 6 | L20: 6 | M20: 6 | P20: 6 | T20: 6 | V20: Whirling blades straight wall 100'x20'x5' thick or ring 35' diameter | W20: Std | X20: 15 rounds | Y20: Wall 100' | Z20: Dodge | AA20: 6d12 | AB20: =IF(Z20="","",IF(AA20<>"",6+AB$3,IF(OR(Z20="STR",Z20="INT"),INT(AB$3/3) &"+d3",IF(Z20="Special","???",(4+AB$3)&"+d4")))) -> 14 | AJ20: =IF(OR(AND(B20<>"",B20<=$B$3),AND(C20<>"",C20<=$C$3),AND(D20<>"",D20<=$D$3),AND(E20<>"",E20<=$E$3),AND(F20<>"",F20<+$F$3),AND(G20<>"",G20<=$G$3),AND(H20<>"",H20<=$H$3)),"Y","N") -> N | AK20: PHB
A21: Blast | I21: =MIN(B21:H21,J21:U21) -> 1 | P21: 1 | R21: 1 | V21: Ball of explosive material & large bang & dust cloud 5' diameter HEAVILY OBSCURED. Spell attack for damage | W21: Std | X21: Instantaneous | Y21: 1 creature | AA21: 3d6 | AB21: =IF(Z21="","",IF(AA21<>"",6+AB$3,IF(OR(Z21="STR",Z21="INT"),INT(AB$3/3) &"+d3",IF(Z21="Special","???",(4+AB$3)&"+d4")))) ->  | AJ21: =IF(OR(AND(B21<>"",B21<=$B$3),AND(C21<>"",C21<=$C$3),AND(D21<>"",D21<=$D$3),AND(E21<>"",E21<=$E$3),AND(F21<>"",F21<+$F$3),AND(G21<>"",G21<=$G$3),AND(H21<>"",H21<=$H$3)),"Y","N") -> N | AK21: PHB 2
A22: Bless | I22: =MIN(B22:H22,J22:U22) -> 1 | J22: 1 | K22: 1 | L22: 1 | M22: 1 | N22: 1 | O22: 1 | P22: 1 | Q22: 1 | R22: 1 | S22: 1 | T22: 1 | U22: 1 | V22: +1 to saves and skills Level 1: Bless, Touch, duration is from start of encounter. Minor action to add 1 target. Level 2: Chant: Whilst chanting (minor but no verbal actions), 35' diameter. Level 3: Prayer (static) 80' diameter | X22: 3d6 rounds | Y22: Varies | AB22: =IF(Z22="","",IF(AA22<>"",6+AB$3,IF(OR(Z22="STR",Z22="INT"),INT(AB$3/3) &"+d3",IF(Z22="Special","???",(4+AB$3)&"+d4")))) ->  | AC22: Utility | AF22: X | AG22: X | AH22: X | AJ22: =IF(OR(AND(B22<>"",B22<=$B$3),AND(C22<>"",C22<=$C$3),AND(D22<>"",D22<=$D$3),AND(E22<>"",E22<=$E$3),AND(F22<>"",F22<+$F$3),AND(G22<>"",G22<=$G$3),AND(H22<>"",H22<=$H$3)),"Y","N") -> N | AK22: PHB | AL22: X
A23: Blur | D23: 2 | I23: =MIN(B23:H23,J23:U23) -> 2 | Q23: 2 | V23: Disadvantage to targeted attacks (melee/spell), advantage to targeted physical saves. | W23: Self | X23: 2d4 rounds | Y23: Self | AB23: =IF(Z23="","",IF(AA23<>"",6+AB$3,IF(OR(Z23="STR",Z23="INT"),INT(AB$3/3) &"+d3",IF(Z23="Special","???",(4+AB$3)&"+d4")))) ->  | AE23: X | AJ23: =IF(OR(AND(B23<>"",B23<=$B$3),AND(C23<>"",C23<=$C$3),AND(D23<>"",D23<=$D$3),AND(E23<>"",E23<=$E$3),AND(F23<>"",F23<+$F$3),AND(G23<>"",G23<=$G$3),AND(H23<>"",H23<=$H$3)),"Y","N") -> Y | AK23: PHB | AO23: X
A24: Body Control | G24: 4 | I24: =MIN(B24:H24,J24:U24) -> 4 | V24: Control the gross physical actions of a creature making it into an automaton (think Frankenstein). Control one appendage (+1 per extra level). Any actions the mage gets it to make are at disadvantage using the caster's weapon/brawling skill but it's physical stats. Each additional limb controlled give the creature +1 on the saving throw. Max strength that can be controlled is PP +2 First save = disadvantage on physical actions Cannot control shapeshifters. | W24: Std /2 | X24: CONCENTRATE up to 5 rounds | Y24: 1 creature | Z24: STR | AB24: =IF(Z24="","",IF(AA24<>"",6+AB$3,IF(OR(Z24="STR",Z24="INT"),INT(AB$3/3) &"+d3",IF(Z24="Special","???",(4+AB$3)&"+d4")))) -> 2+d3 | AD24: Ongoing | AE24: B | AI24: X | AJ24: =IF(OR(AND(B24<>"",B24<=$B$3),AND(C24<>"",C24<=$C$3),AND(D24<>"",D24<=$D$3),AND(E24<>"",E24<=$E$3),AND(F24<>"",F24<+$F$3),AND(G24<>"",G24<=$G$3),AND(H24<>"",H24<=$H$3)),"Y","N") -> Y | AK24: Mythus Magic | AM24: X | AN24: 3
A25: Bounce | B25: 2 | I25: =MIN(B25:H25,J25:U25) -> 2 | V25: Enables an item to bounce like rubber. | W25: Std | X25: 1 round | Y25: 1 object | AB25: =IF(Z25="","",IF(AA25<>"",6+AB$3,IF(OR(Z25="STR",Z25="INT"),INT(AB$3/3) &"+d3",IF(Z25="Special","???",(4+AB$3)&"+d4")))) ->  | AC25: Battle | AE25: X | AI25: X | AJ25: =IF(OR(AND(B25<>"",B25<=$B$3),AND(C25<>"",C25<=$C$3),AND(D25<>"",D25<=$D$3),AND(E25<>"",E25<=$E$3),AND(F25<>"",F25<+$F$3),AND(G25<>"",G25<=$G$3),AND(H25<>"",H25<=$H$3)),"Y","N") -> Y | AK25: PHB 2
A26: Breathe Air | B26: 2 | E26: 2 | F26: 2 | I26: =MIN(B26:H26,J26:U26) -> 2 | J26: 2 | K26: 2 | Q26: 2 | S26: 2 | T26: 2 | U26: 2 | V26: Barrier filters out noxious vapours or liquids. Assumes there is enough dissolved oxygen to breathe in water +1 level = Multiple creatures, divide duration by No. of creatures. | W26: Touch | X26: 24 hours | Y26: 1 Creature | AB26: =IF(Z26="","",IF(AA26<>"",6+AB$3,IF(OR(Z26="STR",Z26="INT"),INT(AB$3/3) &"+d3",IF(Z26="Special","???",(4+AB$3)&"+d4")))) ->  | AC26: Battle | AE26: B | AI26: X | AJ26: =IF(OR(AND(B26<>"",B26<=$B$3),AND(C26<>"",C26<=$C$3),AND(D26<>"",D26<=$D$3),AND(E26<>"",E26<=$E$3),AND(F26<>"",F26<+$F$3),AND(G26<>"",G26<=$G$3),AND(H26<>"",H26<=$H$3)),"Y","N") -> Y | AK26: Tome of Magic
A27: Chains | G27: 3 | I27: =MIN(B27:H27,J27:U27) -> 3 | M27: 3 | V27: Chains hold a creature fast, giving 5' movement around a point. Save = Minor action to test and break chains once per round +1 level = +1 strength. | W27: 10' | X27: 5 minutes | Y27: 1 creature | Z27: STR | AB27: =IF(Z27="","",IF(AA27<>"",6+AB$3,IF(OR(Z27="STR",Z27="INT"),INT(AB$3/3) &"+d3",IF(Z27="Special","???",(4+AB$3)&"+d4")))) -> 2+d3 | AD27: Ongoing rising | AI27: X | AJ27: =IF(OR(AND(B27<>"",B27<=$B$3),AND(C27<>"",C27<=$C$3),AND(D27<>"",D27<=$D$3),AND(E27<>"",E27<=$E$3),AND(F27<>"",F27<+$F$3),AND(G27<>"",G27<=$G$3),AND(H27<>"",H27<=$H$3)),"Y","N") -> Y | AK27: Mythus Magic
A28: Chameleon | B28: 1 | D28: 1 | I28: =MIN(B28:H28,J28:U28) -> 1 | J28: 1 | Q28: 1 | V28: Level 1: Chameleon: Blend into the background +d4 to stealth Level 2: Disguise, Up to 1 size category different. Keep same body type (humanoid) Level 3: Leafskin Provides invisibility in natural surroundings. Skin takes on a green tint which provides photosynthasis. +3 levels = 80' diameter | W28: Touch | X28: 20 minutes | Y28: 1 creature | Z28: Spot | AB28: =IF(Z28="","",IF(AA28<>"",6+AB$3,IF(OR(Z28="STR",Z28="INT"),INT(AB$3/3) &"+d3",IF(Z28="Special","???",(4+AB$3)&"+d4")))) -> 12+d4 | AC28: Utility | AE28: B | AJ28: =IF(OR(AND(B28<>"",B28<=$B$3),AND(C28<>"",C28<=$C$3),AND(D28<>"",D28<=$D$3),AND(E28<>"",E28<=$E$3),AND(F28<>"",F28<+$F$3),AND(G28<>"",G28<=$G$3),AND(H28<>"",H28<=$H$3)),"Y","N") -> Y | AK28: Homebrew
A29: Chaos shield | F29: 1 | I29: =MIN(B29:H29,J29:U29) -> 1 | V29: Level 2: Chaos shield, Partially protects against wild surges; +1 threshold. +2 levels = +1 | W29: Self | X29: 5 minutes | Y29: Self | AB29: =IF(Z29="","",IF(AA29<>"",6+AB$3,IF(OR(Z29="STR",Z29="INT"),INT(AB$3/3) &"+d3",IF(Z29="Special","???",(4+AB$3)&"+d4")))) ->  | AC29: Utility | AE29: B | AI29: X | AJ29: =IF(OR(AND(B29<>"",B29<=$B$3),AND(C29<>"",C29<=$C$3),AND(D29<>"",D29<=$D$3),AND(E29<>"",E29<=$E$3),AND(F29<>"",F29<+$F$3),AND(G29<>"",G29<=$G$3),AND(H29<>"",H29<=$H$3)),"Y","N") -> Y | AK29: Tome of Magic | AO29: X
A30: Charm | C30: 1 | I30: =MIN(B30:H30,J30:U30) -> 1 | J30: 1 | K30: 1 | L30: 1 | N30: 1 | Q30: 1 | V30: Caster's requests will be viewed most favourably as if you were their best friend, but they still have free will. Thus they may help defend the caster if asked but it will not be to the death and will not attack their own allies. This can count as active defence for the caster. Save whenever damage is sustained caused by the request/charm. Unreasonable requests cause a save and are unlikely to be followed regardless of the save. Do not react well to allies making suggestions on what to ask. Any previous damage by party = advantage to the save Default is Medium sized creatures Level 1 Humanoids. Level 2 for animals Level 4 for monsters. Level 5 for plants. +1 level for each 2 size increases (Ogre / troll / Giant) | W30: Face to Face | X30: 5 - INT hours | Y30: 1 humanoid. | Z30: Will | AB30: =IF(Z30="","",IF(AA30<>"",6+AB$3,IF(OR(Z30="STR",Z30="INT"),INT(AB$3/3) &"+d3",IF(Z30="Special","???",(4+AB$3)&"+d4")))) -> 12+d4 | AC30: Utility | AD30: Ongoing hourly | AG30: X | AJ30: =IF(OR(AND(B30<>"",B30<=$B$3),AND(C30<>"",C30<=$C$3),AND(D30<>"",D30<=$D$3),AND(E30<>"",E30<=$E$3),AND(F30<>"",F30<+$F$3),AND(G30<>"",G30<=$G$3),AND(H30<>"",H30<=$H$3)),"Y","N") -> N | AK30: PHB
A31: Choke | F31: 3 | I31: =MIN(B31:H31,J31:U31) -> 3 | V31: Ghostly hands around neck. Damage each round, target's skills at disadvantage | W31: Std | X31: CONCENTRATE up to 3 rounds | Y31: 1 creature | Z31: Endure | AA31: 3d6 | AB31: =IF(Z31="","",IF(AA31<>"",6+AB$3,IF(OR(Z31="STR",Z31="INT"),INT(AB$3/3) &"+d3",IF(Z31="Special","???",(4+AB$3)&"+d4")))) -> 14 | AI31: X | AJ31: =IF(OR(AND(B31<>"",B31<=$B$3),AND(C31<>"",C31<=$C$3),AND(D31<>"",D31<=$D$3),AND(E31<>"",E31<=$E$3),AND(F31<>"",F31<+$F$3),AND(G31<>"",G31<=$G$3),AND(H31<>"",H31<=$H$3)),"Y","N") -> N | AK31: Wizards Handbook | AM31: X | AN31: 7 | AO31: X
A32: Collapse | I32: =MIN(B32:H32,J32:U32) -> 4 | R32: 4 | V32: Weakens a ceiling / bridge so that it collapses,3d6/5d10 damage if wood/stone | W32: Std | X32: Permanent | Y32: 20' square | Z32: Dodge | AA32: 3d6/ 5d10 | AB32: =IF(Z32="","",IF(AA32<>"",6+AB$3,IF(OR(Z32="STR",Z32="INT"),INT(AB$3/3) &"+d3",IF(Z32="Special","???",(4+AB$3)&"+d4")))) -> 14 | AJ32: =IF(OR(AND(B32<>"",B32<=$B$3),AND(C32<>"",C32<=$C$3),AND(D32<>"",D32<=$D$3),AND(E32<>"",E32<=$E$3),AND(F32<>"",F32<+$F$3),AND(G32<>"",G32<=$G$3),AND(H32<>"",H32<=$H$3)),"Y","N") -> N | AK32: Homebrew
A33: Colour Change | B33: 1 | I33: =MIN(B33:H33,J33:U33) -> 1 | V33: Changes the colour of an item. Inanimate (non-magical) objects do not save. Magical = 5+ on dice | W33: Touch | X33: Permanent | Y33: 1 object / 15' sq | Z33: Special | AB33: =IF(Z33="","",IF(AA33<>"",6+AB$3,IF(OR(Z33="STR",Z33="INT"),INT(AB$3/3) &"+d3",IF(Z33="Special","???",(4+AB$3)&"+d4")))) -> ??? | AC33: Utility | AE33: B | AI33: B | AJ33: =IF(OR(AND(B33<>"",B33<=$B$3),AND(C33<>"",C33<=$C$3),AND(D33<>"",D33<=$D$3),AND(E33<>"",E33<=$E$3),AND(F33<>"",F33<+$F$3),AND(G33<>"",G33<=$G$3),AND(H33<>"",H33<=$H$3)),"Y","N") -> Y
A34: Colour Spray | D34: 1 | I34: =MIN(B34:H34,J34:U34) -> 1 | V34: DAZED First save = FROZEN +1 level = Small cone 45' +2 levels = Large cone 55' | W34: 0 | X34: Instantaneous | Y34: Cone 10' x 90° | Z34: Will | AB34: =IF(Z34="","",IF(AA34<>"",6+AB$3,IF(OR(Z34="STR",Z34="INT"),INT(AB$3/3) &"+d3",IF(Z34="Special","???",(4+AB$3)&"+d4")))) -> 12+d4 | AJ34: =IF(OR(AND(B34<>"",B34<=$B$3),AND(C34<>"",C34<=$C$3),AND(D34<>"",D34<=$D$3),AND(E34<>"",E34<=$E$3),AND(F34<>"",F34<+$F$3),AND(G34<>"",G34<=$G$3),AND(H34<>"",H34<=$H$3)),"Y","N") -> Y | AK34: PHB | AM34: X | AN34: X | AO34: X
A35: Command | I35: =MIN(B35:H35,J35:U35) -> 1 | L35: 1 | M35: 1 | N35: 1 | V35: Utter a single word command at a creature, you must be able to speak in its own tongue and it must be able to hear you. Typically "Approach", "Halt", "Flee", "Grovel".... | W35: Std | X35: 1 round | Y35: 1 creature | Z35: Will | AB35: =IF(Z35="","",IF(AA35<>"",6+AB$3,IF(OR(Z35="STR",Z35="INT"),INT(AB$3/3) &"+d3",IF(Z35="Special","???",(4+AB$3)&"+d4")))) -> 12+d4 | AJ35: =IF(OR(AND(B35<>"",B35<=$B$3),AND(C35<>"",C35<=$C$3),AND(D35<>"",D35<=$D$3),AND(E35<>"",E35<=$E$3),AND(F35<>"",F35<+$F$3),AND(G35<>"",G35<=$G$3),AND(H35<>"",H35<=$H$3)),"Y","N") -> N | AK35: PHB | AL35: X
A36: Compelled Duel | I36: =MIN(B36:H36,J36:U36) -> 1 | M36: 1 | P36: 1 | V36: Target is drawn to attack you. It has disadvantage on other targets. TAUNTED. Minor action to maintain. Prayer ends if 1) You attack anything else except to move in a straight line to it. 2) An ally attacks / damages it. 3) It ends up more than 30' away. | W36: Std | X36: 5 rounds | Y36: 1 creature | Z36: Will | AB36: =IF(Z36="","",IF(AA36<>"",6+AB$3,IF(OR(Z36="STR",Z36="INT"),INT(AB$3/3) &"+d3",IF(Z36="Special","???",(4+AB$3)&"+d4")))) -> 12+d4 | AC36: Battle | AD36: Ongoing | AH36: X | AJ36: =IF(OR(AND(B36<>"",B36<=$B$3),AND(C36<>"",C36<=$C$3),AND(D36<>"",D36<=$D$3),AND(E36<>"",E36<=$E$3),AND(F36<>"",F36<+$F$3),AND(G36<>"",G36<=$G$3),AND(H36<>"",H36<=$H$3)),"Y","N") -> N | AK36: Homebrew
A37: Conjure Barrage | F37: 5 | I37: =MIN(B37:H37,J37:U37) -> 5 | P37: 5 | S37: 5 | T37: 5 | V37: When a touched ranged weapon is thrown/loosed it creates a cone of identical weapons at a given point that fall on the target area. 3 auto hits per medium creature (more for larger). Damage type as per weapon. | W37: Touch | X37: Instantaneous | Y37: 35' diameter | AB37: =IF(Z37="","",IF(AA37<>"",6+AB$3,IF(OR(Z37="STR",Z37="INT"),INT(AB$3/3) &"+d3",IF(Z37="Special","???",(4+AB$3)&"+d4")))) ->  | AJ37: =IF(OR(AND(B37<>"",B37<=$B$3),AND(C37<>"",C37<=$C$3),AND(D37<>"",D37<=$D$3),AND(E37<>"",E37<=$E$3),AND(F37<>"",F37<+$F$3),AND(G37<>"",G37<=$G$3),AND(H37<>"",H37<=$H$3)),"Y","N") -> N | AK37: Homebrew
A38: Conjure Elemental | F38: 4 | I38: =MIN(B38:H38,J38:U38) -> 4 | O38: 4 | R38: 4 | S38: 4 | T38: 4 | U38: 4 | V38: Conjure appropriate elemental into an appropriate area (bonfire...). It is generally friendly and does you bidding. If you lose concentration it turns hostile. Can be dismissed unless you've lost concentration in which case it disappears after the duration. Additional levels increases the power of the elemental. | W38: 10' | X38: CONCENTRATE up to 10 minutes. | Y38: 1 creature | AB38: =IF(Z38="","",IF(AA38<>"",6+AB$3,IF(OR(Z38="STR",Z38="INT"),INT(AB$3/3) &"+d3",IF(Z38="Special","???",(4+AB$3)&"+d4")))) ->  | AC38: Utility | AF38: X | AJ38: =IF(OR(AND(B38<>"",B38<=$B$3),AND(C38<>"",C38<=$C$3),AND(D38<>"",D38<=$D$3),AND(E38<>"",E38<=$E$3),AND(F38<>"",F38<+$F$3),AND(G38<>"",G38<=$G$3),AND(H38<>"",H38<=$H$3)),"Y","N") -> N
A39: Construct | B39: 1 | E39: 1 | I39: =MIN(B39:H39,J39:U39) -> 1 | J39: 1 | V39: Elementalists only work with stone, Druids with organics Level 1: Repair small non-magical item, by manipulating existing material, will add stitches, glue... where necessary. e.g. leaky (not holed) boat where tar filler has seeped out , dented (not badly damaged) armour. Expensive/decorated items will have obvious repair marks, you cannot replicate the skill of the original artisan. Level 3: Reconstruct, 1 large wood/cloth object, e.g. smashed single door, small hole in boat (not a castle wall) +1 level for 10 stone wall, iron bound doors… Level 4: Construct 3d6 cubic yards, Manipulates existing material to create wooden/stone wall, bridge… Little finesse. | W39: Touch | X39: Permanent | Y39: 1 object | AB39: =IF(Z39="","",IF(AA39<>"",6+AB$3,IF(OR(Z39="STR",Z39="INT"),INT(AB$3/3) &"+d3",IF(Z39="Special","???",(4+AB$3)&"+d4")))) ->  | AC39: Utility | AE39: B | AJ39: =IF(OR(AND(B39<>"",B39<=$B$3),AND(C39<>"",C39<=$C$3),AND(D39<>"",D39<=$D$3),AND(E39<>"",E39<=$E$3),AND(F39<>"",F39<+$F$3),AND(G39<>"",G39<=$G$3),AND(H39<>"",H39<=$H$3)),"Y","N") -> Y
A40: Contact Other Plane | H40: 4 | I40: =MIN(B40:H40,J40:U40) -> 4 | L40: 4 | N40: 4 | V40: Difficulty, knowledge=12, truth = 14, insane = 3 (Will); +1 per plane removed | W40: 1 plane | X40: 5 questions | Y40: Self | Z40: Will | AB40: =IF(Z40="","",IF(AA40<>"",6+AB$3,IF(OR(Z40="STR",Z40="INT"),INT(AB$3/3) &"+d3",IF(Z40="Special","???",(4+AB$3)&"+d4")))) -> 12+d4 | AC40: Utility | AJ40: =IF(OR(AND(B40<>"",B40<=$B$3),AND(C40<>"",C40<=$C$3),AND(D40<>"",D40<=$D$3),AND(E40<>"",E40<=$E$3),AND(F40<>"",F40<+$F$3),AND(G40<>"",G40<=$G$3),AND(H40<>"",H40<=$H$3)),"Y","N") -> N
A41: Contingency | H41: 4 | I41: =MIN(B41:H41,J41:U41) -> 4 | V41: Another spell to activate upon a set of circumstances (max 1 at a time) | W41: Self | X41: Permanent | Y41: Self | AB41: =IF(Z41="","",IF(AA41<>"",6+AB$3,IF(OR(Z41="STR",Z41="INT"),INT(AB$3/3) &"+d3",IF(Z41="Special","???",(4+AB$3)&"+d4")))) ->  | AC41: Utility | AJ41: =IF(OR(AND(B41<>"",B41<=$B$3),AND(C41<>"",C41<=$C$3),AND(D41<>"",D41<=$D$3),AND(E41<>"",E41<=$E$3),AND(F41<>"",F41<+$F$3),AND(G41<>"",G41<=$G$3),AND(H41<>"",H41<=$H$3)),"Y","N") -> N
A42: Control temperature | E42: 1 | I42: =MIN(B42:H42,J42:U42) -> 1 | O42: 1 | V42: Melt ice (x10 thickness if snow) (Half if magical) Create ice from water | W42: Std | X42: 1 round | Y42: 10 yard square x 6" thick | AB42: =IF(Z42="","",IF(AA42<>"",6+AB$3,IF(OR(Z42="STR",Z42="INT"),INT(AB$3/3) &"+d3",IF(Z42="Special","???",(4+AB$3)&"+d4")))) ->  | AC42: Utility | AI42: B | AJ42: =IF(OR(AND(B42<>"",B42<=$B$3),AND(C42<>"",C42<=$C$3),AND(D42<>"",D42<=$D$3),AND(E42<>"",E42<=$E$3),AND(F42<>"",F42<+$F$3),AND(G42<>"",G42<=$G$3),AND(H42<>"",H42<=$H$3)),"Y","N") -> N | AK42: Unearthed
A43: Control Water | E43: 4 | I43: =MIN(B43:H43,J43:U43) -> 4 | U43: 4 | V43: Cause an area of water to do one of 4 actions. The selection may change each round. Flood - Rise by up to 20' (floods a shore or creates a wave) Part Water : 50 yards wide x 1/2 mile long starting in front of the caster Redirect flow : Will move uphill… while within area Whirlpool - Requires 25' deep 50' across, 2d8 damage per round caught | W43: Std x 10 | X43: CONCENTRATE up to 10 minutes | Y43: 80' diameter | AB43: =IF(Z43="","",IF(AA43<>"",6+AB$3,IF(OR(Z43="STR",Z43="INT"),INT(AB$3/3) &"+d3",IF(Z43="Special","???",(4+AB$3)&"+d4")))) ->  | AC43: Utility | AJ43: =IF(OR(AND(B43<>"",B43<=$B$3),AND(C43<>"",C43<=$C$3),AND(D43<>"",D43<=$D$3),AND(E43<>"",E43<=$E$3),AND(F43<>"",F43<+$F$3),AND(G43<>"",G43<=$G$3),AND(H43<>"",H43<=$H$3)),"Y","N") -> N
A44: Corpse Visage | D44: 2 | I44: =MIN(B44:H44,J44:U44) -> 2 | V44: Illusion of rotten corpse as face, when seen from < 10' retreat to 10' then FRIGHTENED. | W44: Self | X44: 2 rounds | Y44: Self | Z44: Will | AB44: =IF(Z44="","",IF(AA44<>"",6+AB$3,IF(OR(Z44="STR",Z44="INT"),INT(AB$3/3) &"+d3",IF(Z44="Special","???",(4+AB$3)&"+d4")))) -> 12+d4 | AJ44: =IF(OR(AND(B44<>"",B44<=$B$3),AND(C44<>"",C44<=$C$3),AND(D44<>"",D44<=$D$3),AND(E44<>"",E44<=$E$3),AND(F44<>"",F44<+$F$3),AND(G44<>"",G44<=$G$3),AND(H44<>"",H44<=$H$3)),"Y","N") -> Y | AK44: Wizards Handbook | AM44: X | AN44: 8 | AO44: X
A45: Corrode | B45: 1 | I45: =MIN(B45:H45,J45:U45) -> 1 | Q45: 1 | R45: 1 | U45: 1 | V45: Corrosion depends upon duration, 1/4" iron 1/8" steel per round, 1 PP per round, Typical hinge = 1/4" +1 level Doubles the rate +1 level Doubles diameter. | W45: Touch | X45: CONCENTRATE | Y45: 1 foot diameter | AB45: =IF(Z45="","",IF(AA45<>"",6+AB$3,IF(OR(Z45="STR",Z45="INT"),INT(AB$3/3) &"+d3",IF(Z45="Special","???",(4+AB$3)&"+d4")))) ->  | AC45: Utility | AE45: B | AI45: X | AJ45: =IF(OR(AND(B45<>"",B45<=$B$3),AND(C45<>"",C45<=$C$3),AND(D45<>"",D45<=$D$3),AND(E45<>"",E45<=$E$3),AND(F45<>"",F45<+$F$3),AND(G45<>"",G45<=$G$3),AND(H45<>"",H45<=$H$3)),"Y","N") -> Y | AO45: X
A46: Create campsite | F46: 2 | I46: =MIN(B46:H46,J46:U46) -> 2 | P46: 2 | V46: Erects your tents, sets fire, gathers wood & water from local area | W46: 0 | X46: 12 hours | Y46: 35' diameter | AB46: =IF(Z46="","",IF(AA46<>"",6+AB$3,IF(OR(Z46="STR",Z46="INT"),INT(AB$3/3) &"+d3",IF(Z46="Special","???",(4+AB$3)&"+d4")))) ->  | AC46: Utility | AJ46: =IF(OR(AND(B46<>"",B46<=$B$3),AND(C46<>"",C46<=$C$3),AND(D46<>"",D46<=$D$3),AND(E46<>"",E46<=$E$3),AND(F46<>"",F46<+$F$3),AND(G46<>"",G46<=$G$3),AND(H46<>"",H46<=$H$3)),"Y","N") -> N
A47: Create Golem | B47: 6 | I47: =MIN(B47:H47,J47:U47) -> 6 | V47: Create an appropriate golem | W47: Touch | X47: Permanent | Y47: 1 creature | AB47: =IF(Z47="","",IF(AA47<>"",6+AB$3,IF(OR(Z47="STR",Z47="INT"),INT(AB$3/3) &"+d3",IF(Z47="Special","???",(4+AB$3)&"+d4")))) ->  | AC47: Utility | AJ47: =IF(OR(AND(B47<>"",B47<=$B$3),AND(C47<>"",C47<=$C$3),AND(D47<>"",D47<=$D$3),AND(E47<>"",E47<=$E$3),AND(F47<>"",F47<+$F$3),AND(G47<>"",G47<=$G$3),AND(H47<>"",H47<=$H$3)),"Y","N") -> N
A48: Death Recall | H48: 4 | I48: =MIN(B48:H48,J48:U48) -> 4 | L48: 4 | N48: 4 | V48: Visualise the final moments of life | W48: Touch | X48: 10 minutes | Y48: Creatures dead < 4d8 hours | AB48: =IF(Z48="","",IF(AA48<>"",6+AB$3,IF(OR(Z48="STR",Z48="INT"),INT(AB$3/3) &"+d3",IF(Z48="Special","???",(4+AB$3)&"+d4")))) ->  | AC48: Utility | AG48: X | AJ48: =IF(OR(AND(B48<>"",B48<=$B$3),AND(C48<>"",C48<=$C$3),AND(D48<>"",D48<=$D$3),AND(E48<>"",E48<=$E$3),AND(F48<>"",F48<+$F$3),AND(G48<>"",G48<=$G$3),AND(H48<>"",H48<=$H$3)),"Y","N") -> N
A49: Death Spell | C49: 6 | F49: 6 | I49: =MIN(B49:H49,J49:U49) -> 6 | L49: 6 | V49: Kills creatures in area, weakest first up to 8d20SP. Maximum 1/2 damage to a single creature. NECROTIC or PSYCHIC | W49: Std | X49: Instantaneous | Y49: 80' daimeter | AB49: =IF(Z49="","",IF(AA49<>"",6+AB$3,IF(OR(Z49="STR",Z49="INT"),INT(AB$3/3) &"+d3",IF(Z49="Special","???",(4+AB$3)&"+d4")))) ->  | AJ49: =IF(OR(AND(B49<>"",B49<=$B$3),AND(C49<>"",C49<=$C$3),AND(D49<>"",D49<=$D$3),AND(E49<>"",E49<=$E$3),AND(F49<>"",F49<+$F$3),AND(G49<>"",G49<=$G$3),AND(H49<>"",H49<=$H$3)),"Y","N") -> N | AK49: PHB | AO49: X
A50: Deeppockets | B50: 2 | I50: =MIN(B50:H50,J50:U50) -> 2 | Q50: 2 | V50: Expensive (50g) cloak can hold 5 cubic feet without bulging or weighing whilst worn by the caster. The pockets can be one large pocket or many smaller ones; however it takes one minor per item in the pocket to locate the desired object. | W50: Touch | X50: 2d4 days | Y50: 1 garment | AB50: =IF(Z50="","",IF(AA50<>"",6+AB$3,IF(OR(Z50="STR",Z50="INT"),INT(AB$3/3) &"+d3",IF(Z50="Special","???",(4+AB$3)&"+d4")))) ->  | AC50: Utility | AE50: B | AJ50: =IF(OR(AND(B50<>"",B50<=$B$3),AND(C50<>"",C50<=$C$3),AND(D50<>"",D50<=$D$3),AND(E50<>"",E50<=$E$3),AND(F50<>"",F50<+$F$3),AND(G50<>"",G50<=$G$3),AND(H50<>"",H50<=$H$3)),"Y","N") -> Y | AK50: PHB | AO50: X
A51: Defensive Harmony | I51: =MIN(B51:H51,J51:U51) -> 4 | P51: 4 | V51: Co-ordinates attacks & defence between creatures +2 defence | W51: 0 | X51: 10 minutes | Y51: 6 creatures within 25' diameter | AB51: =IF(Z51="","",IF(AA51<>"",6+AB$3,IF(OR(Z51="STR",Z51="INT"),INT(AB$3/3) &"+d3",IF(Z51="Special","???",(4+AB$3)&"+d4")))) ->  | AJ51: =IF(OR(AND(B51<>"",B51<=$B$3),AND(C51<>"",C51<=$C$3),AND(D51<>"",D51<=$D$3),AND(E51<>"",E51<=$E$3),AND(F51<>"",F51<+$F$3),AND(G51<>"",G51<=$G$3),AND(H51<>"",H51<=$H$3)),"Y","N") -> N | AK51: Tome of Magic
A52: Deflection | G52: 1 | I52: =MIN(B52:H52,J52:U52) -> 1 | P52: 1 | V52: This is a Force ability rather than a spell so does not suffer from casting restrictions. Reaction: Reduce incoming physical damage Attacker : Rolls damage Defender : Determine level to cast at and roll reduction dice Defender : Add power by rolling additional dice of new level (do NOT reroll existing) Creatures behind and within 10' of the caster (20° cone) = SAVE +2 +1 level = Increases damage reduction Level 2 : Ward 2d4 rounds. Caster RESISTANT to specific weapon damage type, cut, pierce or chop. Minor action to swap types. Does not stack with Armoured Skin. | W52: 0 | X52: Instantaneous | Y52: The caster - Cone 16° | AA52: 3d6 | AC52: React | AE52: X | AI52: X | AJ52: =IF(OR(AND(B52<>"",B52<=$B$3),AND(C52<>"",C52<=$C$3),AND(D52<>"",D52<=$D$3),AND(E52<>"",E52<=$E$3),AND(F52<>"",F52<+$F$3),AND(G52<>"",G52<=$G$3),AND(H52<>"",H52<=$H$3)),"Y","N") -> Y | AK52: Homebrew | AN52: X | AO52: X
A53: Defoliate | B53: 5 | I53: =MIN(B53:H53,J53:U53) -> 5 | V53: Intelligent life saves otherwise vegetation withers and dies crumbling to ash. | W53: Std | X53: Permanent | Y53: 35' diameter | Z53: Endure | AA53: 5d10 | AB53: =IF(Z53="","",IF(AA53<>"",6+AB$3,IF(OR(Z53="STR",Z53="INT"),INT(AB$3/3) &"+d3",IF(Z53="Special","???",(4+AB$3)&"+d4")))) -> 14 | AJ53: =IF(OR(AND(B53<>"",B53<=$B$3),AND(C53<>"",C53<=$C$3),AND(D53<>"",D53<=$D$3),AND(E53<>"",E53<=$E$3),AND(F53<>"",F53<+$F$3),AND(G53<>"",G53<=$G$3),AND(H53<>"",H53<=$H$3)),"Y","N") -> N | AK53: Wizards Handbook
A54: Dessicate | B54: 5 | E54: 5 | I54: =MIN(B54:H54,J54:U54) -> 5 | O54: 5 | U54: 5 | V54: Remove all water from the area. Creatures save vs damage. Damage is total affecting the weakest first. | W54: Std | X54: Permanent | Y54: 18' diameter | Z54: Endure | AA54: 6d12 | AB54: =IF(Z54="","",IF(AA54<>"",6+AB$3,IF(OR(Z54="STR",Z54="INT"),INT(AB$3/3) &"+d3",IF(Z54="Special","???",(4+AB$3)&"+d4")))) -> 14 | AJ54: =IF(OR(AND(B54<>"",B54<=$B$3),AND(C54<>"",C54<=$C$3),AND(D54<>"",D54<=$D$3),AND(E54<>"",E54<=$E$3),AND(F54<>"",F54<+$F$3),AND(G54<>"",G54<=$G$3),AND(H54<>"",H54<=$H$3)),"Y","N") -> N | AK54: Homebrew
A55: Detect Extradimensional | H55: 3 | I55: =MIN(B55:H55,J55:U55) -> 3 | J55: 3 | K55: 3 | L55: 3 | M55: 3 | N55: 3 | O55: 3 | P55: 3 | Q55: 3 | R55: 3 | S55: 3 | T55: 3 | U55: 3 | V55: Detect Ethereal / Astral creatures. They appear translucent to all | W55: 0 | X55: 2d4 rounds | Y55: 35' diameter | AB55: =IF(Z55="","",IF(AA55<>"",6+AB$3,IF(OR(Z55="STR",Z55="INT"),INT(AB$3/3) &"+d3",IF(Z55="Special","???",(4+AB$3)&"+d4")))) ->  | AJ55: =IF(OR(AND(B55<>"",B55<=$B$3),AND(C55<>"",C55<=$C$3),AND(D55<>"",D55<=$D$3),AND(E55<>"",E55<=$E$3),AND(F55<>"",F55<+$F$3),AND(G55<>"",G55<=$G$3),AND(H55<>"",H55<=$H$3)),"Y","N") -> N | AK55: Tome of Magic | AL55: X
A56: Detect Invisibility | H56: 2 | I56: =MIN(B56:H56,J56:U56) -> 2 | V56: Detects invisible/etheral/astral items or creatures as vague outlines. Actions against them are at disadvantage | W56: Std | X56: 4d8 minutes | Y56: Eyesight | AB56: =IF(Z56="","",IF(AA56<>"",6+AB$3,IF(OR(Z56="STR",Z56="INT"),INT(AB$3/3) &"+d3",IF(Z56="Special","???",(4+AB$3)&"+d4")))) ->  | AJ56: =IF(OR(AND(B56<>"",B56<=$B$3),AND(C56<>"",C56<=$C$3),AND(D56<>"",D56<=$D$3),AND(E56<>"",E56<=$E$3),AND(F56<>"",F56<+$F$3),AND(G56<>"",G56<=$G$3),AND(H56<>"",H56<=$H$3)),"Y","N") -> N | AK56: PHB
A57: Detect Life | H57: 1 | I57: =MIN(B57:H57,J57:U57) -> 1 | K57: 1 | V57: Detects creatures still alive on a battleground... (ignores creatures < 1') | W57: Std x2 | X57: CONCENTRATE up to 2 hours | Y57: Eyesight | AB57: =IF(Z57="","",IF(AA57<>"",6+AB$3,IF(OR(Z57="STR",Z57="INT"),INT(AB$3/3) &"+d3",IF(Z57="Special","???",(4+AB$3)&"+d4")))) ->  | AC57: Utility | AJ57: =IF(OR(AND(B57<>"",B57<=$B$3),AND(C57<>"",C57<=$C$3),AND(D57<>"",D57<=$D$3),AND(E57<>"",E57<=$E$3),AND(F57<>"",F57<+$F$3),AND(G57<>"",G57<=$G$3),AND(H57<>"",H57<=$H$3)),"Y","N") -> N | AK57: Unearthed
A58: Detect Magic | H58: 1 | I58: =MIN(B58:H58,J58:U58) -> 1 | J58: 1 | K58: 1 | L58: 1 | M58: 1 | N58: 1 | O58: 1 | P58: 1 | Q58: 1 | R58: 1 | S58: 1 | T58: 1 | U58: 1 | V58: Magic items & areas glow. Wizardly = red. Priestly = blue, Shaman = green. Detect magical auras & approximate strength and specialisms (visible spellcasters & items). Mages see mage specialisms, PrIests determine the god. | W58: 0 | X58: 1 minute | Y58: Std' diameter | AB58: =IF(Z58="","",IF(AA58<>"",6+AB$3,IF(OR(Z58="STR",Z58="INT"),INT(AB$3/3) &"+d3",IF(Z58="Special","???",(4+AB$3)&"+d4")))) ->  | AC58: Utility | AF58: X | AG58: X | AJ58: =IF(OR(AND(B58<>"",B58<=$B$3),AND(C58<>"",C58<=$C$3),AND(D58<>"",D58<=$D$3),AND(E58<>"",E58<=$E$3),AND(F58<>"",F58<+$F$3),AND(G58<>"",G58<=$G$3),AND(H58<>"",H58<=$H$3)),"Y","N") -> N | AL58: X | AO58: X
A59: Detect Scrying | H59: 4 | I59: =MIN(B59:H59,J59:U59) -> 4 | V59: Detects all scrying in location. (May detect who and where from) | W59: Std | X59: 10 hours | Y59: Eyesight < 100' | Z59: Will | AB59: =IF(Z59="","",IF(AA59<>"",6+AB$3,IF(OR(Z59="STR",Z59="INT"),INT(AB$3/3) &"+d3",IF(Z59="Special","???",(4+AB$3)&"+d4")))) -> 12+d4 | AC59: Utility | AJ59: =IF(OR(AND(B59<>"",B59<=$B$3),AND(C59<>"",C59<=$C$3),AND(D59<>"",D59<=$D$3),AND(E59<>"",E59<=$E$3),AND(F59<>"",F59<+$F$3),AND(G59<>"",G59<=$G$3),AND(H59<>"",H59<=$H$3)),"Y","N") -> N
A60: Detect Traps | H60: 2 | I60: =MIN(B60:H60,J60:U60) -> 2 | J60: 2 | K60: 2 | Q60: 2 | V60: Level 2: Snares and Pits Outdoors detects all traps, indoors, pits, rockfalls & similar Level 3: Find Traps, Trigger and effect location of (intentional) traps. | W60: Std | X60: CONCENTRATE up to 10 minutes | Y60: 35' diameter | AB60: =IF(Z60="","",IF(AA60<>"",6+AB$3,IF(OR(Z60="STR",Z60="INT"),INT(AB$3/3) &"+d3",IF(Z60="Special","???",(4+AB$3)&"+d4")))) ->  | AC60: Utility | AJ60: =IF(OR(AND(B60<>"",B60<=$B$3),AND(C60<>"",C60<=$C$3),AND(D60<>"",D60<=$D$3),AND(E60<>"",E60<=$E$3),AND(F60<>"",F60<+$F$3),AND(G60<>"",G60<=$G$3),AND(H60<>"",H60<=$H$3)),"Y","N") -> N | AK60: PHB
A61: Dig | E61: 4 | G61: 4 | I61: =MIN(B61:H61,J61:U61) -> 4 | R61: 4 | V61: Digs 100 cubic feet per round of earth Level 6: Move Earth. Range STDx5, area=1 acre, Change the vertical topography by 1' /r. Exhausting, costs 8 SP | W61: Std | X61: CONCENTRATE up to 15 rounds | Y61: 80' diameter | AB61: =IF(Z61="","",IF(AA61<>"",6+AB$3,IF(OR(Z61="STR",Z61="INT"),INT(AB$3/3) &"+d3",IF(Z61="Special","???",(4+AB$3)&"+d4")))) ->  | AC61: Utility | AJ61: =IF(OR(AND(B61<>"",B61<=$B$3),AND(C61<>"",C61<=$C$3),AND(D61<>"",D61<=$D$3),AND(E61<>"",E61<=$E$3),AND(F61<>"",F61<+$F$3),AND(G61<>"",G61<=$G$3),AND(H61<>"",H61<=$H$3)),"Y","N") -> Y
A62: Disintigrate | B62: 6 | I62: =MIN(B62:H62,J62:U62) -> 6 | V62: Deal damage, If dead then also disentegrated. | W62: Std | X62: Instantaneous | Y62: 1 target | Z62: Endure | AA62: 6d12 | AB62: =IF(Z62="","",IF(AA62<>"",6+AB$3,IF(OR(Z62="STR",Z62="INT"),INT(AB$3/3) &"+d3",IF(Z62="Special","???",(4+AB$3)&"+d4")))) -> 14 | AJ62: =IF(OR(AND(B62<>"",B62<=$B$3),AND(C62<>"",C62<=$C$3),AND(D62<>"",D62<=$D$3),AND(E62<>"",E62<=$E$3),AND(F62<>"",F62<+$F$3),AND(G62<>"",G62<=$G$3),AND(H62<>"",H62<=$H$3)),"Y","N") -> N | AK62: PHB | AO62: X
A63: Dispel Evil | I63: =MIN(B63:H63,J63:U63) -> 5 | J63: 5 | K63: 5 | L63: 5 | M63: 5 | O63: 5 | P63: 5 | Q63: 5 | R63: 5 | U63: 5 | V63: Returns creature to its own plane. Automatically dispells/nullifies evil enchantments. | W63: Touch | X63: 1 touch | Y63: Creature / object touched | Z63: Will | AJ63: =IF(OR(AND(B63<>"",B63<=$B$3),AND(C63<>"",C63<=$C$3),AND(D63<>"",D63<=$D$3),AND(E63<>"",E63<=$E$3),AND(F63<>"",F63<+$F$3),AND(G63<>"",G63<=$G$3),AND(H63<>"",H63<=$H$3)),"Y","N") -> N
A64: Dispel Magic | F64: 2 | I64: =MIN(B64:H64,J64:U64) -> 2 | J64: 2 | K64: 2 | L64: 2 | M64: 2 | N64: 2 | O64: 2 | P64: 2 | Q64: 2 | R64: 2 | S64: 2 | T64: 2 | U64: 2 | V64: Dispells magic up to level +1 of the level cast at. Opposed roll (2d8 + INT + AK) (or WILL + Faith), dispelled if ≥ target's resistance.. AK is the level of the caster not the spell to be affected. Each defending effect gets a separate resistance roll. Dispelling starts from the lowest level effect. For each effect dispelled, the Dispel Magic rating is reduced by one. Magic of a different type (mage/clerical) act as 2 levels higher. Items (level 5+) directly touched stop working for 1d4 rounds. +2 levels: dispels magic of a sepcific type for a week in the area. | W64: Std | X64: Instantaneous | Y64: 30' cube / 1 item | AB64: =IF(Z64="","",IF(AA64<>"",6+AB$3,IF(OR(Z64="STR",Z64="INT"),INT(AB$3/3) &"+d3",IF(Z64="Special","???",(4+AB$3)&"+d4")))) ->  | AE64: X | AF64: X | AG64: X | AI64: X | AJ64: =IF(OR(AND(B64<>"",B64<=$B$3),AND(C64<>"",C64<=$C$3),AND(D64<>"",D64<=$D$3),AND(E64<>"",E64<=$E$3),AND(F64<>"",F64<+$F$3),AND(G64<>"",G64<=$G$3),AND(H64<>"",H64<=$H$3)),"Y","N") -> N | AK64: PHB | AL64: X
A65: Divine Power | I65: =MIN(B65:H65,J65:U65) -> 1 | J65: 1 | K65: 1 | L65: 1 | M65: 1 | N65: 1 | O65: 1 | P65: 1 | Q65: 1 | R65: 1 | S65: 1 | T65: 1 | U65: 1 | V65: Radiant energy, Level 1: Henlys Digit of disruption (2d4+1) (Spell attack, no save) Area effect variants = Will save, Range = 0 Undead save at disadvantage (or suffer +10% if they have no will) Level 3: Searing hand (3d6) 80' x 5' Level 4: Palms of Power (3d6) 20' x 90°cone + turn undead attack +1 level = +1 level damage (max = +1 level) | W65: Std/2 | X65: Instantaneous | Y65: 1 target or AoE | Z65: Will | AA65: Vary | AB65: =IF(Z65="","",IF(AA65<>"",6+AB$3,IF(OR(Z65="STR",Z65="INT"),INT(AB$3/3) &"+d3",IF(Z65="Special","???",(4+AB$3)&"+d4")))) -> 14 | AF65: X | AG65: X | AH65: X | AJ65: =IF(OR(AND(B65<>"",B65<=$B$3),AND(C65<>"",C65<=$C$3),AND(D65<>"",D65<=$D$3),AND(E65<>"",E65<=$E$3),AND(F65<>"",F65<+$F$3),AND(G65<>"",G65<=$G$3),AND(H65<>"",H65<=$H$3)),"Y","N") -> N | AK65: Homebrew | AL65: X
A66: Divine Rebuke | I66: =MIN(B66:H66,J66:U66) -> 1 | J66: 1 | K66: 1 | L66: 1 | M66: 1 | N66: 1 | O66: 1 | P66: 1 | Q66: 1 | R66: 1 | S66: 1 | T66: 1 | U66: 1 | V66: Point your finger at a creature that just injured you. Spell attack radiant damage. May only be cast when damaged and as a reaction. | W66: STD x2 | X66: Instantaneous | Y66: 1 creature | AA66: 2d4+1 | AB66: =IF(Z66="","",IF(AA66<>"",6+AB$3,IF(OR(Z66="STR",Z66="INT"),INT(AB$3/3) &"+d3",IF(Z66="Special","???",(4+AB$3)&"+d4")))) ->  | AC66: React | AF66: X | AH66: X | AJ66: =IF(OR(AND(B66<>"",B66<=$B$3),AND(C66<>"",C66<=$C$3),AND(D66<>"",D66<=$D$3),AND(E66<>"",E66<=$E$3),AND(F66<>"",F66<+$F$3),AND(G66<>"",G66<=$G$3),AND(H66<>"",H66<=$H$3)),"Y","N") -> N | AK66: Homebrew
A67: Divine Smite | I67: =MIN(B67:H67,J67:U67) -> 1 | J67: 1 | L67: 1 | M67: 1 | O67: 1 | P67: 1 | Q67: 1 | R67: 1 | U67: 1 | V67: When your weapon hits it causes radiant damage and effects the target. Save vs effect only The target is FROZEN Level 2 = The target is DAZED Level 3 = The target is STUNNED | W67: Self | X67: CONCENTRATE up to to 1 weapon strike | Y67: Self | Z67: Will | AA67: 2d4+1 | AB67: =IF(Z67="","",IF(AA67<>"",6+AB$3,IF(OR(Z67="STR",Z67="INT"),INT(AB$3/3) &"+d3",IF(Z67="Special","???",(4+AB$3)&"+d4")))) -> 14 | AC67: Battle | AD67: Ongoing | AH67: X | AJ67: =IF(OR(AND(B67<>"",B67<=$B$3),AND(C67<>"",C67<=$C$3),AND(D67<>"",D67<=$D$3),AND(E67<>"",E67<=$E$3),AND(F67<>"",F67<+$F$3),AND(G67<>"",G67<=$G$3),AND(H67<>"",H67<=$H$3)),"Y","N") -> N | AK67: Homebrew
A68: Draw upon holy might | B68: 2 | I68: =MIN(B68:H68,J68:U68) -> 2 | J68: 2 | M68: 2 | O68: 2 | P68: 2 | Q68: 2 | R68: 2 | S68: 2 | T68: 2 | U68: 2 | V68: Caster gains +1 increase per level (i.e. min of 2) to one physical attribute. Can only be affected by one increased attribute at a time. After it wears off then for 1 hour you are at disadvantage, have no free movement and move at 1/2 rate. Caps at racial maximum +1. STR adds +1 to hit, +d8 damage. DEX adds +1 to hit, +2 dodge saves. CON = 3d6 temporary extra stamina, +2 Endurance saves. Cannot only be subject to one variant at a time. +2 level = +2 to the attribute (doubles bonuses) | W68: Self | X68: 10 minutes | Y68: Self | AB68: =IF(Z68="","",IF(AA68<>"",6+AB$3,IF(OR(Z68="STR",Z68="INT"),INT(AB$3/3) &"+d3",IF(Z68="Special","???",(4+AB$3)&"+d4")))) ->  | AE68: X | AF68: X | AH68: X | AI68: X | AJ68: =IF(OR(AND(B68<>"",B68<=$B$3),AND(C68<>"",C68<=$C$3),AND(D68<>"",D68<=$D$3),AND(E68<>"",E68<=$E$3),AND(F68<>"",F68<+$F$3),AND(G68<>"",G68<=$G$3),AND(H68<>"",H68<=$H$3)),"Y","N") -> Y | AK68: Tome of Magic | AL68: X
A69: Drawmij's Instant Summons | F69: 7 | I69: =MIN(B69:H69,J69:U69) -> 7 | V69: Instantly summon a prepared object from anywhere. Only one item can be prepared at a time. This spell is also used to prepare the object. | W69: Special | X69: Instantaneous | Y69: 1 small object | AC69: Battle | AJ69: =IF(OR(AND(B69<>"",B69<=$B$3),AND(C69<>"",C69<=$C$3),AND(D69<>"",D69<=$D$3),AND(E69<>"",E69<=$E$3),AND(F69<>"",F69<+$F$3),AND(G69<>"",G69<=$G$3),AND(H69<>"",H69<=$H$3)),"Y","N") -> N
A70: Dream intrusion | H70: 1 | I70: =MIN(B70:H70,J70:U70) -> 1 | V70: If the mage is woken then the dream has prepared him in advance and they are instantly fully awake | W70: Self | X70: 1 night | Y70: Self | AB70: =IF(Z70="","",IF(AA70<>"",6+AB$3,IF(OR(Z70="STR",Z70="INT"),INT(AB$3/3) &"+d3",IF(Z70="Special","???",(4+AB$3)&"+d4")))) ->  | AC70: Utility | AJ70: =IF(OR(AND(B70<>"",B70<=$B$3),AND(C70<>"",C70<=$C$3),AND(D70<>"",D70<=$D$3),AND(E70<>"",E70<=$E$3),AND(F70<>"",F70<+$F$3),AND(G70<>"",G70<=$G$3),AND(H70<>"",H70<=$H$3)),"Y","N") -> N | AK70: Homebrew
A71: Dust Devil | F71: 3 | I71: =MIN(B71:H71,J71:U71) -> 3 | J71: 3 | K71: 3 | R71: 3 | S71: 3 | T71: 3 | V71: Conjures 10' tall whirlwind (Atk +5, 2D12 bludgeon, Def 14 SP=10). Moves as directed, douse torches, BLIND while under attack & HEAVILY OBSCURED for 1 round after leaving. +2 attack & damage for each additional casting level. | W71: Std | X71: CONCENTRATE up to 1 minute | Y71: 1 devil | AB71: =IF(Z71="","",IF(AA71<>"",6+AB$3,IF(OR(Z71="STR",Z71="INT"),INT(AB$3/3) &"+d3",IF(Z71="Special","???",(4+AB$3)&"+d4")))) ->  | AJ71: =IF(OR(AND(B71<>"",B71<=$B$3),AND(C71<>"",C71<=$C$3),AND(D71<>"",D71<=$D$3),AND(E71<>"",E71<=$E$3),AND(F71<>"",F71<+$F$3),AND(G71<>"",G71<=$G$3),AND(H71<>"",H71<=$H$3)),"Y","N") -> N | AK71: Unearthed
A72: Easy March | I72: =MIN(B72:H72,J72:U72) -> 5 | J72: 5 | L72: 5 | P72: 5 | V72: March at triple speed without fatigue (-1 to skills during spell) | W72: Touch | X72: 5 days | Y72: 3d6 creatures | AB72: =IF(Z72="","",IF(AA72<>"",6+AB$3,IF(OR(Z72="STR",Z72="INT"),INT(AB$3/3) &"+d3",IF(Z72="Special","???",(4+AB$3)&"+d4")))) ->  | AC72: Utility | AJ72: =IF(OR(AND(B72<>"",B72<=$B$3),AND(C72<>"",C72<=$C$3),AND(D72<>"",D72<=$D$3),AND(E72<>"",E72<=$E$3),AND(F72<>"",F72<+$F$3),AND(G72<>"",G72<=$G$3),AND(H72<>"",H72<=$H$3)),"Y","N") -> N
A73: Ebonclaws | E73: 2 | F73: 2 | I73: =MIN(B73:H73,J73:U73) -> 2 | J73: 2 | R73: 2 | V73: Level 2: Stony Grasp, A stone arm rises from ground to grab a target. Legs RESTRAINED. Melee spell attack vs dodge Bludgeon damage Save STR (3) to escape. SP = 50, Defence = 10 Minor action to change target if there is a choice. Level 4: Ebonclaws Black pincers attack the whole area, STR (5). | W73: Std | X73: 4 rounds | Y73: 35' diameter | Z73: Dodge | AA73: 3d6 | AB73: =IF(Z73="","",IF(AA73<>"",6+AB$3,IF(OR(Z73="STR",Z73="INT"),INT(AB$3/3) &"+d3",IF(Z73="Special","???",(4+AB$3)&"+d4")))) -> 14 | AD73: Ongoing rising | AI73: X | AJ73: =IF(OR(AND(B73<>"",B73<=$B$3),AND(C73<>"",C73<=$C$3),AND(D73<>"",D73<=$D$3),AND(E73<>"",E73<=$E$3),AND(F73<>"",F73<+$F$3),AND(G73<>"",G73<=$G$3),AND(H73<>"",H73<=$H$3)),"Y","N") -> N | AK73: Mythus Magic | AO73: X
A74: Elemental Weapon (Spiritual) | D74: 2 | E74: 2 | I74: =MIN(B74:H74,J74:U74) -> 2 | J74: 2 | K74: 2 | L74: 2 | M74: 2 | N74: 2 | O74: 2 | P74: 2 | Q74: 2 | R74: 2 | S74: 2 | T74: 2 | U74: 2 | V74: Type dependent on caster flames/ice/stone/lightning… Level 2: Blade: Creates a melee weapon of fire (or emits fire...) Level 3: Spear, may be used as melee or thrown. If thrown/dropped then one will appear each round when desired which can be grabbed. Manoeuvre action to throw. Spell attack (No multi-action penalty) Priests use RADIENT damage, unless elemental priests who may choose) | W74: Std | X74: CONCENTRATE up to 1 encounter | Y74: Self | AA74: 3d6 | AB74: =IF(Z74="","",IF(AA74<>"",6+AB$3,IF(OR(Z74="STR",Z74="INT"),INT(AB$3/3) &"+d3",IF(Z74="Special","???",(4+AB$3)&"+d4")))) ->  | AC74: Battle | AG74: X | AJ74: =IF(OR(AND(B74<>"",B74<=$B$3),AND(C74<>"",C74<=$C$3),AND(D74<>"",D74<=$D$3),AND(E74<>"",E74<=$E$3),AND(F74<>"",F74<+$F$3),AND(G74<>"",G74<=$G$3),AND(H74<>"",H74<=$H$3)),"Y","N") -> Y | AK74: Homebrew | AL74: X
A75: Emotions | C75: 1 | I75: =MIN(B75:H75,J75:U75) -> 1 | L75: 1 | N75: 1 | V75: Project emotions to everyone (allies immune) Level 1, LAUGHTER = -1 skills Level 2: Courage Advantage vs fear/morale/awe failure. Level 2: HOPELESSNESS = morale check Level 2: FRIGHTENED Level 3: REPULSION (See NAUSEOUS) Level 4: FEAR : Save = FRIGHTENED for 1 round. Flee (all actions) at 2x speed (3SP). Stop when safe, CONFUSION : Save = dazed for 1 round (if previously affected) 1 = Wander random direction at full speed. 2-6 = Stand confused 1r, 7-10 = Attack nearest (no special attacks). | W75: 0 | X75: CONCENTRATE up to 5 rounds | Y75: Priest = 20' x 90° Mage = 20' square | Z75: Will | AB75: =IF(Z75="","",IF(AA75<>"",6+AB$3,IF(OR(Z75="STR",Z75="INT"),INT(AB$3/3) &"+d3",IF(Z75="Special","???",(4+AB$3)&"+d4")))) -> 12+d4 | AD75: Ongoing | AJ75: =IF(OR(AND(B75<>"",B75<=$B$3),AND(C75<>"",C75<=$C$3),AND(D75<>"",D75<=$D$3),AND(E75<>"",E75<=$E$3),AND(F75<>"",F75<+$F$3),AND(G75<>"",G75<=$G$3),AND(H75<>"",H75<=$H$3)),"Y","N") -> N | AK75: PHB | AN75: X
A76: Enchanted Weapon | B76: 3 | I76: =MIN(B76:H76,J76:U76) -> 3 | M76: 3 | P76: 3 | R76: 3 | V76: Weapon acts as a +1/+2/+3 (depending upon level cast at) magic weapon for determining what opponents it can hit. The level determines the weapon's maximum bonus, thus casting at level 3 (+1) will not benefit a weapon that is already at +2. only affects to hit and damage rolls. | W76: Touch | X76: 3d6 rounds | Y76: 1 large, 2 medium 4 small 1 quiver… | AB76: =IF(Z76="","",IF(AA76<>"",6+AB$3,IF(OR(Z76="STR",Z76="INT"),INT(AB$3/3) &"+d3",IF(Z76="Special","???",(4+AB$3)&"+d4")))) ->  | AE76: B | AJ76: =IF(OR(AND(B76<>"",B76<=$B$3),AND(C76<>"",C76<=$C$3),AND(D76<>"",D76<=$D$3),AND(E76<>"",E76<=$E$3),AND(F76<>"",F76<+$F$3),AND(G76<>"",G76<=$G$3),AND(H76<>"",H76<=$H$3)),"Y","N") -> Y | AK76: PHB
A77: Enlarge | B77: 1 | I77: =MIN(B77:H77,J77:U77) -> 1 | J77: 1 | K77: 1 | V77: Grow/shrink objects & creatures Objects change by ±50% for 1 week Creatures ±1 size category Creatures ±1 strength per size factor, affects damage only. -1 dex per 2 sizes (round down). Target loses next manoeuvre whilst changing +1 level = Creatures +1 size category, objects ±50% Level 3: Plant Growth. 80' diam thicket, VERY DIFFICULT TERRAIN, OBSCURED (speed = 1/4). May exclude areas. Level 4: Animal Growth Priests = 20' cube, 3d6 animals | W77: Std | X77: 10 minutes | Y77: 1 creature/object | Z77: Endure | AB77: =IF(Z77="","",IF(AA77<>"",6+AB$3,IF(OR(Z77="STR",Z77="INT"),INT(AB$3/3) &"+d3",IF(Z77="Special","???",(4+AB$3)&"+d4")))) -> 12+d4 | AD77: Ongoing | AE77: X | AI77: X | AJ77: =IF(OR(AND(B77<>"",B77<=$B$3),AND(C77<>"",C77<=$C$3),AND(D77<>"",D77<=$D$3),AND(E77<>"",E77<=$E$3),AND(F77<>"",F77<+$F$3),AND(G77<>"",G77<=$G$3),AND(H77<>"",H77<=$H$3)),"Y","N") -> Y | AK77: PHB | AM77: X | AN77: X | AO77: X
A78: Ensnaring Strike | B78: 4 | I78: =MIN(B78:H78,J78:U78) -> 4 | J78: 4 | M78: 4 | Q78: 4 | V78: Next melee/ranged hit creates a writing mass of spikey vines to ensnare the target. RESTRAINED. STR check (5) to break free. +1 level = +1 STR | W78: Weapon touched | X78: 2d4 rounds | Y78: 1 weapon | AB78: =IF(Z78="","",IF(AA78<>"",6+AB$3,IF(OR(Z78="STR",Z78="INT"),INT(AB$3/3) &"+d3",IF(Z78="Special","???",(4+AB$3)&"+d4")))) ->  | AC78: Battle | AD78: Ongoing | AJ78: =IF(OR(AND(B78<>"",B78<=$B$3),AND(C78<>"",C78<=$C$3),AND(D78<>"",D78<=$D$3),AND(E78<>"",E78<=$E$3),AND(F78<>"",F78<+$F$3),AND(G78<>"",G78<=$G$3),AND(H78<>"",H78<=$H$3)),"Y","N") -> Y | AK78: Homebrew
A79: Entangle | B79: 1 | I79: =MIN(B79:H79,J79:U79) -> 1 | J79: 1 | Q79: 1 | V79: Level 1 :Trip over either a vine or other obstacle that jumps up if moving >1/2 speed. PRONE. Save at disadvantage in the rough. Level 2: Entangle Outdoors (or appropriate) only, affects STR <6 RESTRAINED, Save ongoing rising then falling once caught. Save = 1/2 move | W79: Std | X79: 5 rounds | Y79: 80' daimeter | Z79: Dodge | AB79: =IF(Z79="","",IF(AA79<>"",6+AB$3,IF(OR(Z79="STR",Z79="INT"),INT(AB$3/3) &"+d3",IF(Z79="Special","???",(4+AB$3)&"+d4")))) -> 12+d4 | AJ79: =IF(OR(AND(B79<>"",B79<=$B$3),AND(C79<>"",C79<=$C$3),AND(D79<>"",D79<=$D$3),AND(E79<>"",E79<=$E$3),AND(F79<>"",F79<+$F$3),AND(G79<>"",G79<=$G$3),AND(H79<>"",H79<=$H$3)),"Y","N") -> Y | AK79: Homebrew | AN79: X
A80: Explosive Runes | E80: 3 | I80: =MIN(B80:H80,J80:U80) -> 3 | V80: Detonate when read / opened (password protected) No save if you are holding the item. | W80: Touch | X80: Special | Y80: 18' diameter | Z80: Dodge | AA80: 4d8 | AB80: =IF(Z80="","",IF(AA80<>"",6+AB$3,IF(OR(Z80="STR",Z80="INT"),INT(AB$3/3) &"+d3",IF(Z80="Special","???",(4+AB$3)&"+d4")))) -> 14 | AC80: Utility | AJ80: =IF(OR(AND(B80<>"",B80<=$B$3),AND(C80<>"",C80<=$C$3),AND(D80<>"",D80<=$D$3),AND(E80<>"",E80<=$E$3),AND(F80<>"",F80<+$F$3),AND(G80<>"",G80<=$G$3),AND(H80<>"",H80<=$H$3)),"Y","N") -> N | AK80: Unearthed
A81: Fabricate | B81: 4 | I81: =MIN(B81:H81,J81:U81) -> 4 | V81: The caster can mold organic and inorganic small items out of the elemental planes or existing material. Components = some of the material. Using metals reduces AOE from cubic yards to feet. Organic lasts 5d10 hours, Rock=3d6 hours, Metals=3d6 turns, Crystal=3d6 mins. Radiates magic | W81: 10 feet | X81: Permanent | Y81: 2d4 cubic yards | AB81: =IF(Z81="","",IF(AA81<>"",6+AB$3,IF(OR(Z81="STR",Z81="INT"),INT(AB$3/3) &"+d3",IF(Z81="Special","???",(4+AB$3)&"+d4")))) ->  | AC81: Utility | AJ81: =IF(OR(AND(B81<>"",B81<=$B$3),AND(C81<>"",C81<=$C$3),AND(D81<>"",D81<=$D$3),AND(E81<>"",E81<=$E$3),AND(F81<>"",F81<+$F$3),AND(G81<>"",G81<=$G$3),AND(H81<>"",H81<=$H$3)),"Y","N") -> Y
A82: Faerie Fire | F82: 1 | I82: =MIN(B82:H82,J82:U82) -> 1 | O82: 1 | V82: Outlines the target in a glowing band, -1 defence (Vaguely seen in magical darkness). Save = 1/2 duration | W82: Std | X82: 5 rounds | Y82: 1 creature | Z82: Dodge | AB82: =IF(Z82="","",IF(AA82<>"",6+AB$3,IF(OR(Z82="STR",Z82="INT"),INT(AB$3/3) &"+d3",IF(Z82="Special","???",(4+AB$3)&"+d4")))) -> 12+d4 | AJ82: =IF(OR(AND(B82<>"",B82<=$B$3),AND(C82<>"",C82<=$C$3),AND(D82<>"",D82<=$D$3),AND(E82<>"",E82<=$E$3),AND(F82<>"",F82<+$F$3),AND(G82<>"",G82<=$G$3),AND(H82<>"",H82<=$H$3)),"Y","N") -> Y | AK82: PHB
A83: Feign Death | B83: 3 | I83: =MIN(B83:H83,J83:U83) -> 3 | V83: Target appears dead | W83: Touch | X83: 2d4 hours | Y83: Creature touched | AB83: =IF(Z83="","",IF(AA83<>"",6+AB$3,IF(OR(Z83="STR",Z83="INT"),INT(AB$3/3) &"+d3",IF(Z83="Special","???",(4+AB$3)&"+d4")))) ->  | AC83: Utility | AJ83: =IF(OR(AND(B83<>"",B83<=$B$3),AND(C83<>"",C83<=$C$3),AND(D83<>"",D83<=$D$3),AND(E83<>"",E83<=$E$3),AND(F83<>"",F83<+$F$3),AND(G83<>"",G83<=$G$3),AND(H83<>"",H83<=$H$3)),"Y","N") -> Y
A84: Finger of Death | F84: 7 | I84: =MIN(B84:H84,J84:U84) -> 7 | V84: Causes one non heroic creature to die removing their soul and become a zombie. Once targeted a creature has then built up immunity. | W84: Std | X84: Instantaneous | Y84: 1 creature | Z84: Will | AB84: =IF(Z84="","",IF(AA84<>"",6+AB$3,IF(OR(Z84="STR",Z84="INT"),INT(AB$3/3) &"+d3",IF(Z84="Special","???",(4+AB$3)&"+d4")))) -> 12+d4 | AJ84: =IF(OR(AND(B84<>"",B84<=$B$3),AND(C84<>"",C84<=$C$3),AND(D84<>"",D84<=$D$3),AND(E84<>"",E84<=$E$3),AND(F84<>"",F84<+$F$3),AND(G84<>"",G84<=$G$3),AND(H84<>"",H84<=$H$3)),"Y","N") -> N | AK84: PHB | AO84: X
A85: Fireball | E85: 1 | I85: =MIN(B85:H85,J85:U85) -> 1 | O85: 1 | V85: Level 1: Fire finger (3d6), 1/PP spell attack Fire pellet (No save) Level 1: Burning hands (2d4+1) Cone 10' x 90° Level 3: Fireball, (3d6), 35' diameter Creates a (hemi)sphere of fire. Does not expand Level 5: Flame Strike, (6d12), 1 target Level 6: Dragon Breath (6d12) large cone 55' x 30° Level 7: Fire Storm (5d10), range = STD x10, 150' diameter Whole area is shot through with sheets of roaring flames (No save) | W85: Std | X85: Instantaneous | Y85: 1 target | Z85: Endure | AA85: Vary | AB85: =IF(Z85="","",IF(AA85<>"",6+AB$3,IF(OR(Z85="STR",Z85="INT"),INT(AB$3/3) &"+d3",IF(Z85="Special","???",(4+AB$3)&"+d4")))) -> 14 | AI85: X | AJ85: =IF(OR(AND(B85<>"",B85<=$B$3),AND(C85<>"",C85<=$C$3),AND(D85<>"",D85<=$D$3),AND(E85<>"",E85<=$E$3),AND(F85<>"",F85<+$F$3),AND(G85<>"",G85<=$G$3),AND(H85<>"",H85<=$H$3)),"Y","N") -> N | AK85: Homebrew | AN85: 5 | AO85: X
A86: Fists of stone | B86: 1 | I86: =MIN(B86:H86,J86:U86) -> 1 | P86: 1 | R86: 1 | V86: Fists turns to stone.... Melee Spell attack (Bludgeon). Cannot cast spells. | W86: Self | X86: 2d4 rounds | Y86: Self | AA86: 3d6 | AB86: =IF(Z86="","",IF(AA86<>"",6+AB$3,IF(OR(Z86="STR",Z86="INT"),INT(AB$3/3) &"+d3",IF(Z86="Special","???",(4+AB$3)&"+d4")))) ->  | AE86: B | AI86: B | AJ86: =IF(OR(AND(B86<>"",B86<=$B$3),AND(C86<>"",C86<=$C$3),AND(D86<>"",D86<=$D$3),AND(E86<>"",E86<=$E$3),AND(F86<>"",F86<+$F$3),AND(G86<>"",G86<=$G$3),AND(H86<>"",H86<=$H$3)),"Y","N") -> Y | AK86: Tome of Magic | AN86: X | AO86: X
A87: Flashbang | D87: 3 | I87: =MIN(B87:H87,J87:U87) -> 3 | S87: 3 | T87: 3 | V87: Pellet darts from fingers exploding in a bright flash. 2 saves Spot Fail = BLIND, 1st save = disadvantage Endure Fail = DAZED, 1st save = FROZEN Affects until end of next turn Level 5:Sol's Searing Orb. Range = STD, ENDURE Damage (4d8), 35' diameter | W87: Std/2 | X87: 1 round | Y87: 18' diameter | Z87: Special | AA87: 3d6 | AB87: =IF(Z87="","",IF(AA87<>"",6+AB$3,IF(OR(Z87="STR",Z87="INT"),INT(AB$3/3) &"+d3",IF(Z87="Special","???",(4+AB$3)&"+d4")))) -> 14 | AC87: Battle | AD87: Ongoing | AF87: X | AJ87: =IF(OR(AND(B87<>"",B87<=$B$3),AND(C87<>"",C87<=$C$3),AND(D87<>"",D87<=$D$3),AND(E87<>"",E87<=$E$3),AND(F87<>"",F87<+$F$3),AND(G87<>"",G87<=$G$3),AND(H87<>"",H87<=$H$3)),"Y","N") -> N | AK87: Homebrew | AN87: X
A88: Fly | G88: 3 | I88: =MIN(B88:H88,J88:U88) -> 3 | S88: 3 | T88: 3 | V88: Fly at 30' rate. Can increase for stamina as normal (psychic damage). Can move whilst ranged fighting or casting, i.e. 90' /round but skill checks are then at disadvantage. +1 level = +20' move rate | W88: Self | X88: CONCENTRATE up to 3d6 x10min | Y88: Self | AB88: =IF(Z88="","",IF(AA88<>"",6+AB$3,IF(OR(Z88="STR",Z88="INT"),INT(AB$3/3) &"+d3",IF(Z88="Special","???",(4+AB$3)&"+d4")))) ->  | AC88: Utility | AE88: 4 | AF88: X | AI88: X | AJ88: =IF(OR(AND(B88<>"",B88<=$B$3),AND(C88<>"",C88<=$C$3),AND(D88<>"",D88<=$D$3),AND(E88<>"",E88<=$E$3),AND(F88<>"",F88<+$F$3),AND(G88<>"",G88<=$G$3),AND(H88<>"",H88<=$H$3)),"Y","N") -> Y | AK88: PHB | AO88: X
A89: Fog / Dust Cloud | E89: 1 | I89: =MIN(B89:H89,J89:U89) -> 1 | J89: 1 | K89: 1 | P89: 1 | Q89: 1 | R89: 1 | S89: 1 | T89: 1 | U89: 1 | V89: Level 1: Fog Billowing vapours from central point, Underwater it causes bubbles. OBSCURED.(No save) Level 2: Freezing Fog (2d4+1) cold, HEAVILY OBSCURED Level 3: Pyrotechnics, (3d6) Sparks and choking thick black smoke from a fire, NAUSEA (Endure save), HEAVILY OBSCURED | W89: Std x10 | X89: 10 rounds | Y89: 80' daimeter | Z89: Endure | AA89: Vary | AB89: =IF(Z89="","",IF(AA89<>"",6+AB$3,IF(OR(Z89="STR",Z89="INT"),INT(AB$3/3) &"+d3",IF(Z89="Special","???",(4+AB$3)&"+d4")))) -> 14 | AF89: X | AI89: X | AJ89: =IF(OR(AND(B89<>"",B89<=$B$3),AND(C89<>"",C89<=$C$3),AND(D89<>"",D89<=$D$3),AND(E89<>"",E89<=$E$3),AND(F89<>"",F89<+$F$3),AND(G89<>"",G89<=$G$3),AND(H89<>"",H89<=$H$3)),"Y","N") -> N | AK89: PHB | AN89: X | AO89: X
A90: Fools' gold | B90: 2 | I90: =MIN(B90:H90,J90:U90) -> 2 | V90: Turn 1 lb metal to gold (1000 coins). If struck by cold iron reverts unless saves dice vs 12+ | W90: Touch | X90: 4 hours | Y90: 1lb | Z90: Spot | AB90: =IF(Z90="","",IF(AA90<>"",6+AB$3,IF(OR(Z90="STR",Z90="INT"),INT(AB$3/3) &"+d3",IF(Z90="Special","???",(4+AB$3)&"+d4")))) -> 12+d4 | AC90: Utility | AE90: B | AJ90: =IF(OR(AND(B90<>"",B90<=$B$3),AND(C90<>"",C90<=$C$3),AND(D90<>"",D90<=$D$3),AND(E90<>"",E90<=$E$3),AND(F90<>"",F90<+$F$3),AND(G90<>"",G90<=$G$3),AND(H90<>"",H90<=$H$3)),"Y","N") -> Y | AO90: X
A91: Free Action | B91: 4 | I91: =MIN(B91:H91,J91:U91) -> 4 | M91: 4 | Q91: 4 | V91: Slips through constricting effects of ropes, liquids... Casting this does not require somantics. | W91: Touch | X91: 2d4 x 10 min | Y91: Creature touched | AB91: =IF(Z91="","",IF(AA91<>"",6+AB$3,IF(OR(Z91="STR",Z91="INT"),INT(AB$3/3) &"+d3",IF(Z91="Special","???",(4+AB$3)&"+d4")))) ->  | AJ91: =IF(OR(AND(B91<>"",B91<=$B$3),AND(C91<>"",C91<=$C$3),AND(D91<>"",D91<=$D$3),AND(E91<>"",E91<=$E$3),AND(F91<>"",F91<+$F$3),AND(G91<>"",G91<=$G$3),AND(H91<>"",H91<=$H$3)),"Y","N") -> Y | AK91: PHB 2
A92: Free Mind | C92: 1 | F92: 1 | I92: =MIN(B92:H92,J92:U92) -> 1 | L92: 1 | N92: 1 | V92: Removes mind effects up to the level cast at. Typically: Level 1 : Charms / DAZED / FEAR / STUNNED Level 2 : Horror / SLOW Level 3 : Hold (If Will save) | W92: Touch | X92: Permanent | Y92: 1 creature | AB92: =IF(Z92="","",IF(AA92<>"",6+AB$3,IF(OR(Z92="STR",Z92="INT"),INT(AB$3/3) &"+d3",IF(Z92="Special","???",(4+AB$3)&"+d4")))) ->  | AG92: X | AJ92: =IF(OR(AND(B92<>"",B92<=$B$3),AND(C92<>"",C92<=$C$3),AND(D92<>"",D92<=$D$3),AND(E92<>"",E92<=$E$3),AND(F92<>"",F92<+$F$3),AND(G92<>"",G92<=$G$3),AND(H92<>"",H92<=$H$3)),"Y","N") -> Y | AK92: PHB | AL92: X
A93: Fumble | C93: 4 | I93: =MIN(B93:H93,J93:U93) -> 4 | V93: All creatures fumble, see fumble table. | W93: Std | X93: 6 rounds | Y93: 35' diameter | Z93: Will | AB93: =IF(Z93="","",IF(AA93<>"",6+AB$3,IF(OR(Z93="STR",Z93="INT"),INT(AB$3/3) &"+d3",IF(Z93="Special","???",(4+AB$3)&"+d4")))) -> 12+d4 | AJ93: =IF(OR(AND(B93<>"",B93<=$B$3),AND(C93<>"",C93<=$C$3),AND(D93<>"",D93<=$D$3),AND(E93<>"",E93<=$E$3),AND(F93<>"",F93<+$F$3),AND(G93<>"",G93<=$G$3),AND(H93<>"",H93<=$H$3)),"Y","N") -> N | AK93: PHB | AL93: x
A94: Gaseous Form | B94: 5 | I94: =MIN(B94:H94,J94:U94) -> 4 | Q94: 4 | S94: 4 | T94: 4 | V94: Assume a gaseous form, move speed 30', cannot interact with physical objects. | W94: Touch | X94: 2 hours | Y94: 1 creature | Z94: Endure | AB94: =IF(Z94="","",IF(AA94<>"",6+AB$3,IF(OR(Z94="STR",Z94="INT"),INT(AB$3/3) &"+d3",IF(Z94="Special","???",(4+AB$3)&"+d4")))) -> 12+d4 | AC94: Utility | AF94: X | AJ94: =IF(OR(AND(B94<>"",B94<=$B$3),AND(C94<>"",C94<=$C$3),AND(D94<>"",D94<=$D$3),AND(E94<>"",E94<=$E$3),AND(F94<>"",F94<+$F$3),AND(G94<>"",G94<=$G$3),AND(H94<>"",H94<=$H$3)),"Y","N") -> N | AK94: Homebrew
A95: Gate | F95: 8 | I95: =MIN(B95:H95,J95:U95) -> 8 | V95: Name the entity and something will step through the interdimensional rift. | W95: 10' | X95: Instantaneous | Y95: 8' diameter | Z95: Will | AB95: =IF(Z95="","",IF(AA95<>"",6+AB$3,IF(OR(Z95="STR",Z95="INT"),INT(AB$3/3) &"+d3",IF(Z95="Special","???",(4+AB$3)&"+d4")))) -> 12+d4 | AC95: Utility | AJ95: =IF(OR(AND(B95<>"",B95<=$B$3),AND(C95<>"",C95<=$C$3),AND(D95<>"",D95<=$D$3),AND(E95<>"",E95<=$E$3),AND(F95<>"",F95<+$F$3),AND(G95<>"",G95<=$G$3),AND(H95<>"",H95<=$H$3)),"Y","N") -> N
A96: Glassee | B96: 6 | I96: =MIN(B96:H96,J96:U96) -> 6 | Q96: 6 | R96: 6 | T96: 6 | V96: Make a section of metal/stone/wood transparent. 4" metal 1' stone, 3' wood +1 level = double thickness +1 level = One way transparent | W96: Touch | X96: Permanent | Y96: 6 sq feet | AB96: =IF(Z96="","",IF(AA96<>"",6+AB$3,IF(OR(Z96="STR",Z96="INT"),INT(AB$3/3) &"+d3",IF(Z96="Special","???",(4+AB$3)&"+d4")))) ->  | AC96: Utility | AJ96: =IF(OR(AND(B96<>"",B96<=$B$3),AND(C96<>"",C96<=$C$3),AND(D96<>"",D96<=$D$3),AND(E96<>"",E96<=$E$3),AND(F96<>"",F96<+$F$3),AND(G96<>"",G96<=$G$3),AND(H96<>"",H96<=$H$3)),"Y","N") -> N
A97: Globe of Invulnerability | F97: 4 | I97: =MIN(B97:H97,J97:U97) -> 4 | M97: 4 | V97: Faint shimmering sphere that repels spells and prayers Level 4: Minor Globe, 1-2nd level, includes effects e.g fire from nearby exploding fireball. +1 Level = +1 level prevented +1 Level = Can cast spells out (protection dropped on that segment) Level 8: Serten's Immunity, +3 to all other saves | W97: 0 | X97: 3d6 rounds | Y97: 8' diameter | AB97: =IF(Z97="","",IF(AA97<>"",6+AB$3,IF(OR(Z97="STR",Z97="INT"),INT(AB$3/3) &"+d3",IF(Z97="Special","???",(4+AB$3)&"+d4")))) ->  | AJ97: =IF(OR(AND(B97<>"",B97<=$B$3),AND(C97<>"",C97<=$C$3),AND(D97<>"",D97<=$D$3),AND(E97<>"",E97<=$E$3),AND(F97<>"",F97<+$F$3),AND(G97<>"",G97<=$G$3),AND(H97<>"",H97<=$H$3)),"Y","N") -> N | AK97: PHB
A98: Glue | B98: 1 | I98: =MIN(B98:H98,J98:U98) -> 1 | Q98: 1 | V98: Covers area with glue. Creatures < STR 2 are RESTRAINED Save = Lose one manoeuvre STR >= 2 = 1/2 speed: Save = No effect +1 level = STR +1 | W98: Std | X98: 10 minutes | Y98: 10' square | AB98: =IF(Z98="","",IF(AA98<>"",6+AB$3,IF(OR(Z98="STR",Z98="INT"),INT(AB$3/3) &"+d3",IF(Z98="Special","???",(4+AB$3)&"+d4")))) ->  | AE98: 2 | AJ98: =IF(OR(AND(B98<>"",B98<=$B$3),AND(C98<>"",C98<=$C$3),AND(D98<>"",D98<=$D$3),AND(E98<>"",E98<=$E$3),AND(F98<>"",F98<+$F$3),AND(G98<>"",G98<=$G$3),AND(H98<>"",H98<=$H$3)),"Y","N") -> Y | AK98: Homebrew | AN98: X | AO98: X
A99: Glyph of Warding | I99: =MIN(B99:H99,J99:U99) -> 3 | J99: 3 | K99: 3 | L99: 3 | M99: 3 | N99: 3 | O99: 3 | P99: 3 | Q99: 3 | R99: 3 | S99: 3 | T99: 3 | U99: 3 | V99: Visible glyph set off when passed over within 10'. Physical/magical probing does not affect it. Damage appropriate to caster (fire, cold, electricity...) Priest Takes one full round (Action, Manoeuvre...) to trace out the glyph. The symbols define the characteristics but not the words, only that there are some. +1 level = +1 round casting, sets conditions and the word that must be spoken to pass freely and/or set to physical characteristics e.g. creature type, height weight also religion. | W99: Touch | X99: 3 discharges | Y99: 1 glyph 10' radius effect | Z99: Endure | AA99: 4d8 | AB99: =IF(Z99="","",IF(AA99<>"",6+AB$3,IF(OR(Z99="STR",Z99="INT"),INT(AB$3/3) &"+d3",IF(Z99="Special","???",(4+AB$3)&"+d4")))) -> 14 | AF99: X | AJ99: =IF(OR(AND(B99<>"",B99<=$B$3),AND(C99<>"",C99<=$C$3),AND(D99<>"",D99<=$D$3),AND(E99<>"",E99<=$E$3),AND(F99<>"",F99<+$F$3),AND(G99<>"",G99<=$G$3),AND(H99<>"",H99<=$H$3)),"Y","N") -> N | AK99: PHB | AL99: X
A100: Grease | B100: 1 | I100: =MIN(B100:H100,J100:U100) -> 1 | Q100: 1 | V100: Covered by greasy slippery substance, save or slip. Permanent but loses effectiveness after each casualty. Save when starting round/ entering the area | W100: Std | X100: Permanent until activated | Y100: 10' square | Z100: Dodge | AB100: =IF(Z100="","",IF(AA100<>"",6+AB$3,IF(OR(Z100="STR",Z100="INT"),INT(AB$3/3) &"+d3",IF(Z100="Special","???",(4+AB$3)&"+d4")))) -> 12+d4 | AD100: Ongoing | AE100: X | AI100: X | AJ100: =IF(OR(AND(B100<>"",B100<=$B$3),AND(C100<>"",C100<=$C$3),AND(D100<>"",D100<=$D$3),AND(E100<>"",E100<=$E$3),AND(F100<>"",F100<+$F$3),AND(G100<>"",G100<=$G$3),AND(H100<>"",H100<=$H$3)),"Y","N") -> Y | AK100: Unearthed | AN100: X | AO100: X
A101: Guardians of Faith | I101: =MIN(B101:H101,J101:U101) -> 3 | J101: 3 | K101: 3 | L101: 3 | M101: 3 | N101: 3 | O101: 3 | P101: 3 | Q101: 3 | R101: 3 | S101: 3 | T101: 3 | U101: 3 | V101: A divine guardian emblazened with diety's symbol protects you attacking (spell attack) up to 3 hostile creatures within the area It disappears if you leave the area. As a minor action you may instead target a single creature for +1 damage level. +1 level : Guardians will stay in the spot (blocking movement) after you leave until the spell expires. | W101: 0 | X101: 2d4 rounds | Y101: 18' diameter | AA101: 2d4+1 | AB101: =IF(Z101="","",IF(AA101<>"",6+AB$3,IF(OR(Z101="STR",Z101="INT"),INT(AB$3/3) &"+d3",IF(Z101="Special","???",(4+AB$3)&"+d4")))) ->  | AF101: X | AJ101: =IF(OR(AND(B101<>"",B101<=$B$3),AND(C101<>"",C101<=$C$3),AND(D101<>"",D101<=$D$3),AND(E101<>"",E101<=$E$3),AND(F101<>"",F101<+$F$3),AND(G101<>"",G101<=$G$3),AND(H101<>"",H101<=$H$3)),"Y","N") -> N | AK101: Homebrew
A102: Guards and Wards | F102: 5 | I102: =MIN(B102:H102,J102:U102) -> 5 | J102: 5 | K102: 5 | L102: 5 | M102: 5 | N102: 5 | O102: 5 | P102: 5 | Q102: 5 | R102: 5 | S102: 5 | T102: 5 | U102: 5 | V102: Defends your (friendly) building, misting coridors, wizard locking all doors, web stairs, misdirection at junctions, whole area radiates magic equally, 10 doors become secret, 2 stinking clouds, 1x suggestion, 4 sets of dancing lights. Effects removed reappear in 2 minutes. | W102: 0 | X102: 24 hours | Y102: Special | AB102: =IF(Z102="","",IF(AA102<>"",6+AB$3,IF(OR(Z102="STR",Z102="INT"),INT(AB$3/3) &"+d3",IF(Z102="Special","???",(4+AB$3)&"+d4")))) ->  | AC102: Utility | AJ102: =IF(OR(AND(B102<>"",B102<=$B$3),AND(C102<>"",C102<=$C$3),AND(D102<>"",D102<=$D$3),AND(E102<>"",E102<=$E$3),AND(F102<>"",F102<+$F$3),AND(G102<>"",G102<=$G$3),AND(H102<>"",H102<=$H$3)),"Y","N") -> N
A103: Gust of Wind | E103: 2 | I103: =MIN(B103:H103,J103:U103) -> 2 | S103: 2 | T103: 2 | V103: Level 2: Gust, (No damage) 30 mph gust away from mage, disperses vapours. Blows flying creatures at 60' /r (i.e. 30' movement rate) Level 4: Blast (4d8) Hurls everything up to medium 30'. STUNNED Save reduces distance and damage equally +1 level = Large (9' Uruk Hai) +2 levels = Immense (13' troll) +3 levels = Giant | W103: 0 | X103: Instantaneous | Y103: Cone 45' x 16° | Z103: Dodge | AA103: 4d8 | AB103: =IF(Z103="","",IF(AA103<>"",6+AB$3,IF(OR(Z103="STR",Z103="INT"),INT(AB$3/3) &"+d3",IF(Z103="Special","???",(4+AB$3)&"+d4")))) -> 14 | AJ103: =IF(OR(AND(B103<>"",B103<=$B$3),AND(C103<>"",C103<=$C$3),AND(D103<>"",D103<=$D$3),AND(E103<>"",E103<=$E$3),AND(F103<>"",F103<+$F$3),AND(G103<>"",G103<=$G$3),AND(H103<>"",H103<=$H$3)),"Y","N") -> N | AK103: Wizards Handbook
A104: Hallucinatory Terrain | D104: 4 | I104: =MIN(B104:H104,J104:U104) -> 4 | J104: 4 | K104: 4 | V104: Terrain appears as something different. General shape remains but a precipice can appear as a slope, swamp as fields. Level 6: Mirage Arcana 1 mile diameter. Includes tactile, audible, visual, thermal and olfactory elements. Can impede movement. | W104: 0 | X104: 1 month | Y104: 10 yds sq/PP | AB104: =IF(Z104="","",IF(AA104<>"",6+AB$3,IF(OR(Z104="STR",Z104="INT"),INT(AB$3/3) &"+d3",IF(Z104="Special","???",(4+AB$3)&"+d4")))) ->  | AC104: Utility | AJ104: =IF(OR(AND(B104<>"",B104<=$B$3),AND(C104<>"",C104<=$C$3),AND(D104<>"",D104<=$D$3),AND(E104<>"",E104<=$E$3),AND(F104<>"",F104<+$F$3),AND(G104<>"",G104<=$G$3),AND(H104<>"",H104<=$H$3)),"Y","N") -> N
A105: Haste | B105: 3 | I105: =MIN(B105:H105,J105:U105) -> 3 | M105: 3 | P105: 3 | V105: Advantage to skills, initiative & dodge saves +1 defence +1 Manoeuvre Suffer lethargy afterwards for 1 round during which time they cannot take actions, is VULNERABLE to all attack forms and attackers are at advantage. | W105: Touch | X105: 2d4 rounds | Y105: 1 creature | AB105: =IF(Z105="","",IF(AA105<>"",6+AB$3,IF(OR(Z105="STR",Z105="INT"),INT(AB$3/3) &"+d3",IF(Z105="Special","???",(4+AB$3)&"+d4")))) ->  | AI105: X | AJ105: =IF(OR(AND(B105<>"",B105<=$B$3),AND(C105<>"",C105<=$C$3),AND(D105<>"",D105<=$D$3),AND(E105<>"",E105<=$E$3),AND(F105<>"",F105<+$F$3),AND(G105<>"",G105<=$G$3),AND(H105<>"",H105<=$H$3)),"Y","N") -> Y | AK105: PHB | AO105: X
A106: Heal | I106: =MIN(B106:H106,J106:U106) -> 1 | J106: 1 | K106: 1 | L106: 1 | M106: 1 | N106: 1 | O106: 1 | P106: 1 | Q106: 1 | R106: 1 | S106: 1 | T106: 1 | U106: 1 | V106: Recover 2d4+1 stamina, starting from easiest to recover. Level 2 = Hour points (3d6) Level 3 = Day points (4d8) Level 4 : Aura, 2d4 Hour points to all allies within 35' diameter for 2 rounds. Level 4: Morphine, 8 hours. Ignore the encounter effects of all critical injuries. Gain 3d6 temporary SP. All skills are at an additional -1. | W106: Touch | X106: Permanent | Y106: Creature touched | AA106: Vary | AB106: =IF(Z106="","",IF(AA106<>"",6+AB$3,IF(OR(Z106="STR",Z106="INT"),INT(AB$3/3) &"+d3",IF(Z106="Special","???",(4+AB$3)&"+d4")))) ->  | AF106: X | AG106: X | AH106: X | AJ106: =IF(OR(AND(B106<>"",B106<=$B$3),AND(C106<>"",C106<=$C$3),AND(D106<>"",D106<=$D$3),AND(E106<>"",E106<=$E$3),AND(F106<>"",F106<+$F$3),AND(G106<>"",G106<=$G$3),AND(H106<>"",H106<=$H$3)),"Y","N") -> N | AK106: PHB | AL106: X
A107: Heat/Chill Metal | E107: 2 | I107: =MIN(B107:H107,J107:U107) -> 2 | O107: 2 | R107: 2 | U107: 2 | V107: Heats / chills (dependent upon god) metal causing damage each round 1d4, 2d4, 3d6, 2d4 | W107: Std | X107: 4 rounds | Y107: 1 item | Z107: Endure | AB107: =IF(Z107="","",IF(AA107<>"",6+AB$3,IF(OR(Z107="STR",Z107="INT"),INT(AB$3/3) &"+d3",IF(Z107="Special","???",(4+AB$3)&"+d4")))) -> 12+d4 | AJ107: =IF(OR(AND(B107<>"",B107<=$B$3),AND(C107<>"",C107<=$C$3),AND(D107<>"",D107<=$D$3),AND(E107<>"",E107<=$E$3),AND(F107<>"",F107<+$F$3),AND(G107<>"",G107<=$G$3),AND(H107<>"",H107<=$H$3)),"Y","N") -> N | AK107: PHB
A108: Hide Portal | B108: 3 | I108: =MIN(B108:H108,J108:U108) -> 3 | V108: Turns a door into a secret door (radiates magic though) | W108: Touch | X108: Permanent | Y108: 1 portal <4d8sq ft | AB108: =IF(Z108="","",IF(AA108<>"",6+AB$3,IF(OR(Z108="STR",Z108="INT"),INT(AB$3/3) &"+d3",IF(Z108="Special","???",(4+AB$3)&"+d4")))) ->  | AC108: Utility | AJ108: =IF(OR(AND(B108<>"",B108<=$B$3),AND(C108<>"",C108<=$C$3),AND(D108<>"",D108<=$D$3),AND(E108<>"",E108<=$E$3),AND(F108<>"",F108<+$F$3),AND(G108<>"",G108<=$G$3),AND(H108<>"",H108<=$H$3)),"Y","N") -> Y | AO108: X
A109: Hold / Slow | C109: 3 | I109: =MIN(B109:H109,J109:U109) -> 3 | L109: 3 | N109: 3 | P109: 3 | V109: The target humanoid's mind is wrapped in mental rope making it difficult to move muscles voluntarily. Any damage will let them save again at +1 per attack. Level 3: Slow SLOWED +0 level = Medium humanoid, (Ki & Corellion also get animals ) +1 level = 2 size increases (Uruk/Trolls/ small giants) +2 level = Monsters. +3 level = (Monstrous) plants (Ki & Corellion only) Level 4: Hold = Humanoids cannot move First save = slowed : Superior = no effect. | W109: Std | X109: 5 rounds | Y109: Up to 3 medium creatures within 18' diameter Weakest first | Z109: Will | AB109: =IF(Z109="","",IF(AA109<>"",6+AB$3,IF(OR(Z109="STR",Z109="INT"),INT(AB$3/3) &"+d3",IF(Z109="Special","???",(4+AB$3)&"+d4")))) -> 12+d4 | AD109: Ongoing | AG109: X | AJ109: =IF(OR(AND(B109<>"",B109<=$B$3),AND(C109<>"",C109<=$C$3),AND(D109<>"",D109<=$D$3),AND(E109<>"",E109<=$E$3),AND(F109<>"",F109<+$F$3),AND(G109<>"",G109<=$G$3),AND(H109<>"",H109<=$H$3)),"Y","N") -> N | AK109: PHB | AN109: X
A110: Holy Word | I110: =MIN(B110:H110,J110:U110) -> 7 | J110: 7 | K110: 7 | L110: 7 | M110: 7 | N110: 7 | O110: 7 | P110: 7 | Q110: 7 | R110: 7 | S110: 7 | T110: 7 | U110: 7 | V110: Affects creatures not on their own plane. < 10 SP Killed < 20 SP Deafened < 30 SP Stunned < 40 SP Slowed >= 40 SP Blinded | W110: 0 | X110: Special | Y110: 35' diameter | Z110: Will | AB110: =IF(Z110="","",IF(AA110<>"",6+AB$3,IF(OR(Z110="STR",Z110="INT"),INT(AB$3/3) &"+d3",IF(Z110="Special","???",(4+AB$3)&"+d4")))) -> 12+d4 | AJ110: =IF(OR(AND(B110<>"",B110<=$B$3),AND(C110<>"",C110<=$C$3),AND(D110<>"",D110<=$D$3),AND(E110<>"",E110<=$E$3),AND(F110<>"",F110<+$F$3),AND(G110<>"",G110<=$G$3),AND(H110<>"",H110<=$H$3)),"Y","N") -> N | AK110: PHB
A111: Hovering Skull | F111: 3 | I111: =MIN(B111:H111,J111:U111) -> 3 | V111: See through eyes of a glowing, hovering, fanged skull. Spells can cast from skull position. Move 30' as minor action. Bite (spell attack) , Damage 3d6, SP3, Armour = 1/3 dodge 11, Ranged 20. Can be thrown when cast (up to range). | W111: Std | X111: 3d6 minutes | Y111: 1 skull | AB111: =IF(Z111="","",IF(AA111<>"",6+AB$3,IF(OR(Z111="STR",Z111="INT"),INT(AB$3/3) &"+d3",IF(Z111="Special","???",(4+AB$3)&"+d4")))) ->  | AI111: X | AJ111: =IF(OR(AND(B111<>"",B111<=$B$3),AND(C111<>"",C111<=$C$3),AND(D111<>"",D111<=$D$3),AND(E111<>"",E111<=$E$3),AND(F111<>"",F111<+$F$3),AND(G111<>"",G111<=$G$3),AND(H111<>"",H111<=$H$3)),"Y","N") -> N | AK111: Wizards Handbook | AO111: X
A112: Ice Storm | E112: 1 | I112: =MIN(B112:H112,J112:U112) -> 1 | U112: 1 | V112: Level 1: Ice Knives (2d4+1) Flying ice knives (pierce), Spell attack Miss = Splash damage within 5' (1/2 damage) ENDURE Save Fail = Target is FROZEN Level 3: Hail (2d4+1) 80' diameter. Outdoors only. Slippery DIFFICULT TERRAIN. Level 4: Ice Storm = (4d8) 35' diameter DIFFICULT TERRAIN Level 6: Dragon breath (6d12) Large cone 55' x 30° | W112: Std | X112: 1 dagger / PP | Y112: 1 target | Z112: Endure | AA112: Vary | AB112: =IF(Z112="","",IF(AA112<>"",6+AB$3,IF(OR(Z112="STR",Z112="INT"),INT(AB$3/3) &"+d3",IF(Z112="Special","???",(4+AB$3)&"+d4")))) -> 14 | AI112: X | AJ112: =IF(OR(AND(B112<>"",B112<=$B$3),AND(C112<>"",C112<=$C$3),AND(D112<>"",D112<=$D$3),AND(E112<>"",E112<=$E$3),AND(F112<>"",F112<+$F$3),AND(G112<>"",G112<=$G$3),AND(H112<>"",H112<=$H$3)),"Y","N") -> N | AK112: Wizards Handbook | AO112: X
A113: Invisibility | D113: 4 | I113: =MIN(B113:H113,J113:U113) -> 4 | Q113: 4 | V113: Renders invisible. Grants stealth=16 to sight based detection. +1 level +2 creatures in 18' diameter circle centred on the target but duration divided by the number of creatures affected. Individuals leaving the area become visible. Any attack negates it for that creature. The effect is mobile with the target. All negated when target becomes visible. | W113: Touch | X113: 5 minutes | Y113: 1 creature | Z113: Spot | AB113: =IF(Z113="","",IF(AA113<>"",6+AB$3,IF(OR(Z113="STR",Z113="INT"),INT(AB$3/3) &"+d3",IF(Z113="Special","???",(4+AB$3)&"+d4")))) -> 12+d4 | AJ113: =IF(OR(AND(B113<>"",B113<=$B$3),AND(C113<>"",C113<=$C$3),AND(D113<>"",D113<=$D$3),AND(E113<>"",E113<=$E$3),AND(F113<>"",F113<+$F$3),AND(G113<>"",G113<=$G$3),AND(H113<>"",H113<=$H$3)),"Y","N") -> N | AK113: PHB | AM113: X | AO113: X
A114: Invisibility to Animals | I114: =MIN(B114:H114,J114:U114) -> 1 | J114: 1 | K114: 1 | V114: Totally undetectable to normal animals (including giant varieties) | W114: Touch | X114: 10 minutes | Y114: 1 creature | AB114: =IF(Z114="","",IF(AA114<>"",6+AB$3,IF(OR(Z114="STR",Z114="INT"),INT(AB$3/3) &"+d3",IF(Z114="Special","???",(4+AB$3)&"+d4")))) ->  | AJ114: =IF(OR(AND(B114<>"",B114<=$B$3),AND(C114<>"",C114<=$C$3),AND(D114<>"",D114<=$D$3),AND(E114<>"",E114<=$E$3),AND(F114<>"",F114<+$F$3),AND(G114<>"",G114<=$G$3),AND(H114<>"",H114<=$H$3)),"Y","N") -> N | AK114: Unearthed
A115: Invisible Stalker | F115: 6 | I115: =MIN(B115:H115,J115:U115) -> 6 | V115: Summon an invisible stalker which are perfect trackers within one day of a targets passing. The creature is bound and will obey commands to the letter. | W115: 10' | X115: 1 task | Y115: 1 stalker | AB115: =IF(Z115="","",IF(AA115<>"",6+AB$3,IF(OR(Z115="STR",Z115="INT"),INT(AB$3/3) &"+d3",IF(Z115="Special","???",(4+AB$3)&"+d4")))) ->  | AC115: Utility | AJ115: =IF(OR(AND(B115<>"",B115<=$B$3),AND(C115<>"",C115<=$C$3),AND(D115<>"",D115<=$D$3),AND(E115<>"",E115<=$E$3),AND(F115<>"",F115<+$F$3),AND(G115<>"",G115<=$G$3),AND(H115<>"",H115<=$H$3)),"Y","N") -> N
A116: Iron Mind | C116: 2 | F116: 2 | I116: =MIN(B116:H116,J116:U116) -> 2 | L116: 2 | N116: 2 | V116: Advantage vs Charm, Hold and illusion mental effects Level 3: No one Home = Your mind appears empty +2 levels = 18' diameter | W116: Touch | X116: CONCENTRATE + 3d6 minutes | Y116: 1 creature | AB116: =IF(Z116="","",IF(AA116<>"",6+AB$3,IF(OR(Z116="STR",Z116="INT"),INT(AB$3/3) &"+d3",IF(Z116="Special","???",(4+AB$3)&"+d4")))) ->  | AI116: X | AJ116: =IF(OR(AND(B116<>"",B116<=$B$3),AND(C116<>"",C116<=$C$3),AND(D116<>"",D116<=$D$3),AND(E116<>"",E116<=$E$3),AND(F116<>"",F116<+$F$3),AND(G116<>"",G116<=$G$3),AND(H116<>"",H116<=$H$3)),"Y","N") -> N | AK116: Wizards Handbook
A117: Jebansalf's Eye of Back Seeing | H117: 3 | I117: =MIN(B117:H117,J117:U117) -> 3 | V117: Additional eye in the back of the head, prevents surprise attacks from behind | W117: Self | X117: 1 week | Y117: Self | AB117: =IF(Z117="","",IF(AA117<>"",6+AB$3,IF(OR(Z117="STR",Z117="INT"),INT(AB$3/3) &"+d3",IF(Z117="Special","???",(4+AB$3)&"+d4")))) ->  | AC117: Utility | AJ117: =IF(OR(AND(B117<>"",B117<=$B$3),AND(C117<>"",C117<=$C$3),AND(D117<>"",D117<=$D$3),AND(E117<>"",E117<=$E$3),AND(F117<>"",F117<+$F$3),AND(G117<>"",G117<=$G$3),AND(H117<>"",H117<=$H$3)),"Y","N") -> N
A118: Jump | G118: 1 | I118: =MIN(B118:H118,J118:U118) -> 1 | Q118: 1 | V118: 1 jump forward 40' or 20' vertically +1 level = +50% distance | W118: Touch | X118: 2 minutes | Y118: 1 creature | AB118: =IF(Z118="","",IF(AA118<>"",6+AB$3,IF(OR(Z118="STR",Z118="INT"),INT(AB$3/3) &"+d3",IF(Z118="Special","???",(4+AB$3)&"+d4")))) ->  | AE118: X | AI118: X | AJ118: =IF(OR(AND(B118<>"",B118<=$B$3),AND(C118<>"",C118<=$C$3),AND(D118<>"",D118<=$D$3),AND(E118<>"",E118<=$E$3),AND(F118<>"",F118<+$F$3),AND(G118<>"",G118<=$G$3),AND(H118<>"",H118<=$H$3)),"Y","N") -> Y | AK118: PHB | AN118: X | AO118: X
A119: Knock | G119: 2 | I119: =MIN(B119:H119,J119:U119) -> 2 | Q119: 2 | V119: Unlocks all simple locks, secret doors, caskets... Opens jammed / held doors / barred using 0+d3 STR (Typical barred internal door = 1 STR, Castle gate = 9 STR) +1 level = +2 STR Cast at ≥ Wizard lock level | W119: Std | X119: Permanent | Y119: 1 lock | AB119: =IF(Z119="","",IF(AA119<>"",6+AB$3,IF(OR(Z119="STR",Z119="INT"),INT(AB$3/3) &"+d3",IF(Z119="Special","???",(4+AB$3)&"+d4")))) ->  | AE119: X | AI119: X | AJ119: =IF(OR(AND(B119<>"",B119<=$B$3),AND(C119<>"",C119<=$C$3),AND(D119<>"",D119<=$D$3),AND(E119<>"",E119<=$E$3),AND(F119<>"",F119<+$F$3),AND(G119<>"",G119<=$G$3),AND(H119<>"",H119<=$H$3)),"Y","N") -> Y | AK119: PHB | AN119: X | AO119: X
A120: Leomand's Secret Chest | F120: 5 | I120: =MIN(B120:H120,J120:U120) -> 5 | V120: Hide a specially constructed chest in the ethereal plane (5,000gold minimum cost). Have a miniature replica chest which when opened calls the main chest back. The chest disappears again when closed. | W120: Special | X120: 2 months | Y120: 1 chest of 1cb foot/level | AB120: =IF(Z120="","",IF(AA120<>"",6+AB$3,IF(OR(Z120="STR",Z120="INT"),INT(AB$3/3) &"+d3",IF(Z120="Special","???",(4+AB$3)&"+d4")))) ->  | AC120: Utility | AJ120: =IF(OR(AND(B120<>"",B120<=$B$3),AND(C120<>"",C120<=$C$3),AND(D120<>"",D120<=$D$3),AND(E120<>"",E120<=$E$3),AND(F120<>"",F120<+$F$3),AND(G120<>"",G120<=$G$3),AND(H120<>"",H120<=$H$3)),"Y","N") -> N
A121: Leomands Trap | B121: 2 | C121: 2 | D121: 2 | F121: 2 | I121: =MIN(B121:H121,J121:U121) -> 2 | Q121: 2 | V121: False trap 8 to detect (20 detects as false), 18 to remove | W121: Touch | X121: Permanent | Y121: Object touched | AB121: =IF(Z121="","",IF(AA121<>"",6+AB$3,IF(OR(Z121="STR",Z121="INT"),INT(AB$3/3) &"+d3",IF(Z121="Special","???",(4+AB$3)&"+d4")))) ->  | AC121: Utility | AE121: B | AJ121: =IF(OR(AND(B121<>"",B121<=$B$3),AND(C121<>"",C121<=$C$3),AND(D121<>"",D121<=$D$3),AND(E121<>"",E121<=$E$3),AND(F121<>"",F121<+$F$3),AND(G121<>"",G121<=$G$3),AND(H121<>"",H121<=$H$3)),"Y","N") -> Y | AO121: X
A122: Levitate | G122: 1 | I122: =MIN(B122:H122,J122:U122) -> 1 | Q122: 1 | S122: 1 | T122: 1 | V122: Level 1: Feather Fall (Reaction) Lets a falling subject/object drop at 25' per round taking no damage. Can target collection of objects within a sphere or one creature. Level 2:Levitate, Levitates one creature/object 20' /r. Minor action to change altitude of target. They float gently to the ground when it ends. If they move out of range the spell wears off. Blown by wind. +1 level: = 18' diameter, split weight allowance (2 med, 4 small) +1 level = +1 size category | W122: Std | X122: 1 fall | Y122: 1 large creature or 8' diameter up to 3d6 x 10kg of objects | Z122: Dodge | AB122: =IF(Z122="","",IF(AA122<>"",6+AB$3,IF(OR(Z122="STR",Z122="INT"),INT(AB$3/3) &"+d3",IF(Z122="Special","???",(4+AB$3)&"+d4")))) -> 12+d4 | AC122: React | AD122: Ongoing | AE122: X | AF122: X | AI122: X | AJ122: =IF(OR(AND(B122<>"",B122<=$B$3),AND(C122<>"",C122<=$C$3),AND(D122<>"",D122<=$D$3),AND(E122<>"",E122<=$E$3),AND(F122<>"",F122<+$F$3),AND(G122<>"",G122<=$G$3),AND(H122<>"",H122<=$H$3)),"Y","N") -> Y | AK122: PHB | AN122: X | AO122: X
A123: Light and Dark | D123: 2 | I123: =MIN(B123:H123,J123:U123) -> 2 | J123: 2 | K123: 2 | L123: 2 | M123: 2 | N123: 2 | O123: 2 | P123: 2 | Q123: 2 | R123: 2 | S123: 2 | T123: 2 | U123: 2 | V123: Level 2: Darkness = BLIND (1d8 skills) No save Level 2: Light = Create a light, 3 possible effects Light an area similar to daylight Blinding : 1 target (disadvantage) 2d4 rounds duration ongoing Dodge save Spotlight 200' x 5' from hand +2 levels = 1 month duration | W123: Std | X123: 5 rounds | Y123: 35' diameter | Z123: Dodge | AB123: =IF(Z123="","",IF(AA123<>"",6+AB$3,IF(OR(Z123="STR",Z123="INT"),INT(AB$3/3) &"+d3",IF(Z123="Special","???",(4+AB$3)&"+d4")))) -> 12+d4 | AD123: Ongoing | AE123: X | AF123: X | AJ123: =IF(OR(AND(B123<>"",B123<=$B$3),AND(C123<>"",C123<=$C$3),AND(D123<>"",D123<=$D$3),AND(E123<>"",E123<=$E$3),AND(F123<>"",F123<+$F$3),AND(G123<>"",G123<=$G$3),AND(H123<>"",H123<=$H$3)),"Y","N") -> Y | AK123: PHB | AL123: X | AN123: X | AO123: X
A124: Lightning | D124: 1 | I124: =MIN(B124:H124,J124:U124) -> 1 | S124: 1 | T124: 1 | V124: Level 1: Shocking grasp (2d4+1) BATTLE SPELL (Touch) Level 2: Spark: (4d8) 1 target Save or FROZEN spell attack Level 3: Lightning Bolt : (4d8) 80' x 5' or 40' x 10' DODGE save Level 4: Call Lightning (5d10) Outdoors only. 18' diameter. Bolt of Lightning from the sky. Dodge Save or DAZED Level 5: Lightning Hands. (5d10), 1 nearest target, ongoing ENDURE Save = Remain standing but half movement. Fail = PRONE, 1/2 movement when standing. Major action to sustain for 1 round at 1/2 damage (Deflection / HP also sustained). Level 6: Chain Lightning (5D10) 90°x 20' cone = Nearest target struck then arcs to next nearest 5 new targets within area, will not return to previous. Remove 1d10 (any) for each new target. | W124: Std | X124: Instantaneous | Y124: 1 target | Z124: Vary | AA124: Vary | AB124: =IF(Z124="","",IF(AA124<>"",6+AB$3,IF(OR(Z124="STR",Z124="INT"),INT(AB$3/3) &"+d3",IF(Z124="Special","???",(4+AB$3)&"+d4")))) -> 14 | AE124: X | AF124: X | AJ124: =IF(OR(AND(B124<>"",B124<=$B$3),AND(C124<>"",C124<=$C$3),AND(D124<>"",D124<=$D$3),AND(E124<>"",E124<=$E$3),AND(F124<>"",F124<+$F$3),AND(G124<>"",G124<=$G$3),AND(H124<>"",H124<=$H$3)),"Y","N") -> Y | AK124: Homebrew | AO124: X
A125: Line of Protection | I125: =MIN(B125:H125,J125:U125) -> 4 | J125: 4 | K125: 4 | L125: 4 | M125: 4 | N125: 4 | O125: 4 | P125: 4 | Q125: 4 | R125: 4 | S125: 4 | T125: 4 | U125: 4 | V125: Enemies crossing the line suffer radiant damage. Ring is around yourself but static. | W125: Std /2 | X125: CONCENTRATE up to 10 minutes | Y125: 75' line or 18' dia ring | AA125: 4d8 | AB125: =IF(Z125="","",IF(AA125<>"",6+AB$3,IF(OR(Z125="STR",Z125="INT"),INT(AB$3/3) &"+d3",IF(Z125="Special","???",(4+AB$3)&"+d4")))) ->  | AJ125: =IF(OR(AND(B125<>"",B125<=$B$3),AND(C125<>"",C125<=$C$3),AND(D125<>"",D125<=$D$3),AND(E125<>"",E125<=$E$3),AND(F125<>"",F125<+$F$3),AND(G125<>"",G125<=$G$3),AND(H125<>"",H125<=$H$3)),"Y","N") -> N | AK125: Tome of Magic | AL125: X
A126: Liveoak | I126: =MIN(B126:H126,J126:U126) -> 6 | J126: 6 | V126: Causes an oak tree to become a treant, friendly tpwards the caster. | W126: Touch | X126: Permanent | Y126: 1 tree | AJ126: =IF(OR(AND(B126<>"",B126<=$B$3),AND(C126<>"",C126<=$C$3),AND(D126<>"",D126<=$D$3),AND(E126<>"",E126<=$E$3),AND(F126<>"",F126<+$F$3),AND(G126<>"",G126<=$G$3),AND(H126<>"",H126<=$H$3)),"Y","N") -> N
A127: Locate | H127: 1 | I127: =MIN(B127:H127,J127:U127) -> 1 | V127: Level 1: Direction Locates North and depth Level 2: Creature type, Running water blocks Level 3: Plant Type Level 4: Object Type +2 levels = specific creature... | W127: Self | X127: Instantaneous | Y127: 1 mile diameter | AB127: =IF(Z127="","",IF(AA127<>"",6+AB$3,IF(OR(Z127="STR",Z127="INT"),INT(AB$3/3) &"+d3",IF(Z127="Special","???",(4+AB$3)&"+d4")))) ->  | AC127: Utility | AJ127: =IF(OR(AND(B127<>"",B127<=$B$3),AND(C127<>"",C127<=$C$3),AND(D127<>"",D127<=$D$3),AND(E127<>"",E127<=$E$3),AND(F127<>"",F127<+$F$3),AND(G127<>"",G127<=$G$3),AND(H127<>"",H127<=$H$3)),"Y","N") -> N | AL127: X
A128: Magic Missile | F128: 1 | G128: 1 | I128: =MIN(B128:H128,J128:U128) -> 1 | V128: Auto hit, (Bludgeon) Level 3: Machine gun = 3 missiles . One target | W128: Std | X128: Instantaneous | Y128: 1 creature | AA128: 2d4+1 | AB128: =IF(Z128="","",IF(AA128<>"",6+AB$3,IF(OR(Z128="STR",Z128="INT"),INT(AB$3/3) &"+d3",IF(Z128="Special","???",(4+AB$3)&"+d4")))) ->  | AE128: B | AI128: X | AJ128: =IF(OR(AND(B128<>"",B128<=$B$3),AND(C128<>"",C128<=$C$3),AND(D128<>"",D128<=$D$3),AND(E128<>"",E128<=$E$3),AND(F128<>"",F128<+$F$3),AND(G128<>"",G128<=$G$3),AND(H128<>"",H128<=$H$3)),"Y","N") -> Y | AK128: PHB | AN128: X | AO128: X
A129: Magic Mouth | B129: 2 | I129: =MIN(B129:H129,J129:U129) -> 2 | V129: 25 word message triggered on a set of circumstances. Will repeat every time the circumstances occur, or may be selected to occur a certain number of times. | W129: Touch | X129: Lots | Y129: 1 object | AB129: =IF(Z129="","",IF(AA129<>"",6+AB$3,IF(OR(Z129="STR",Z129="INT"),INT(AB$3/3) &"+d3",IF(Z129="Special","???",(4+AB$3)&"+d4")))) ->  | AC129: Utility | AJ129: =IF(OR(AND(B129<>"",B129<=$B$3),AND(C129<>"",C129<=$C$3),AND(D129<>"",D129<=$D$3),AND(E129<>"",E129<=$E$3),AND(F129<>"",F129<+$F$3),AND(G129<>"",G129<=$G$3),AND(H129<>"",H129<=$H$3)),"Y","N") -> Y | AO129: X
A130: Malec-Keth's Fist | D130: 5 | E130: 5 | I130: =MIN(B130:H130,J130:U130) -> 5 | O130: 5 | V130: The caster's hands bursts into flame/ice ... Melee spell attack. The target bursts into flame suffering damage reducing by 1 level each round down to 3d6 before exinguishing. Save = Reduced damage and fire extinguished at round end | W130: 0 | X130: 10 rounds | Y130: Self | Z130: Endure | AA130: 5d10 | AB130: =IF(Z130="","",IF(AA130<>"",6+AB$3,IF(OR(Z130="STR",Z130="INT"),INT(AB$3/3) &"+d3",IF(Z130="Special","???",(4+AB$3)&"+d4")))) -> 14 | AD130: Ongoing | AJ130: =IF(OR(AND(B130<>"",B130<=$B$3),AND(C130<>"",C130<=$C$3),AND(D130<>"",D130<=$D$3),AND(E130<>"",E130<=$E$3),AND(F130<>"",F130<+$F$3),AND(G130<>"",G130<=$G$3),AND(H130<>"",H130<=$H$3)),"Y","N") -> N | AK130: Tome of Magic
A131: Meld into Stone | I131: =MIN(B131:H131,J131:U131) -> 3 | R131: 3 | V131: Absorb yourself into rock. You can see and hear what is happening outside. Minor damage (normal hammer strike) to the stone has no effect but major damage (sustained) expels you and causes 3d6 damage. | W131: Self | X131: 10 minutes | Y131: Self | Z131: Spot | AB131: =IF(Z131="","",IF(AA131<>"",6+AB$3,IF(OR(Z131="STR",Z131="INT"),INT(AB$3/3) &"+d3",IF(Z131="Special","???",(4+AB$3)&"+d4")))) -> 12+d4 | AC131: Utility | AJ131: =IF(OR(AND(B131<>"",B131<=$B$3),AND(C131<>"",C131<=$C$3),AND(D131<>"",D131<=$D$3),AND(E131<>"",E131<=$E$3),AND(F131<>"",F131<+$F$3),AND(G131<>"",G131<=$G$3),AND(H131<>"",H131<=$H$3)),"Y","N") -> N
A132: Message | C132: 1 | I132: =MIN(B132:H132,J132:U132) -> 1 | J132: 1 | K132: 1 | L132: 1 | M132: 1 | N132: 1 | O132: 1 | P132: 1 | Q132: 1 | R132: 1 | S132: 1 | T132: 1 | U132: 1 | V132: Wispered 10s message to the creature pointed at. Level 2 = Attach a short—25 word—note to a tiny creature who acts as a messenger to a previously visited location and recipient who matches general description (e.g guard). 20 miles/day for 2d4 days. Level 4 = 25 words to friendly, known target; range = same plane. Trave time approx 200 miles/day. Target hears the message in their head. Level 6 = Messages appear as a dream of any length in a friendly, known target that night. Range = any plane. | W132: Std | X132: 1 message | Y132: 1 creature | Z132: Will | AB132: =IF(Z132="","",IF(AA132<>"",6+AB$3,IF(OR(Z132="STR",Z132="INT"),INT(AB$3/3) &"+d3",IF(Z132="Special","???",(4+AB$3)&"+d4")))) -> 12+d4 | AC132: Utility | AG132: X | AJ132: =IF(OR(AND(B132<>"",B132<=$B$3),AND(C132<>"",C132<=$C$3),AND(D132<>"",D132<=$D$3),AND(E132<>"",E132<=$E$3),AND(F132<>"",F132<+$F$3),AND(G132<>"",G132<=$G$3),AND(H132<>"",H132<=$H$3)),"Y","N") -> N | AK132: Tome of Magic | AL132: X
A133: Metamorphose Liguids | B133: 3 | I133: =MIN(B133:H133,J133:U133) -> 3 | O133: 3 | U133: 3 | V133: Convert water to acid or volatile liquid. No level increase Can be used with grenade attack. If miss then DODGE save vs splash damage (minimum result of just pass). | W133: Touch | X133: Permanent | Y133: 1 bottle | Z133: Dodge | AA133: 4d8 | AB133: =IF(Z133="","",IF(AA133<>"",6+AB$3,IF(OR(Z133="STR",Z133="INT"),INT(AB$3/3) &"+d3",IF(Z133="Special","???",(4+AB$3)&"+d4")))) -> 14 | AC133: Utility | AI133: B | AJ133: =IF(OR(AND(B133<>"",B133<=$B$3),AND(C133<>"",C133<=$C$3),AND(D133<>"",D133<=$D$3),AND(E133<>"",E133<=$E$3),AND(F133<>"",F133<+$F$3),AND(G133<>"",G133<=$G$3),AND(H133<>"",H133<=$H$3)),"Y","N") -> Y
A134: Mind Read | C134: 3 | H134: 3 | I134: =MIN(B134:H134,J134:U134) -> 3 | L134: 3 | N134: 3 | Q134: 3 | V134: Level 3 = current thoughts (Save = base emotions) Surface thoughts = not detected by target Level 4 = Deeper thoughts & target realises. INT (opposed) to reject you & end spell. Touch grants disadvantage to the save. Can shift targets as a minor action (lose 1r while shifting) Level 5: Domination Telepathic control of creature 2d4 days. When the task is complete it reports to you if it can otherwise it is free. Concentration is only required when changing the target's actions. +1 level: Planar creatures | W134: Std | X134: CONCENTRATE up to 1 minute | Y134: 1 creature/round | Z134: Will | AB134: =IF(Z134="","",IF(AA134<>"",6+AB$3,IF(OR(Z134="STR",Z134="INT"),INT(AB$3/3) &"+d3",IF(Z134="Special","???",(4+AB$3)&"+d4")))) -> 12+d4 | AC134: Utility | AG134: X | AJ134: =IF(OR(AND(B134<>"",B134<=$B$3),AND(C134<>"",C134<=$C$3),AND(D134<>"",D134<=$D$3),AND(E134<>"",E134<=$E$3),AND(F134<>"",F134<+$F$3),AND(G134<>"",G134<=$G$3),AND(H134<>"",H134<=$H$3)),"Y","N") -> N
A135: Misdirection | F135: 2 | I135: =MIN(B135:H135,J135:U135) -> 2 | V135: Causes det spells (Invis, magic, lie, charm) to give a desired result, excl scrying | W135: Std | X135: 1 day | Y135: 1 creature/object | Z135: Will | AB135: =IF(Z135="","",IF(AA135<>"",6+AB$3,IF(OR(Z135="STR",Z135="INT"),INT(AB$3/3) &"+d3",IF(Z135="Special","???",(4+AB$3)&"+d4")))) -> 12+d4 | AC135: Utility | AJ135: =IF(OR(AND(B135<>"",B135<=$B$3),AND(C135<>"",C135<=$C$3),AND(D135<>"",D135<=$D$3),AND(E135<>"",E135<=$E$3),AND(F135<>"",F135<+$F$3),AND(G135<>"",G135<=$G$3),AND(H135<>"",H135<=$H$3)),"Y","N") -> N | AO135: X
A136: Mistaken Missive | B136: 2 | I136: =MIN(B136:H136,J136:U136) -> 2 | Q136: 2 | V136: Moves the letters on a page to read something else (Password protected) | W136: Touch | X136: Permanent | Y136: 2d4 pages | AB136: =IF(Z136="","",IF(AA136<>"",6+AB$3,IF(OR(Z136="STR",Z136="INT"),INT(AB$3/3) &"+d3",IF(Z136="Special","???",(4+AB$3)&"+d4")))) ->  | AC136: Utility | AE136: B | AJ136: =IF(OR(AND(B136<>"",B136<=$B$3),AND(C136<>"",C136<=$C$3),AND(D136<>"",D136<=$D$3),AND(E136<>"",E136<=$E$3),AND(F136<>"",F136<+$F$3),AND(G136<>"",G136<=$G$3),AND(H136<>"",H136<=$H$3)),"Y","N") -> Y | AK136: PHB | AO136: X
A137: Modify Memory | I137: =MIN(B137:H137,J137:U137) -> 3 | L137: 3 | N137: 3 | V137: Blanks previous 2d4 minutes of memory, Cannot negate charm… Forget: (save=no effect) +1 level = 10' diameter area of effect +2 levels = Modify or replace with new memories | W137: Std | X137: Permanent | Y137: 1 creature | Z137: Will | AB137: =IF(Z137="","",IF(AA137<>"",6+AB$3,IF(OR(Z137="STR",Z137="INT"),INT(AB$3/3) &"+d3",IF(Z137="Special","???",(4+AB$3)&"+d4")))) -> 12+d4 | AC137: Utility | AG137: X | AJ137: =IF(OR(AND(B137<>"",B137<=$B$3),AND(C137<>"",C137<=$C$3),AND(D137<>"",D137<=$D$3),AND(E137<>"",E137<=$E$3),AND(F137<>"",F137<+$F$3),AND(G137<>"",G137<=$G$3),AND(H137<>"",H137<=$H$3)),"Y","N") -> N
A138: Mordenkainen's Faithful Hound | F138: 5 | I138: =MIN(B138:H138,J138:U138) -> 5 | V138: Phantom watchdog only the mage can see. Barks if anything larger than a cat approaches without saying the password. It can see invisible/ethereal but ignores illusions. It attcks by itself using the catser's Spell attack (pierce). It cannot be attacked but can be dispelled. Caster must stay within 100'. Lasts 1 round per remaining hour once activated. | W138: 0 | X138: 12 hours | Y138: 80' diameter | AA138: 4d8 | AB138: =IF(Z138="","",IF(AA138<>"",6+AB$3,IF(OR(Z138="STR",Z138="INT"),INT(AB$3/3) &"+d3",IF(Z138="Special","???",(4+AB$3)&"+d4")))) ->  | AC138: Utility | AJ138: =IF(OR(AND(B138<>"",B138<=$B$3),AND(C138<>"",C138<=$C$3),AND(D138<>"",D138<=$D$3),AND(E138<>"",E138<=$E$3),AND(F138<>"",F138<+$F$3),AND(G138<>"",G138<=$G$3),AND(H138<>"",H138<=$H$3)),"Y","N") -> N
A139: Mordenkainen's Magnificent Mansion | F139: 2 | I139: =MIN(B139:H139,J139:U139) -> 2 | V139: Extradimensional dwellings bigger on the inside. Caster cannot leave. Level 2: Rope Trick, Rope rises and leads to a space for 1 character. Collapses when caster lets go of the rope. Level 4: Tiny hut: 6 person hut (looks appropriate e.g. wood/cloth but windows don't open) at normal temp. Level 5 : Sturdy cottage doors wizard locked, chimney grated and alarmed, crude furniture, 8 creatures Level 7 Mansion: with one entrance that shimmers faintly when open. You can close the portal if within 30'. Contains enough food for a banquet with translucent staff (can't attack) +1 level = +2 characters | W139: Std | X139: 1 day | Y139: 1 mansion | AB139: =IF(Z139="","",IF(AA139<>"",6+AB$3,IF(OR(Z139="STR",Z139="INT"),INT(AB$3/3) &"+d3",IF(Z139="Special","???",(4+AB$3)&"+d4")))) ->  | AC139: Utility | AJ139: =IF(OR(AND(B139<>"",B139<=$B$3),AND(C139<>"",C139<=$C$3),AND(D139<>"",D139<=$D$3),AND(E139<>"",E139<=$E$3),AND(F139<>"",F139<+$F$3),AND(G139<>"",G139<=$G$3),AND(H139<>"",H139<=$H$3)),"Y","N") -> N | AO139: X
A140: Mordenkainen's Private sanctum | F140: 5 | I140: =MIN(B140:H140,J140:U140) -> 5 | V140: Private room, windows go cloudy. No sound passes the barrier Area may apear dark & foggy Divination prevented across the barrier. Teleporting prevented across the barrier Planar travel impossible inside the barrier | W140: 0 | X140: 1 day | Y140: 1 room ~400 sq ft | AB140: =IF(Z140="","",IF(AA140<>"",6+AB$3,IF(OR(Z140="STR",Z140="INT"),INT(AB$3/3) &"+d3",IF(Z140="Special","???",(4+AB$3)&"+d4")))) ->  | AC140: Utility | AJ140: =IF(OR(AND(B140<>"",B140<=$B$3),AND(C140<>"",C140<=$C$3),AND(D140<>"",D140<=$D$3),AND(E140<>"",E140<=$E$3),AND(F140<>"",F140<+$F$3),AND(G140<>"",G140<=$G$3),AND(H140<>"",H140<=$H$3)),"Y","N") -> N
A141: Mordenkainen's Sword | G141: 6 | I141: =MIN(B141:H141,J141:U141) -> 6 | V141: Sword of force. Minor action to attack each round as a spell attack doing slashing damage. Can move anywhere within range | W141: Std | X141: CONCENTRATE up to 3d6 rounds | Y141: 1 sword | AA141: 5d10 | AB141: =IF(Z141="","",IF(AA141<>"",6+AB$3,IF(OR(Z141="STR",Z141="INT"),INT(AB$3/3) &"+d3",IF(Z141="Special","???",(4+AB$3)&"+d4")))) ->  | AJ141: =IF(OR(AND(B141<>"",B141<=$B$3),AND(C141<>"",C141<=$C$3),AND(D141<>"",D141<=$D$3),AND(E141<>"",E141<=$E$3),AND(F141<>"",F141<+$F$3),AND(G141<>"",G141<=$G$3),AND(H141<>"",H141<=$H$3)),"Y","N") -> N | AK141: Unearthed
A142: Murdock's Feathery Flyer | B142: 1 | I142: =MIN(B142:H142,J142:U142) -> 1 | V142: Grows wings and may glide at ~5:1 (normal weight allowance), 4SP on landing save vs acrobatics (12). Speed/angle =20' along, 4' down per second (200' / round) | W142: Self | X142: 1 glide | Y142: Self | AB142: =IF(Z142="","",IF(AA142<>"",6+AB$3,IF(OR(Z142="STR",Z142="INT"),INT(AB$3/3) &"+d3",IF(Z142="Special","???",(4+AB$3)&"+d4")))) ->  | AE142: X | AI142: X | AJ142: =IF(OR(AND(B142<>"",B142<=$B$3),AND(C142<>"",C142<=$C$3),AND(D142<>"",D142<=$D$3),AND(E142<>"",E142<=$E$3),AND(F142<>"",F142<+$F$3),AND(G142<>"",G142<=$G$3),AND(H142<>"",H142<=$H$3)),"Y","N") -> Y | AK142: Tome of Magic | AN142: X | AO142: X
A143: Non-Detection | F143: 4 | I143: =MIN(B143:H143,J143:U143) -> 3 | Q143: 3 | V143: Invisible to divination spells (including scrying) and magic items up to level cast at +1. Potions count as 3rd, items as 5th. | W143: Touch | X143: 24 hours | Y143: 1 creature | AB143: =IF(Z143="","",IF(AA143<>"",6+AB$3,IF(OR(Z143="STR",Z143="INT"),INT(AB$3/3) &"+d3",IF(Z143="Special","???",(4+AB$3)&"+d4")))) ->  | AC143: Utility | AJ143: =IF(OR(AND(B143<>"",B143<=$B$3),AND(C143<>"",C143<=$C$3),AND(D143<>"",D143<=$D$3),AND(E143<>"",E143<=$E$3),AND(F143<>"",F143<+$F$3),AND(G143<>"",G143<=$G$3),AND(H143<>"",H143<=$H$3)),"Y","N") -> N | AO143: X
A144: Nystul's Magic Aura | B144: 1 | I144: =MIN(B144:H144,J144:U144) -> 1 | V144: Object gets a magical aura of a specific type Level 2: Area, 1 room <3d6 x 100sq ft | W144: Touch | X144: Permanent | Y144: 1 object | AB144: =IF(Z144="","",IF(AA144<>"",6+AB$3,IF(OR(Z144="STR",Z144="INT"),INT(AB$3/3) &"+d3",IF(Z144="Special","???",(4+AB$3)&"+d4")))) ->  | AC144: Utility | AE144: B | AI144: B | AJ144: =IF(OR(AND(B144<>"",B144<=$B$3),AND(C144<>"",C144<=$C$3),AND(D144<>"",D144<=$D$3),AND(E144<>"",E144<=$E$3),AND(F144<>"",F144<+$F$3),AND(G144<>"",G144<=$G$3),AND(H144<>"",H144<=$H$3)),"Y","N") -> Y | AO144: X
A145: Opportune Moment | H145: 1 | I145: =MIN(B145:H145,J145:U145) -> 1 | V145: The mage spots an unexpected opening and has initiative of 1. (Expires if asleep) | W145: Self | X145: 1 action within 1 day | Y145: Self | AB145: =IF(Z145="","",IF(AA145<>"",6+AB$3,IF(OR(Z145="STR",Z145="INT"),INT(AB$3/3) &"+d3",IF(Z145="Special","???",(4+AB$3)&"+d4")))) ->  | AC145: Utility | AJ145: =IF(OR(AND(B145<>"",B145<=$B$3),AND(C145<>"",C145<=$C$3),AND(D145<>"",D145<=$D$3),AND(E145<>"",E145<=$E$3),AND(F145<>"",F145<+$F$3),AND(G145<>"",G145<=$G$3),AND(H145<>"",H145<=$H$3)),"Y","N") -> N | AK145: Homebrew | AL145: x
A146: Otherspace | I146: =MIN(B146:H146,J146:U146) -> 6 | L146: 6 | N146: 6 | Q146: 6 | V146: Undetectable extradimensional space, may enter and leave at will. Can see and hear everything but cannot cast spells or affect anyone / anything. | W146: Self | X146: 8 hours | Y146: Self | AB146: =IF(Z146="","",IF(AA146<>"",6+AB$3,IF(OR(Z146="STR",Z146="INT"),INT(AB$3/3) &"+d3",IF(Z146="Special","???",(4+AB$3)&"+d4")))) ->  | AJ146: =IF(OR(AND(B146<>"",B146<=$B$3),AND(C146<>"",C146<=$C$3),AND(D146<>"",D146<=$D$3),AND(E146<>"",E146<=$E$3),AND(F146<>"",F146<+$F$3),AND(G146<>"",G146<=$G$3),AND(H146<>"",H146<=$H$3)),"Y","N") -> N | AK146: PHB
A147: Otiluke's Freezing Sphere | E147: 6 | I147: =MIN(B147:H147,J147:U147) -> 6 | U147: 6 | V147: Creates a small sphere of ice, Throw up to range or can be passed to another creature to hurl, sling... When it impacts it shatters causing a wave of cold to spread out. Water will freeze to 6" depth for 1 minute (sufficient for 5000 lb creatures to walk on). Swimming creatures failing a DEX save are trapped until they make a STR (6) save. Can be set to cause a Wall of Ice instead | W147: Std | X147: 1 round | Y147: 80' daimeter | Z147: Endure | AA147: 5d10 | AB147: =IF(Z147="","",IF(AA147<>"",6+AB$3,IF(OR(Z147="STR",Z147="INT"),INT(AB$3/3) &"+d3",IF(Z147="Special","???",(4+AB$3)&"+d4")))) -> 14 | AJ147: =IF(OR(AND(B147<>"",B147<=$B$3),AND(C147<>"",C147<=$C$3),AND(D147<>"",D147<=$D$3),AND(E147<>"",E147<=$E$3),AND(F147<>"",F147<+$F$3),AND(G147<>"",G147<=$G$3),AND(H147<>"",H147<=$H$3)),"Y","N") -> N | AK147: PHB
A148: Otiluke's Resiliant Sphere | G148: 4 | I148: =MIN(B148:H148,J148:U148) -> 4 | V148: Globe of force to capture a small enough target. Nothing can pass through. Can be rolled/moved by inside/outside characters. If not large enough to encompass a target it fails. If entrapped save vs STR=7 ongoing | W148: Std | X148: 5 rounds | Y148: 2'+1' diameter/PP | Z148: Dodge | AB148: =IF(Z148="","",IF(AA148<>"",6+AB$3,IF(OR(Z148="STR",Z148="INT"),INT(AB$3/3) &"+d3",IF(Z148="Special","???",(4+AB$3)&"+d4")))) -> 12+d4 | AJ148: =IF(OR(AND(B148<>"",B148<=$B$3),AND(C148<>"",C148<=$C$3),AND(D148<>"",D148<=$D$3),AND(E148<>"",E148<=$E$3),AND(F148<>"",F148<+$F$3),AND(G148<>"",G148<=$G$3),AND(H148<>"",H148<=$H$3)),"Y","N") -> Y | AK148: Unearthed
A149: Pass without Trace | I149: =MIN(B149:H149,J149:U149) -> 1 | J149: 1 | K149: 1 | V149: Creatures within the area leave no tracks, including scent, over snow, mud or other terrain. | W149: 0 | X149: d4 hours | Y149: 35' diameter | AB149: =IF(Z149="","",IF(AA149<>"",6+AB$3,IF(OR(Z149="STR",Z149="INT"),INT(AB$3/3) &"+d3",IF(Z149="Special","???",(4+AB$3)&"+d4")))) ->  | AC149: Utility | AJ149: =IF(OR(AND(B149<>"",B149<=$B$3),AND(C149<>"",C149<=$C$3),AND(D149<>"",D149<=$D$3),AND(E149<>"",E149<=$E$3),AND(F149<>"",F149<+$F$3),AND(G149<>"",G149<=$G$3),AND(H149<>"",H149<=$H$3)),"Y","N") -> N | AK149: PHB
A150: Passwall | B150: 5 | I150: =MIN(B150:H150,J150:U150) -> 5 | Q150: 5 | R150: 5 | V150: 5' wide x 8' high passage in stone/wood walls. | W150: Touch | X150: 1 hour | Y150: 3d6 feet long | AB150: =IF(Z150="","",IF(AA150<>"",6+AB$3,IF(OR(Z150="STR",Z150="INT"),INT(AB$3/3) &"+d3",IF(Z150="Special","???",(4+AB$3)&"+d4")))) ->  | AC150: Utility | AJ150: =IF(OR(AND(B150<>"",B150<=$B$3),AND(C150<>"",C150<=$C$3),AND(D150<>"",D150<=$D$3),AND(E150<>"",E150<=$E$3),AND(F150<>"",F150<+$F$3),AND(G150<>"",G150<=$G$3),AND(H150<>"",H150<=$H$3)),"Y","N") -> N | AK150: PHB
A151: Past life | H151: 2 | I151: =MIN(B151:H151,J151:U151) -> 2 | V151: Mental image of target's past life's important moments flashing before them. | W151: Touch | X151: Special | Y151: 1 creature | AB151: =IF(Z151="","",IF(AA151<>"",6+AB$3,IF(OR(Z151="STR",Z151="INT"),INT(AB$3/3) &"+d3",IF(Z151="Special","???",(4+AB$3)&"+d4")))) ->  | AC151: Utility | AJ151: =IF(OR(AND(B151<>"",B151<=$B$3),AND(C151<>"",C151<=$C$3),AND(D151<>"",D151<=$D$3),AND(E151<>"",E151<=$E$3),AND(F151<>"",F151<+$F$3),AND(G151<>"",G151<=$G$3),AND(H151<>"",H151<=$H$3)),"Y","N") -> N
A152: Patternweave | H152: 1 | I152: =MIN(B152:H152,J152:U152) -> 1 | V152: Make sense of chaos, broken items | W152: Std | X152: 1 minute | Y152: 35' diameter | AB152: =IF(Z152="","",IF(AA152<>"",6+AB$3,IF(OR(Z152="STR",Z152="INT"),INT(AB$3/3) &"+d3",IF(Z152="Special","???",(4+AB$3)&"+d4")))) ->  | AC152: Utility | AJ152: =IF(OR(AND(B152<>"",B152<=$B$3),AND(C152<>"",C152<=$C$3),AND(D152<>"",D152<=$D$3),AND(E152<>"",E152<=$E$3),AND(F152<>"",F152<+$F$3),AND(G152<>"",G152<=$G$3),AND(H152<>"",H152<=$H$3)),"Y","N") -> N | AL152: x
A153: Phantasmal Force | D153: 1 | I153: =MIN(B153:H153,J153:U153) -> 1 | V153: Level 1: Phantasmal Force, Create Illusions. Illusions can move as long as they stay within range. Creatures can use a Minor action for an additional save. Save means illusions are translucent, you can still make out the outline but they have no effect. Level 2: Mirror image d3+1 duplicates of the caster appears next to them. Determine which is attacked before the attack roll. Attacks against duplicates are at advantage using defence 12. A duplicate is destroyed when it takes any damage. Spot check each round to work out which is the real one. Level 5 : Programmed Illusion activates upon a set of circumstances (unknown limit to number of times). Dormant for up to 30 minutes after appearing. Trigger based on visual/audible conditions within 30'. Concentration not required. Level 6 : Veil, 1 acre for 1 day. Change the apperance so that only a true sight can tell the difference. Concentration not required. | W153: 120' | X153: CONCENTRATE up to 10 minutes | Y153: 35' diameter | Z153: Spot | AB153: =IF(Z153="","",IF(AA153<>"",6+AB$3,IF(OR(Z153="STR",Z153="INT"),INT(AB$3/3) &"+d3",IF(Z153="Special","???",(4+AB$3)&"+d4")))) -> 12+d4 | AE153: B | AJ153: =IF(OR(AND(B153<>"",B153<=$B$3),AND(C153<>"",C153<=$C$3),AND(D153<>"",D153<=$D$3),AND(E153<>"",E153<=$E$3),AND(F153<>"",F153<+$F$3),AND(G153<>"",G153<=$G$3),AND(H153<>"",H153<=$H$3)),"Y","N") -> Y | AK153: PHB | AN153: X
A154: Phase Door | B154: 7 | I154: =MIN(B154:H154,J154:U154) -> 7 | V154: The caster & target can move out of phase with the surroundings and therefore move through non-magical substances at will. They need to stay together. | W154: Touch | X154: 3 uses within 10 minutes | Y154: Creature touched + caster | AB154: =IF(Z154="","",IF(AA154<>"",6+AB$3,IF(OR(Z154="STR",Z154="INT"),INT(AB$3/3) &"+d3",IF(Z154="Special","???",(4+AB$3)&"+d4")))) ->  | AC154: Utility | AJ154: =IF(OR(AND(B154<>"",B154<=$B$3),AND(C154<>"",C154<=$C$3),AND(D154<>"",D154<=$D$3),AND(E154<>"",E154<=$E$3),AND(F154<>"",F154<+$F$3),AND(G154<>"",G154<=$G$3),AND(H154<>"",H154<=$H$3)),"Y","N") -> N | AK154: PHB
A155: Piercing Shriek | B155: 4 | I155: =MIN(B155:H155,J155:U155) -> 4 | L155: 4 | N155: 4 | V155: Ear deafening shriek that also shatters non-magical brittle items < 5kg. Stone or similar creatures save at disadvantage. | W155: 0 | X155: 1 round | Y155: Cone 20' x 90° | Z155: Endure | AA155: 4d8 | AB155: =IF(Z155="","",IF(AA155<>"",6+AB$3,IF(OR(Z155="STR",Z155="INT"),INT(AB$3/3) &"+d3",IF(Z155="Special","???",(4+AB$3)&"+d4")))) -> 14 | AG155: X | AJ155: =IF(OR(AND(B155<>"",B155<=$B$3),AND(C155<>"",C155<=$C$3),AND(D155<>"",D155<=$D$3),AND(E155<>"",E155<=$E$3),AND(F155<>"",F155<+$F$3),AND(G155<>"",G155<=$G$3),AND(H155<>"",H155<=$H$3)),"Y","N") -> Y | AK155: Homebrew
A156: Polymorph | B156: 4 | I156: =MIN(B156:H156,J156:U156) -> 4 | V156: Target takes on physical non-magical properties of new creature up to 2 sizes different (bulk may increases effective size) Gnome < Human > Uruk (8.5') > Troll (13') > Giant (19') A fit but injured giant > a fit but injured chicken. When killed, return to original form at original stamina less any excess taken. Innate magical abilities are retained. Mind is retained unless fumbled save) Save daily, fumble = permanent. No save if cast on oneself (cannot fumble either). +1 Level = +2 sizes +1 Level between class Mammal > bird / fish +2 Levels > Insect +3 Levels between class prime material > demon / elemental | W156: Std /2 | X156: 2 weeks | Y156: 1 creature | Z156: Endure | AB156: =IF(Z156="","",IF(AA156<>"",6+AB$3,IF(OR(Z156="STR",Z156="INT"),INT(AB$3/3) &"+d3",IF(Z156="Special","???",(4+AB$3)&"+d4")))) -> 12+d4 | AD156: Ongoing daily | AE156: X | AJ156: =IF(OR(AND(B156<>"",B156<=$B$3),AND(C156<>"",C156<=$C$3),AND(D156<>"",D156<=$D$3),AND(E156<>"",E156<=$E$3),AND(F156<>"",F156<+$F$3),AND(G156<>"",G156<=$G$3),AND(H156<>"",H156<=$H$3)),"Y","N") -> Y | AK156: PHB
A157: Power Word | C157: 4 | I157: =MIN(B157:H157,J157:U157) -> 4 | L157: 4 | N157: 4 | V157: Level 4: Deafen: -2 Alertness (-2 def). 1st save = -1 Alert/defence Level 6: Stun: Mental attack stuns all creatures within the area. The save level of success reduces the effect using the stun table. Level 7: Blind Blinds all in the area weakest first up to 150SP total. BLINDED, Save at disadvantage Level 8: Kill: Slays creatures up to 500SP weakest first. Use of an HP grants a saving throw. | W157: Std | X157: 1 day | Y157: 35' diameter | Z157: Will | AB157: =IF(Z157="","",IF(AA157<>"",6+AB$3,IF(OR(Z157="STR",Z157="INT"),INT(AB$3/3) &"+d3",IF(Z157="Special","???",(4+AB$3)&"+d4")))) -> 12+d4 | AD157: Ongoing hourly | AG157: X | AJ157: =IF(OR(AND(B157<>"",B157<=$B$3),AND(C157<>"",C157<=$C$3),AND(D157<>"",D157<=$D$3),AND(E157<>"",E157<=$E$3),AND(F157<>"",F157<+$F$3),AND(G157<>"",G157<=$G$3),AND(H157<>"",H157<=$H$3)),"Y","N") -> N | AK157: PHB | AO157: X
A158: Predict weather | I158: =MIN(B158:H158,J158:U158) -> 1 | J158: 1 | K158: 1 | T158: 1 | V158: Determines the weather in the locale | W158: Sight | X158: 1 week | Y158: 10 mile radius | AB158: =IF(Z158="","",IF(AA158<>"",6+AB$3,IF(OR(Z158="STR",Z158="INT"),INT(AB$3/3) &"+d3",IF(Z158="Special","???",(4+AB$3)&"+d4")))) ->  | AC158: Utility | AJ158: =IF(OR(AND(B158<>"",B158<=$B$3),AND(C158<>"",C158<=$C$3),AND(D158<>"",D158<=$D$3),AND(E158<>"",E158<=$E$3),AND(F158<>"",F158<+$F$3),AND(G158<>"",G158<=$G$3),AND(H158<>"",H158<=$H$3)),"Y","N") -> N | AK158: PHB
A159: Prismatic Sphere | F159: 8 | I159: =MIN(B159:H159,J159:U159) -> 8 | V159: Scintillating wall or sphere that blinds when looked at. Wall at least 5' high or a sphere 35' radius. Designated creatures can pass through. Each layer must be destroyed in turn Within 20' = Blinded 1 minute Red: Non-magical missiles - Cone of cold : 20SP Orange: Magical missiles - Gust of wind : 40SP Yellow: Poisons/gasses/petrification - Disentegrate :80SP Green: Breath weapons - Passwall : Poisoned Blue: Scrying and mental attacks - Magic missile : Petrified Indigo: Spells - Continual light : Insane Violet: Force field - Dispel magic : Plane travel) | W159: Std | X159: 5 hours | Y159: 1000 sq feet | Z159: Will | AB159: =IF(Z159="","",IF(AA159<>"",6+AB$3,IF(OR(Z159="STR",Z159="INT"),INT(AB$3/3) &"+d3",IF(Z159="Special","???",(4+AB$3)&"+d4")))) -> 12+d4 | AJ159: =IF(OR(AND(B159<>"",B159<=$B$3),AND(C159<>"",C159<=$C$3),AND(D159<>"",D159<=$D$3),AND(E159<>"",E159<=$E$3),AND(F159<>"",F159<+$F$3),AND(G159<>"",G159<=$G$3),AND(H159<>"",H159<=$H$3)),"Y","N") -> N | AK159: PHB
A160: Prismatic Spray | B160: 7 | I160: =MIN(B160:H160,J160:U160) -> 7 | V160: Flickering collection of light beams. Creatures are struck by 1 or more All creatures save or blinded. 1. Red: 20SP 2. Orange: 40SP 3. Yellow: 80SP 4. Green: Poisoned 5. Blue: Petrified 6. Indigo: Insane 7. Violet Sent to another plane 8. Roll twice | W160: 0 | X160: Instantaneous | Y160: Plane 70 x 15' wide | Z160: Endure | AB160: =IF(Z160="","",IF(AA160<>"",6+AB$3,IF(OR(Z160="STR",Z160="INT"),INT(AB$3/3) &"+d3",IF(Z160="Special","???",(4+AB$3)&"+d4")))) -> 12+d4 | AJ160: =IF(OR(AND(B160<>"",B160<=$B$3),AND(C160<>"",C160<=$C$3),AND(D160<>"",D160<=$D$3),AND(E160<>"",E160<=$E$3),AND(F160<>"",F160<+$F$3),AND(G160<>"",G160<=$G$3),AND(H160<>"",H160<=$H$3)),"Y","N") -> N | AK160: PHB
A161: Protection from Cantrips | F161: 2 | I161: =MIN(B161:H161,J161:U161) -> 2 | V161: Cannot be affected by cantrips | W161: Self | X161: 1 month | Y161: Self | AB161: =IF(Z161="","",IF(AA161<>"",6+AB$3,IF(OR(Z161="STR",Z161="INT"),INT(AB$3/3) &"+d3",IF(Z161="Special","???",(4+AB$3)&"+d4")))) ->  | AC161: Utility | AI161: B | AJ161: =IF(OR(AND(B161<>"",B161<=$B$3),AND(C161<>"",C161<=$C$3),AND(D161<>"",D161<=$D$3),AND(E161<>"",E161<=$E$3),AND(F161<>"",F161<+$F$3),AND(G161<>"",G161<=$G$3),AND(H161<>"",H161<=$H$3)),"Y","N") -> N | AO161: X
A162: Protection from Creatures | I162: =MIN(B162:H162,J162:U162) -> 2 | J162: 2 | K162: 2 | L162: 2 | N162: 2 | Q162: 2 | U162: 2 | V162: Barrier repels small normal (non-intelligent) creatures of the type specified: Those already in the area are at disadvantage. Level 2 : Vermin Level 3 : Natural animals (Bahrie, Ki, Corellion) Level 4 : Plants (Bahrie, Ki, Corellion) +1 level = +2 size categories | W162: 0 | X162: d4 x 10 min | Y162: 18' diameter | AB162: =IF(Z162="","",IF(AA162<>"",6+AB$3,IF(OR(Z162="STR",Z162="INT"),INT(AB$3/3) &"+d3",IF(Z162="Special","???",(4+AB$3)&"+d4")))) ->  | AF162: X | AJ162: =IF(OR(AND(B162<>"",B162<=$B$3),AND(C162<>"",C162<=$C$3),AND(D162<>"",D162<=$D$3),AND(E162<>"",E162<=$E$3),AND(F162<>"",F162<+$F$3),AND(G162<>"",G162<=$G$3),AND(H162<>"",H162<=$H$3)),"Y","N") -> N | AK162: Tome of Magic
A163: Protection From Elements | E163: 1 | F163: 1 | I163: =MIN(B163:H163,J163:U163) -> 1 | J163: 1 | K163: 1 | L163: 1 | M163: 1 | N163: 1 | O163: 1 | P163: 1 | Q163: 1 | R163: 1 | S163: 1 | T163: 1 | U163: 1 | V163: Level 1:Endure,3d6 hours, Endure '-20 °C to +50 °C natural temperature with no ill effect, +1 save for other temperatures Following applies to one of cold / fire / lightning Level 2: Resist, Reaction (caster) RESISTANT to one type Level 3: Protect, 18' diameter barrier absorbs the first 5d10. (Wizards & Elemental Priests only) As a reaction it affects only the caster only on first round, then grows to 18' diameter. Level 4: Aura Caster immolated in green fire..., immune to 20 SP/r (before save), Melee attackers suffer 4 reflected damage. Level 7: Enhanced Aura IMMUNE to one type for 10 hours +1 level = Touch | W163: Touch | X163: CONCENTRATE up to 2d4 min | Y163: Caster / 18' diameter | AB163: =IF(Z163="","",IF(AA163<>"",6+AB$3,IF(OR(Z163="STR",Z163="INT"),INT(AB$3/3) &"+d3",IF(Z163="Special","???",(4+AB$3)&"+d4")))) ->  | AC163: Battle | AF163: X | AH163: X | AI163: X | AJ163: =IF(OR(AND(B163<>"",B163<=$B$3),AND(C163<>"",C163<=$C$3),AND(D163<>"",D163<=$D$3),AND(E163<>"",E163<=$E$3),AND(F163<>"",F163<+$F$3),AND(G163<>"",G163<=$G$3),AND(H163<>"",H163<=$H$3)),"Y","N") -> Y | AK163: PHB | AL163: X | AO163: X
A164: Protection from Gods | I164: =MIN(B164:H164,J164:U164) -> 1 | J164: 1 | K164: 1 | L164: 1 | M164: 1 | N164: 1 | O164: 1 | P164: 1 | Q164: 1 | R164: 1 | S164: 1 | T164: 1 | U164: 1 | V164: Level 1: Evil +1 defence, +1 save against truly evil creatures. This is effective against intelligent undead and creatures with an association with the planes of hell. +2 levels = 18' diameter +2 levels = +1 save +2 levels = RESISTANT to damage | W164: Touch | X164: 3d6 rounds | Y164: 1 creature | AB164: =IF(Z164="","",IF(AA164<>"",6+AB$3,IF(OR(Z164="STR",Z164="INT"),INT(AB$3/3) &"+d3",IF(Z164="Special","???",(4+AB$3)&"+d4")))) ->  | AJ164: =IF(OR(AND(B164<>"",B164<=$B$3),AND(C164<>"",C164<=$C$3),AND(D164<>"",D164<=$D$3),AND(E164<>"",E164<=$E$3),AND(F164<>"",F164<+$F$3),AND(G164<>"",G164<=$G$3),AND(H164<>"",H164<=$H$3)),"Y","N") -> N | AK164: PHB | AL164: X | AN164: B
A165: Protection from Normal Missiles | G165: 3 | I165: =MIN(B165:H165,J165:U165) -> 3 | P165: 3 | T165: 3 | V165: Reaction (caster): Immune to normal non-magical missiles, 1/2 damage from large / magical. Thor only works outside | W165: Touch | X165: 3d6 minutes | Y165: Creature touched | AB165: =IF(Z165="","",IF(AA165<>"",6+AB$3,IF(OR(Z165="STR",Z165="INT"),INT(AB$3/3) &"+d3",IF(Z165="Special","???",(4+AB$3)&"+d4")))) ->  | AC165: React | AE165: X | AJ165: =IF(OR(AND(B165<>"",B165<=$B$3),AND(C165<>"",C165<=$C$3),AND(D165<>"",D165<=$D$3),AND(E165<>"",E165<=$E$3),AND(F165<>"",F165<+$F$3),AND(G165<>"",G165<=$G$3),AND(H165<>"",H165<=$H$3)),"Y","N") -> Y | AK165: PHB | AN165: X
A166: Protection from Planes | F166: 2 | V166: +1 defence, +1 save against creatures from other planes. +2 levels = 18' diameter +2 levels = +1 save | W166: Touch | X166: 3d6 rounds | Y166: 1 creature | AB166: =IF(Z166="","",IF(AA166<>"",6+AB$3,IF(OR(Z166="STR",Z166="INT"),INT(AB$3/3) &"+d3",IF(Z166="Special","???",(4+AB$3)&"+d4")))) ->  | AJ166: =IF(OR(AND(B166<>"",B166<=$B$3),AND(C166<>"",C166<=$C$3),AND(D166<>"",D166<=$D$3),AND(E166<>"",E166<=$E$3),AND(F166<>"",F166<+$F$3),AND(G166<>"",G166<=$G$3),AND(H166<>"",H166<=$H$3)),"Y","N") -> N
A167: Rain-bow | B167: 4 | I167: =MIN(B167:H167,J167:U167) -> 4 | P167: 4 | T167: 4 | V167: Creates multi-hued bow that fires one arrow of each colour. x2 damage against specific creatures. Minor action to Spell attack (max twice per round) (e.g. Minor & Manoeuvre) Red Fire Orange Burrowing / earthy Yellow Acid / poison using Green Vegetable Blue Aerial / lightning Indigo Aquatic Violet Constructs / regenerating | W167: as bow | X167: 2 rounds | Y167: Special | AA167: 3d6 | AB167: =IF(Z167="","",IF(AA167<>"",6+AB$3,IF(OR(Z167="STR",Z167="INT"),INT(AB$3/3) &"+d3",IF(Z167="Special","???",(4+AB$3)&"+d4")))) ->  | AF167: X | AJ167: =IF(OR(AND(B167<>"",B167<=$B$3),AND(C167<>"",C167<=$C$3),AND(D167<>"",D167<=$D$3),AND(E167<>"",E167<=$E$3),AND(F167<>"",F167<+$F$3),AND(G167<>"",G167<=$G$3),AND(H167<>"",H167<=$H$3)),"Y","N") -> Y | AK167: Unearthed
A168: Rainbow Pattern | C168: 4 | I168: =MIN(B168:H168,J168:U168) -> 4 | V168: Hypnotic rainbow pattern that moves away at 30'/round. Creatures will follow, not into obvious danger, (e.g. over a cliff). Save if attacked Creatures passed within 5' must save but at advantage | W168: Std | X168: 5 rounds | Y168: 35' diameter | Z168: Will | AB168: =IF(Z168="","",IF(AA168<>"",6+AB$3,IF(OR(Z168="STR",Z168="INT"),INT(AB$3/3) &"+d3",IF(Z168="Special","???",(4+AB$3)&"+d4")))) -> 12+d4 | AJ168: =IF(OR(AND(B168<>"",B168<=$B$3),AND(C168<>"",C168<=$C$3),AND(D168<>"",D168<=$D$3),AND(E168<>"",E168<=$E$3),AND(F168<>"",F168<+$F$3),AND(G168<>"",G168<=$G$3),AND(H168<>"",H168<=$H$3)),"Y","N") -> N | AK168: Unearthed
A169: Ray of Enfeeblement | C169: 2 | I169: =MIN(B169:H169,J169:U169) -> 2 | V169: -1 To hit, damage -2 levels, 'Disadvantage for Strength checks. Save = -1 damage level | W169: Std | X169: 5 rounds | Y169: 1 creature | Z169: Will | AB169: =IF(Z169="","",IF(AA169<>"",6+AB$3,IF(OR(Z169="STR",Z169="INT"),INT(AB$3/3) &"+d3",IF(Z169="Special","???",(4+AB$3)&"+d4")))) -> 12+d4 | AD169: Ongoing | AJ169: =IF(OR(AND(B169<>"",B169<=$B$3),AND(C169<>"",C169<=$C$3),AND(D169<>"",D169<=$D$3),AND(E169<>"",E169<=$E$3),AND(F169<>"",F169<+$F$3),AND(G169<>"",G169<=$G$3),AND(H169<>"",H169<=$H$3)),"Y","N") -> N | AK169: PHB
A170: Reinforce | G170: 4 | I170: =MIN(B170:H170,J170:U170) -> 4 | V170: Reinforce walls/doors with an internal force plane (or unmagical rock for Moradin) preventing passwall and similar. | W170: Touch | X170: 1 month | Y170: 100' x 10' high | AB170: =IF(Z170="","",IF(AA170<>"",6+AB$3,IF(OR(Z170="STR",Z170="INT"),INT(AB$3/3) &"+d3",IF(Z170="Special","???",(4+AB$3)&"+d4")))) ->  | AC170: Utility | AJ170: =IF(OR(AND(B170<>"",B170<=$B$3),AND(C170<>"",C170<=$C$3),AND(D170<>"",D170<=$D$3),AND(E170<>"",E170<=$E$3),AND(F170<>"",F170<+$F$3),AND(G170<>"",G170<=$G$3),AND(H170<>"",H170<=$H$3)),"Y","N") -> Y | AK170: Tome of Magic
A171: Reverse Gravity | F171: 7 | I171: =MIN(B171:H171,J171:U171) -> 7 | V171: Gravity reversed within the area. Momentum will take objects out of the range to the same distance. | W171: Std | X171: 10 rounds | Y171: 30' cube | Z171: Dodge | AB171: =IF(Z171="","",IF(AA171<>"",6+AB$3,IF(OR(Z171="STR",Z171="INT"),INT(AB$3/3) &"+d3",IF(Z171="Special","???",(4+AB$3)&"+d4")))) -> 12+d4 | AJ171: =IF(OR(AND(B171<>"",B171<=$B$3),AND(C171<>"",C171<=$C$3),AND(D171<>"",D171<=$D$3),AND(E171<>"",E171<=$E$3),AND(F171<>"",F171<+$F$3),AND(G171<>"",G171<=$G$3),AND(H171<>"",H171<=$H$3)),"Y","N") -> N | AK171: PHB
A172: Rigid Thinking | C172: 3 | I172: =MIN(B172:H172,J172:U172) -> 3 | L172: 3 | N172: 3 | V172: Carries on with current action or prevent specific action (e.g. continue to attack fighter as caster walks by), Save=disadvantage | W172: Std/2 | X172: CONCENTRATE + d4 rounds | Y172: 1 creature | Z172: Will | AB172: =IF(Z172="","",IF(AA172<>"",6+AB$3,IF(OR(Z172="STR",Z172="INT"),INT(AB$3/3) &"+d3",IF(Z172="Special","???",(4+AB$3)&"+d4")))) -> 12+d4 | AC172: Utility | AG172: X | AJ172: =IF(OR(AND(B172<>"",B172<=$B$3),AND(C172<>"",C172<=$C$3),AND(D172<>"",D172<=$D$3),AND(E172<>"",E172<=$E$3),AND(F172<>"",F172<+$F$3),AND(G172<>"",G172<=$G$3),AND(H172<>"",H172<=$H$3)),"Y","N") -> N
A173: Run | B173: 1 | I173: =MIN(B173:H173,J173:U173) -> 1 | V173: May run at double walking speed for duration without tiring. This is not in battle | W173: Touch | X173: 2d4 hours | Y173: Creature touched | AB173: =IF(Z173="","",IF(AA173<>"",6+AB$3,IF(OR(Z173="STR",Z173="INT"),INT(AB$3/3) &"+d3",IF(Z173="Special","???",(4+AB$3)&"+d4")))) ->  | AC173: Utility | AE173: B | AI173: X | AJ173: =IF(OR(AND(B173<>"",B173<=$B$3),AND(C173<>"",C173<=$C$3),AND(D173<>"",D173<=$D$3),AND(E173<>"",E173<=$E$3),AND(F173<>"",F173<+$F$3),AND(G173<>"",G173<=$G$3),AND(H173<>"",H173<=$H$3)),"Y","N") -> Y | AK173: PHB | AO173: X
A174: Sacred Guardian | I174: =MIN(B174:H174,J174:U174) -> 1 | P174: 1 | V174: Priest gets a mental image if the target considers themselves to be in danger. | W174: Touch | X174: 1 week | Y174: Creature touched | AB174: =IF(Z174="","",IF(AA174<>"",6+AB$3,IF(OR(Z174="STR",Z174="INT"),INT(AB$3/3) &"+d3",IF(Z174="Special","???",(4+AB$3)&"+d4")))) ->  | AC174: Utility | AJ174: =IF(OR(AND(B174<>"",B174<=$B$3),AND(C174<>"",C174<=$C$3),AND(D174<>"",D174<=$D$3),AND(E174<>"",E174<=$E$3),AND(F174<>"",F174<+$F$3),AND(G174<>"",G174<=$G$3),AND(H174<>"",H174<=$H$3)),"Y","N") -> N
A175: Sanctury | I175: =MIN(B175:H175,J175:U175) -> 1 | J175: 1 | K175: 1 | L175: 1 | M175: 1 | N175: 1 | O175: 1 | P175: 1 | Q175: 1 | R175: 1 | S175: 1 | T175: 1 | U175: 1 | V175: Ignored if inoffensive. Save @ advantage if inadvertantly targeted. Does not allow passing guarded areas… Level 2: Circle of Privacy = 35' diameter, 1 night, area = hidden (SPOT 16) | W175: Self | X175: 5 rounds | Y175: Self | Z175: Will | AB175: =IF(Z175="","",IF(AA175<>"",6+AB$3,IF(OR(Z175="STR",Z175="INT"),INT(AB$3/3) &"+d3",IF(Z175="Special","???",(4+AB$3)&"+d4")))) -> 12+d4 | AF175: X | AG175: X | AJ175: =IF(OR(AND(B175<>"",B175<=$B$3),AND(C175<>"",C175<=$C$3),AND(D175<>"",D175<=$D$3),AND(E175<>"",E175<=$E$3),AND(F175<>"",F175<+$F$3),AND(G175<>"",G175<=$G$3),AND(H175<>"",H175<=$H$3)),"Y","N") -> N | AK175: PHB | AL175: X
A176: Screen | D176: 6 | I176: =MIN(B176:H176,J176:U176) -> 6 | L176: 6 | Q176: 6 | V176: Sets a vision in general terms for what scrying will reveal. | W176: 0 | X176: 1 month | Y176: 15 off 30' cubes | Z176: Spot | AB176: =IF(Z176="","",IF(AA176<>"",6+AB$3,IF(OR(Z176="STR",Z176="INT"),INT(AB$3/3) &"+d3",IF(Z176="Special","???",(4+AB$3)&"+d4")))) -> 12+d4 | AC176: Utility | AJ176: =IF(OR(AND(B176<>"",B176<=$B$3),AND(C176<>"",C176<=$C$3),AND(D176<>"",D176<=$D$3),AND(E176<>"",E176<=$E$3),AND(F176<>"",F176<+$F$3),AND(G176<>"",G176<=$G$3),AND(H176<>"",H176<=$H$3)),"Y","N") -> N
A177: Sequester | F177: 7 | I177: =MIN(B177:H177,J177:U177) -> 7 | V177: A willing creature/object/location can be hidden away from detection/scrying until a condition is met. The target is in suspended animation. The condition must occur within 1 mile. | W177: Touch | X177: 3 weeks | Y177: 35' diameter | AB177: =IF(Z177="","",IF(AA177<>"",6+AB$3,IF(OR(Z177="STR",Z177="INT"),INT(AB$3/3) &"+d3",IF(Z177="Special","???",(4+AB$3)&"+d4")))) ->  | AC177: Utility | AJ177: =IF(OR(AND(B177<>"",B177<=$B$3),AND(C177<>"",C177<=$C$3),AND(D177<>"",D177<=$D$3),AND(E177<>"",E177<=$E$3),AND(F177<>"",F177<+$F$3),AND(G177<>"",G177<=$G$3),AND(H177<>"",H177<=$H$3)),"Y","N") -> N
A178: Shadow Door | D178: 2 | I178: =MIN(B178:H178,J178:U178) -> 2 | V178: Illusionist appears open and pass through a secret door but instead goes invisible for 2d4r. Normal invisibility rules apply. The somantics are the reaching and opening action so no spell appears to have been cast. | W178: Std | X178: 10 minutes | Y178: 1 door | AB178: =IF(Z178="","",IF(AA178<>"",6+AB$3,IF(OR(Z178="STR",Z178="INT"),INT(AB$3/3) &"+d3",IF(Z178="Special","???",(4+AB$3)&"+d4")))) ->  | AJ178: =IF(OR(AND(B178<>"",B178<=$B$3),AND(C178<>"",C178<=$C$3),AND(D178<>"",D178<=$D$3),AND(E178<>"",E178<=$E$3),AND(F178<>"",F178<+$F$3),AND(G178<>"",G178<=$G$3),AND(H178<>"",H178<=$H$3)),"Y","N") -> Y | AK178: PHB
A179: Shadow Monsters | D179: 4 | I179: =MIN(B179:H179,J179:U179) -> 4 | V179: Creates quasi-real monster that can attack for damage. HP = Level squared. Spell attack If saved then they suffer 10% of the damage per spell level and they appear as translucent shadowy forms. Ranged attacks can't extend beyond the area. Attack of shadow stuff can be cut, pierce or bludgeon +1 level = +1 damage level. | W179: Std | X179: 5 rounds | Y179: 18' diameter | Z179: Spot | AA179: 4d8 | AB179: =IF(Z179="","",IF(AA179<>"",6+AB$3,IF(OR(Z179="STR",Z179="INT"),INT(AB$3/3) &"+d3",IF(Z179="Special","???",(4+AB$3)&"+d4")))) -> 14 | AJ179: =IF(OR(AND(B179<>"",B179<=$B$3),AND(C179<>"",C179<=$C$3),AND(D179<>"",D179<=$D$3),AND(E179<>"",E179<=$E$3),AND(F179<>"",F179<+$F$3),AND(G179<>"",G179<=$G$3),AND(H179<>"",H179<=$H$3)),"Y","N") -> N | AK179: PHB
A180: Shadow stuff | D180: 5 | I180: =MIN(B180:H180,J180:U180) -> 5 | V180: Create temporary items from hard light (vegtable, soft goods, minerals) Vegtable =4d8 hours Mineral = 3d6 hours (not gems) Metals = 3d6 x10 minutes | W180: Touch | X180: Special | Y180: 3d6 cubic feet | AB180: =IF(Z180="","",IF(AA180<>"",6+AB$3,IF(OR(Z180="STR",Z180="INT"),INT(AB$3/3) &"+d3",IF(Z180="Special","???",(4+AB$3)&"+d4")))) ->  | AC180: Utility | AJ180: =IF(OR(AND(B180<>"",B180<=$B$3),AND(C180<>"",C180<=$C$3),AND(D180<>"",D180<=$D$3),AND(E180<>"",E180<=$E$3),AND(F180<>"",F180<+$F$3),AND(G180<>"",G180<=$G$3),AND(H180<>"",H180<=$H$3)),"Y","N") -> N | AK180: Unearthed
A181: Shape Change | B181: 8 | I181: =MIN(B181:H181,J181:U181) -> 8 | V181: Assume the form of any living creature/plant gaining all abilities except magical. May change form as a minor action | W181: Self | X181: 2d4 hours | Y181: Self | AB181: =IF(Z181="","",IF(AA181<>"",6+AB$3,IF(OR(Z181="STR",Z181="INT"),INT(AB$3/3) &"+d3",IF(Z181="Special","???",(4+AB$3)&"+d4")))) ->  | AJ181: =IF(OR(AND(B181<>"",B181<=$B$3),AND(C181<>"",C181<=$C$3),AND(D181<>"",D181<=$D$3),AND(E181<>"",E181<=$E$3),AND(F181<>"",F181<+$F$3),AND(G181<>"",G181<=$G$3),AND(H181<>"",H181<=$H$3)),"Y","N") -> N | AK181: PHB
A182: Sharp weapon | B182: 2 | I182: =MIN(B182:H182,J182:U182) -> 2 | P182: 2 | Q182: 2 | V182: Gives a weapon bonus damage level. This does not make it a magic weapon. +1 level = +1 damage level. | W182: Std | X182: 2d4 rounds | Y182: 1 weapon | AB182: =IF(Z182="","",IF(AA182<>"",6+AB$3,IF(OR(Z182="STR",Z182="INT"),INT(AB$3/3) &"+d3",IF(Z182="Special","???",(4+AB$3)&"+d4")))) ->  | AI182: B | AJ182: =IF(OR(AND(B182<>"",B182<=$B$3),AND(C182<>"",C182<=$C$3),AND(D182<>"",D182<=$D$3),AND(E182<>"",E182<=$E$3),AND(F182<>"",F182<+$F$3),AND(G182<>"",G182<=$G$3),AND(H182<>"",H182<=$H$3)),"Y","N") -> Y | AK182: Homebrew | AL182: X
A183: Shield | B183: 2 | F183: 2 | G183: 2 | I183: =MIN(B183:H183,J183:U183) -> 2 | J183: 2 | K183: 2 | Q183: 2 | V183: Glowing hovering shield +1 defense vs melee & ranged (if not using a shield). Turns auto-targetting spells into requiring a spell attack +2 levels = +1 defence | W183: Self | X183: 1 encounter | Y183: Self | AB183: =IF(Z183="","",IF(AA183<>"",6+AB$3,IF(OR(Z183="STR",Z183="INT"),INT(AB$3/3) &"+d3",IF(Z183="Special","???",(4+AB$3)&"+d4")))) ->  | AC183: React | AE183: X | AI183: X | AJ183: =IF(OR(AND(B183<>"",B183<=$B$3),AND(C183<>"",C183<=$C$3),AND(D183<>"",D183<=$D$3),AND(E183<>"",E183<=$E$3),AND(F183<>"",F183<+$F$3),AND(G183<>"",G183<=$G$3),AND(H183<>"",H183<=$H$3)),"Y","N") -> Y | AK183: Homebrew
A184: Shield of Disintigration | F184: 7 | I184: =MIN(B184:H184,J184:U184) -> 7 | M184: 7 | P184: 7 | V184: Provides +3 defence. Shield hit if missed. Attacker suffers the damage. Any non-magical weapon striking must save (dice = 12) or disintigrate. | W184: Self | X184: 1 encounter | Y184: Self | Z184: Special | AA184: 5d10 | AB184: =IF(Z184="","",IF(AA184<>"",6+AB$3,IF(OR(Z184="STR",Z184="INT"),INT(AB$3/3) &"+d3",IF(Z184="Special","???",(4+AB$3)&"+d4")))) -> 14 | AJ184: =IF(OR(AND(B184<>"",B184<=$B$3),AND(C184<>"",C184<=$C$3),AND(D184<>"",D184<=$D$3),AND(E184<>"",E184<=$E$3),AND(F184<>"",F184<+$F$3),AND(G184<>"",G184<=$G$3),AND(H184<>"",H184<=$H$3)),"Y","N") -> N | AK184: Homebrew
A185: Silence | B185: 2 | C185: 2 | I185: =MIN(B185:H185,J185:U185) -> 2 | J185: 2 | K185: 2 | L185: 2 | M185: 2 | N185: 2 | O185: 2 | P185: 2 | Q185: 2 | R185: 2 | S185: 2 | T185: 2 | U185: 2 | V185: All sound is stopped. Targets an area or single object, bell/shoes.. Save = Spellcasters at disadvantage whilst in area If target at individual and theuy save it affects the area. | W185: Std | X185: 2d4 rounds | Y185: 35' diameter | AB185: =IF(Z185="","",IF(AA185<>"",6+AB$3,IF(OR(Z185="STR",Z185="INT"),INT(AB$3/3) &"+d3",IF(Z185="Special","???",(4+AB$3)&"+d4")))) ->  | AF185: X | AJ185: =IF(OR(AND(B185<>"",B185<=$B$3),AND(C185<>"",C185<=$C$3),AND(D185<>"",D185<=$D$3),AND(E185<>"",E185<=$E$3),AND(F185<>"",F185<+$F$3),AND(G185<>"",G185<=$G$3),AND(H185<>"",H185<=$H$3)),"Y","N") -> Y | AK185: PHB | AL185: X
A186: Sleep | C186: 2 | I186: =MIN(B186:H186,J186:U186) -> 2 | L186: 2 | N186: 2 | V186: Creates a soporific field, roll damage as sleep points against current total. Affects weakest first (Villains/captains... always last) Save = -1 to skills (not defence) for 1 round Takes 1 whole round of slapping to wake someone (= 1st save) | W186: Std | X186: 5 rounds | Y186: 35' diameter | Z186: Will | AA186: 5d10 | AB186: =IF(Z186="","",IF(AA186<>"",6+AB$3,IF(OR(Z186="STR",Z186="INT"),INT(AB$3/3) &"+d3",IF(Z186="Special","???",(4+AB$3)&"+d4")))) -> 14 | AD186: Ongoing | AG186: X | AJ186: =IF(OR(AND(B186<>"",B186<=$B$3),AND(C186<>"",C186<=$C$3),AND(D186<>"",D186<=$D$3),AND(E186<>"",E186<=$E$3),AND(F186<>"",F186<+$F$3),AND(G186<>"",G186<=$G$3),AND(H186<>"",H186<=$H$3)),"Y","N") -> N | AK186: PHB | AN186: 5
A187: Slow Poison / Paralysis | I187: =MIN(B187:H187,J187:U187) -> 2 | J187: 2 | K187: 2 | L187: 2 | M187: 2 | N187: 2 | O187: 2 | P187: 2 | Q187: 2 | R187: 2 | S187: 2 | T187: 2 | U187: 2 | V187: Level 2: Slow Poison, Advantage on future poison & paralysis saves. Halves existing poison rate & duration Level 3: Aura of Purity self - 18' diameter. Includes disease. Level 4: Neutralise Removes 1 non-magical poison type (Ki, Bahrie) | W187: Touch | X187: 2d4 hours | Y187: Creature touched | AB187: =IF(Z187="","",IF(AA187<>"",6+AB$3,IF(OR(Z187="STR",Z187="INT"),INT(AB$3/3) &"+d3",IF(Z187="Special","???",(4+AB$3)&"+d4")))) ->  | AC187: Utility | AF187: X | AJ187: =IF(OR(AND(B187<>"",B187<=$B$3),AND(C187<>"",C187<=$C$3),AND(D187<>"",D187<=$D$3),AND(E187<>"",E187<=$E$3),AND(F187<>"",F187<+$F$3),AND(G187<>"",G187<=$G$3),AND(H187<>"",H187<=$H$3)),"Y","N") -> N | AK187: PHB | AL187: X
A188: Speak with Dead | F188: 2 | H188: 2 | I188: =MIN(B188:H188,J188:U188) -> 2 | V188: Talk to the dead, but not undead. Once per 10 days max. 2 questions per PP. Will not know anything that happened after death. May lie if you are an enemy /hostile or because it can. | W188: Touch | X188: 2 questions/PP up to 5 minutes. | Y188: 1 creature | AB188: =IF(Z188="","",IF(AA188<>"",6+AB$3,IF(OR(Z188="STR",Z188="INT"),INT(AB$3/3) &"+d3",IF(Z188="Special","???",(4+AB$3)&"+d4")))) ->  | AC188: Utility | AJ188: =IF(OR(AND(B188<>"",B188<=$B$3),AND(C188<>"",C188<=$C$3),AND(D188<>"",D188<=$D$3),AND(E188<>"",E188<=$E$3),AND(F188<>"",F188<+$F$3),AND(G188<>"",G188<=$G$3),AND(H188<>"",H188<=$H$3)),"Y","N") -> N
A189: Spell Turning | F189: 6 | I189: =MIN(B189:H189,J189:U189) -> 6 | Q189: 6 | V189: Rebound harmlessly spells of < level cast at until capacity reached Level 7: Reflect reflect one spell back to the caster. | W189: Self | X189: CONCENTRATE 3d6 spell levels within 10 min | Y189: Self | AB189: =IF(Z189="","",IF(AA189<>"",6+AB$3,IF(OR(Z189="STR",Z189="INT"),INT(AB$3/3) &"+d3",IF(Z189="Special","???",(4+AB$3)&"+d4")))) ->  | AC189: React | AJ189: =IF(OR(AND(B189<>"",B189<=$B$3),AND(C189<>"",C189<=$C$3),AND(D189<>"",D189<=$D$3),AND(E189<>"",E189<=$E$3),AND(F189<>"",F189<+$F$3),AND(G189<>"",G189<=$G$3),AND(H189<>"",H189<=$H$3)),"Y","N") -> N | AK189: PHB 2
A190: Spider Climb | B190: 1 | I190: =MIN(B190:H190,J190:U190) -> 1 | Q190: 1 | V190: Climb smooth walls without slipping at walking speed. Walk across ceilings. | W190: Touch | X190: 10 minutes | Y190: 1 creature | AB190: =IF(Z190="","",IF(AA190<>"",6+AB$3,IF(OR(Z190="STR",Z190="INT"),INT(AB$3/3) &"+d3",IF(Z190="Special","???",(4+AB$3)&"+d4")))) ->  | AE190: X | AI190: X | AJ190: =IF(OR(AND(B190<>"",B190<=$B$3),AND(C190<>"",C190<=$C$3),AND(D190<>"",D190<=$D$3),AND(E190<>"",E190<=$E$3),AND(F190<>"",F190<+$F$3),AND(G190<>"",G190<=$G$3),AND(H190<>"",H190<=$H$3)),"Y","N") -> Y | AK190: PHB | AN190: X | AO190: X
A191: Spike Stones | E191: 2 | I191: =MIN(B191:H191,J191:U191) -> 2 | J191: 2 | K191: 2 | R191: 2 | V191: Creates camoflaged spikes on rocks. Full damage to lead creature, half to others in mined area. DIFFICULT TERRAIN, or take damage If damaged then save (ENDUR) or half movement for 1 day. | W191: Std x3 | X191: 1 1/2 hours | Y191: 80' daimeter | AA191: 4d8 | AB191: =IF(Z191="","",IF(AA191<>"",6+AB$3,IF(OR(Z191="STR",Z191="INT"),INT(AB$3/3) &"+d3",IF(Z191="Special","???",(4+AB$3)&"+d4")))) ->  | AJ191: =IF(OR(AND(B191<>"",B191<=$B$3),AND(C191<>"",C191<=$C$3),AND(D191<>"",D191<=$D$3),AND(E191<>"",E191<=$E$3),AND(F191<>"",F191<+$F$3),AND(G191<>"",G191<=$G$3),AND(H191<>"",H191<=$H$3)),"Y","N") -> N | AK191: Unearthed
A192: Squeaking Floors | I192: =MIN(B192:H192,J192:U192) -> 3 | Q192: 3 | V192: Makes the floor squeak whenever anyone steps on them | W192: Touch | X192: 1 month | Y192: 200 square feet | AB192: =IF(Z192="","",IF(AA192<>"",6+AB$3,IF(OR(Z192="STR",Z192="INT"),INT(AB$3/3) &"+d3",IF(Z192="Special","???",(4+AB$3)&"+d4")))) ->  | AC192: Utility | AJ192: =IF(OR(AND(B192<>"",B192<=$B$3),AND(C192<>"",C192<=$C$3),AND(D192<>"",D192<=$D$3),AND(E192<>"",E192<=$E$3),AND(F192<>"",F192<+$F$3),AND(G192<>"",G192<=$G$3),AND(H192<>"",H192<=$H$3)),"Y","N") -> N | AK192: PHB
A193: Sticks to Snakes | I193: =MIN(B193:H193,J193:U193) -> 4 | J193: 4 | K193: 4 | V193: Convert 7 arrow size sticks or 1 branch to snakes 7x Small poisonous snake 1x Large poisonous snake | W193: Std | X193: 1 day | Y193: 1 stick / PP | AB193: =IF(Z193="","",IF(AA193<>"",6+AB$3,IF(OR(Z193="STR",Z193="INT"),INT(AB$3/3) &"+d3",IF(Z193="Special","???",(4+AB$3)&"+d4")))) ->  | AJ193: =IF(OR(AND(B193<>"",B193<=$B$3),AND(C193<>"",C193<=$C$3),AND(D193<>"",D193<=$D$3),AND(E193<>"",E193<=$E$3),AND(F193<>"",F193<+$F$3),AND(G193<>"",G193<=$G$3),AND(H193<>"",H193<=$H$3)),"Y","N") -> N | AK193: PHB
A194: Stinking Cloud | B194: 2 | F194: 2 | I194: =MIN(B194:H194,J194:U194) -> 2 | J194: 2 | K194: 2 | Q194: 2 | V194: Level 2: Stinking cloud Yellow/green poisonous nauseating gas. OBSCURED no damage. Initial save is Spot, failing means you breathed some gas. Fail = NAUSEOUS +1r after exiting Pass = Holding breath, 1SP and -1 skill per action. ENDURE (10) rising after each action (ignoring -1 skill modifier). Level 4: Poison Spray, (3d6) instant, small cone + random poison effect Level 5:Cloudkill, (4d8) 80' diameter, HEAVILY OBSCURED | W194: Std | X194: 5 rounds | Y194: 35' diameter | Z194: Spot | AA194: Vary | AB194: =IF(Z194="","",IF(AA194<>"",6+AB$3,IF(OR(Z194="STR",Z194="INT"),INT(AB$3/3) &"+d3",IF(Z194="Special","???",(4+AB$3)&"+d4")))) -> 14 | AD194: Ongoing rising | AI194: X | AJ194: =IF(OR(AND(B194<>"",B194<=$B$3),AND(C194<>"",C194<=$C$3),AND(D194<>"",D194<=$D$3),AND(E194<>"",E194<=$E$3),AND(F194<>"",F194<+$F$3),AND(G194<>"",G194<=$G$3),AND(H194<>"",H194<=$H$3)),"Y","N") -> Y | AK194: PHB | AN194: X | AO194: X
A195: Stone to Flesh | B195: 6 | I195: =MIN(B195:H195,J195:U195) -> 6 | K195: 6 | R195: 6 | V195: Depetrify a creature, The creature emerges stunned | W195: Touch | X195: Permanent | Y195: 1 creature | AB195: =IF(Z195="","",IF(AA195<>"",6+AB$3,IF(OR(Z195="STR",Z195="INT"),INT(AB$3/3) &"+d3",IF(Z195="Special","???",(4+AB$3)&"+d4")))) ->  | AC195: Utility | AJ195: =IF(OR(AND(B195<>"",B195<=$B$3),AND(C195<>"",C195<=$C$3),AND(D195<>"",D195<=$D$3),AND(E195<>"",E195<=$E$3),AND(F195<>"",F195<+$F$3),AND(G195<>"",G195<=$G$3),AND(H195<>"",H195<=$H$3)),"Y","N") -> N | AK195: PHB
A196: Storm of Vengence | D196: 6 | I196: =MIN(B196:H196,J196:U196) -> 6 | J196: 6 | M196: 6 | S196: 6 | T196: 6 | U196: 6 | V196: A churning storm cloud Round 1: Thunder 2d4+1 and ENDURE or DEAFENED Round 2: Acid rain, 3d6 damage (ENDURE) Round 3: 4 bolts of lightning, max 1 per creature, DODGE 4d8 dmg Round 4: Hailstones. 3d6 (Bludgeon) Round 5: Freezing rain and gusts, DIFFICULT TERRAIN and HEAVILY OBSCURED Round 6: Strong winds disperse all weather effects, aerial creatures 3d6 buffeting (ENDURE) | W196: Sight | X196: 1 minute | Y196: 1/2 mile diameter | Z196: Special | AA196: lots | AB196: =IF(Z196="","",IF(AA196<>"",6+AB$3,IF(OR(Z196="STR",Z196="INT"),INT(AB$3/3) &"+d3",IF(Z196="Special","???",(4+AB$3)&"+d4")))) -> 14 | AJ196: =IF(OR(AND(B196<>"",B196<=$B$3),AND(C196<>"",C196<=$C$3),AND(D196<>"",D196<=$D$3),AND(E196<>"",E196<=$E$3),AND(F196<>"",F196<+$F$3),AND(G196<>"",G196<=$G$3),AND(H196<>"",H196<=$H$3)),"Y","N") -> N | AK196: Homebrew
A197: Suffocate | B197: 7 | I197: =MIN(B197:H197,J197:U197) -> 7 | V197: Breath is drawn out of creatures, Save = 2SP/r 1st Fail = Disadvantage on everything (Wild magic +2) 2nd fail = Unconscious until spell ends | X197: 10 rounds | Y197: 18' diameter | Z197: Endure | AB197: =IF(Z197="","",IF(AA197<>"",6+AB$3,IF(OR(Z197="STR",Z197="INT"),INT(AB$3/3) &"+d3",IF(Z197="Special","???",(4+AB$3)&"+d4")))) -> 12+d4 | AD197: Ongoing rising | AJ197: =IF(OR(AND(B197<>"",B197<=$B$3),AND(C197<>"",C197<=$C$3),AND(D197<>"",D197<=$D$3),AND(E197<>"",E197<=$E$3),AND(F197<>"",F197<+$F$3),AND(G197<>"",G197<=$G$3),AND(H197<>"",H197<=$H$3)),"Y","N") -> N | AK197: Tome of Magic
A198: Summon Creatures | F198: 2 | I198: =MIN(B198:H198,J198:U198) -> 2 | J198: 2 | K198: 2 | V198: Creature/s arrive this round and can be directed (minor). They act the next round. Minor action to direct or perform tasks. Default is to attack the nearest enemy. Level 2: Insects swarm. Action to swat or 1d3 (ignore armour). Prayers/spells@ disadvantage. Level 3 = Swarms (rats, bats, beetles...) Level 4 = Reptiles/snakes... Level 5 = Cats and dogs Level 6 = Bears, giant monster versions... | W198: Std | X198: 2d4 rounds | Y198: 35' diameter | AB198: =IF(Z198="","",IF(AA198<>"",6+AB$3,IF(OR(Z198="STR",Z198="INT"),INT(AB$3/3) &"+d3",IF(Z198="Special","???",(4+AB$3)&"+d4")))) ->  | AI198: X | AJ198: =IF(OR(AND(B198<>"",B198<=$B$3),AND(C198<>"",C198<=$C$3),AND(D198<>"",D198<=$D$3),AND(E198<>"",E198<=$E$3),AND(F198<>"",F198<+$F$3),AND(G198<>"",G198<=$G$3),AND(H198<>"",H198<=$H$3)),"Y","N") -> N | AK198: PHB
A199: Summon Mount | F199: 2 | I199: =MIN(B199:H199,J199:U199) -> 2 | V199: Summons a mount to serve. | W199: Std | X199: 2d4 hours | Y199: 1 mount | AB199: =IF(Z199="","",IF(AA199<>"",6+AB$3,IF(OR(Z199="STR",Z199="INT"),INT(AB$3/3) &"+d3",IF(Z199="Special","???",(4+AB$3)&"+d4")))) ->  | AC199: Utility | AI199: X | AJ199: =IF(OR(AND(B199<>"",B199<=$B$3),AND(C199<>"",C199<=$C$3),AND(D199<>"",D199<=$D$3),AND(E199<>"",E199<=$E$3),AND(F199<>"",F199<+$F$3),AND(G199<>"",G199<=$G$3),AND(H199<>"",H199<=$H$3)),"Y","N") -> N
A200: Sunray | I200: =MIN(B200:H200,J200:U200) -> 6 | J200: 6 | K200: 6 | L200: 6 | M200: 6 | O200: 6 | P200: 6 | R200: 6 | S200: 6 | T200: 6 | U200: 6 | V200: Beam of light from your hand causing radiant damage spell attack and BLIND ENDURE Save. Undead have disadvantage May change direction each round. Each creature can only be affected once | W200: Std | X200: CONCENTRATE up to 5 rounds | Y200: 1 creature | Z200: Endure | AA200: 6d12 | AB200: =IF(Z200="","",IF(AA200<>"",6+AB$3,IF(OR(Z200="STR",Z200="INT"),INT(AB$3/3) &"+d3",IF(Z200="Special","???",(4+AB$3)&"+d4")))) -> 14 | AJ200: =IF(OR(AND(B200<>"",B200<=$B$3),AND(C200<>"",C200<=$C$3),AND(D200<>"",D200<=$D$3),AND(E200<>"",E200<=$E$3),AND(F200<>"",F200<+$F$3),AND(G200<>"",G200<=$G$3),AND(H200<>"",H200<=$H$3)),"Y","N") -> N | AK200: Unearthed
A201: Tanglefoot | C201: 1 | I201: =MIN(B201:H201,J201:U201) -> 1 | K201: 1 | V201: Level 2:Trip over your own feet if moving faster than 1/2 speed. PRONE. | W201: Std | X201: 5 rounds | Y201: 35' diameter | Z201: Will | AB201: =IF(Z201="","",IF(AA201<>"",6+AB$3,IF(OR(Z201="STR",Z201="INT"),INT(AB$3/3) &"+d3",IF(Z201="Special","???",(4+AB$3)&"+d4")))) -> 12+d4 | AJ201: =IF(OR(AND(B201<>"",B201<=$B$3),AND(C201<>"",C201<=$C$3),AND(D201<>"",D201<=$D$3),AND(E201<>"",E201<=$E$3),AND(F201<>"",F201<+$F$3),AND(G201<>"",G201<=$G$3),AND(H201<>"",H201<=$H$3)),"Y","N") -> N | AK201: Homebrew | AN201: X | AO201: X
... 38 more rows

Sheet Rituals
X1: Grakis
B2: Alteration | C2: Emotion | D2: E-mag | E2: Elemental | F2: Conj / Abj | G2: Force | H2: Divination | I2: Level | J2: Ki | K2: Bahrie | L2: Correllion | M2: Eo | N2: Grim Reaper | O2: Hast | P2: Innana | Q2: Loki | R2: Moradin | S2: Set | T2: Thor | U2: Poseidon | V2: =X1 & "'s Rituals" -> Grakis's Rituals | X2: Casting time = 10 min / level | AB2: =VLOOKUP(X1,Mage,2,FALSE)+ VLOOKUP(X1,Mage,3,FALSE) -> 8 | AC2: Grakis | AD2: Leaphorn | AE2: Jurak | AF2: Blondin | AG2: Errol | AH2: Ella
A3: Ritual Name | B3: =VLOOKUP(X1,Mage,4,FALSE) -> 4 | C3: =VLOOKUP(X1,Mage,5,FALSE) -> 0 | D3: =VLOOKUP(X1,Mage,6,FALSE) -> 2 | E3: =VLOOKUP(X1,Mage,7,FALSE) -> 0 | F3: =VLOOKUP(X1,Mage,8,FALSE) -> 2 | G3: =VLOOKUP(X1,Mage,9,FALSE) -> 4 | H3: =VLOOKUP(X1,Mage,10,FALSE) -> 0 | V3: Ritual Description | W3: Range | X3: Duration | Y3: Area | Z3: Save Vs | AA3: Dmg | AB3: Save
A5: Beast Sense | H5: 3 | I5: =MIN(B5:H5,J5:U5) -> 3 | J5: 3 | L5: 3 | N5: 3 | Q5: 3 | V5: Can see through the beast's eyes/senses (animal not intelligent creatures). Are oblivious to your own surroundings | W5: Creature touched | X5: CONCENTRATE up to to 1 hour | Y5: 1 creature | AB5: =IF(Z5="","",IF(AA5<>"",6+#REF!,IF(OR(Z5="STR",Z5="INT"),INT(#REF!/3) &"+d3",IF(Z5="Special","???",(4+#REF!)&"+d4")))) ->  | AF5: X
A6: Abjure | I6: 4 | J6: 4 | K6: 4 | L6: 4 | M6: 4 | N6: 4 | O6: 4 | P6: 4 | Q6: 4 | R6: 4 | S6: 4 | T6: 4 | U6: 4 | V6: Return a named creature to its native plane | W6: 10' | X6: Permanent | Y6: 1 creature | AE6: X | AF6: X
A7: Astral Plane Shift | I7: 5 | J7: 5 | K7: 5 | L7: 5 | M7: 5 | N7: 5 | O7: 5 | P7: 5 | Q7: 5 | R7: 5 | S7: 5 | T7: 5 | U7: 5 | V7: Move enjoined circle of creatures to the plane. | W7: Touch | X7: Permanent | Y7: 10' diameter | AE7: X | AF7: X
A8: Astral Window | I8: 3 | J8: 3 | K8: 3 | L8: 3 | M8: 3 | N8: 3 | O8: 3 | P8: 3 | Q8: 3 | R8: 3 | S8: 3 | T8: 3 | U8: 3 | V8: See into the Astral plane and view a specific creature. | W8: 0 | X8: 1 hour | Y8: 20' diameter | AE8: X | AF8: X
A9: Augury | I9: 2 | J9: 2 | K9: 2 | L9: 2 | M9: 2 | N9: 2 | O9: 2 | P9: 2 | Q9: 2 | R9: 2 | S9: 2 | T9: 2 | U9: 2 | V9: Reading the tea leaves to determine the result of a course of action. Level 1 : up to 1 day in the future. Level 4 : up to 1 month in the future. | W9: 0 | X9: 1 day+ | AE9: X | AF9: X | AG9: X
A10: Binding | F10: 8 | I10: 8 | V10: Creates a magical restraint for an extraplanar/special creature (elemental, vampire, lycanthrope) | W10: 10 yards | X10: Special | Y10: 1 creature
A11: Blank Thoughts | I11: 3 | L11: 3 | V11: Thoughts of the affected cannot be discerned through scrying. Affects all within 20' and lasts 2d4 days. | W11: 0 | X11: 2d4 days | Y11: 20' radius | AF11: X
A12: Body Rest | I12: 4 | J12: 4 | K12: 4 | L12: 4 | M12: 4 | N12: 4 | O12: 4 | P12: 4 | Q12: 4 | R12: 4 | S12: 4 | T12: 4 | U12: 4 | V12: Full rest is twice as effective for a week. Cancelled if they are active. | W12: Touch | X12: 1 week | Y12: 1 creature | AE12: X | AF12: X
A13: Circle of Anti-Magic | F13: 8 | I13: 8 | V13: Spells can't be cast, magic items (including artifacts) don't work. | W13: 0 | X13: 2 hours | Y13: 10' radius
A14: Clairvoyance & Clairaudience | H14: 3 | I14: 3 | Q14: 3 | V14: Concentrate on a known or obvious locale & hear OR see as if there. Creates an invisible sensor (looking like a floating eye if it is seen). Requires a crystal ball or other device +1 level add sound or sight +1 level unfamiliar location +2 levels for different plane | X14: CONCENTRATE up to 3d6 minutes | Y14: Special
A15: Commune | I15: 6 | J15: 6 | K15: 6 | L15: 6 | M15: 6 | N15: 6 | O15: 6 | P15: 6 | Q15: 6 | R15: 6 | S15: 6 | T15: 6 | U15: 6 | V15: Read the bones, the answers will be correct. 1/year. | W15: 0 | X15: Instantaneous | Y15: Caster
A16: Commune with Nature | H16: 3 | I16: 3 | J16: 3 | L16: 3 | V16: Gain information about surrounding area, eg location of fresh water, towns, denizens | W16: 0 | X16: Instantaneous | Y16: 3 miles radius | AB16: =IF(Z16="","",IF(AA16<>"",6+Spells!AB$3,IF(OR(Z16="STR",Z16="INT"),INT(Spells!AB$3/3) &"+d3",IF(Z16="Special","???",(4+Spells!AB$3)&"+d4")))) ->  | AF16: X
A17: Control Weather | E17: 4 | I17: 4 | J17: 4 | S17: 4 | T17: 4 | V17: Can move by 1 factor +1 level = +1 factor Sunny Freezing Calm Clear Partly Cloudy Cold Moderate wind Haze Cloudy / Rain Temperate Strong Wind Light mist Heavy rain Hot Gale Fog Deluge Sweltering Storm Heavy fog Endurance save (10 rising) every hour to keep concentrating. | W17: 0 | X17: CONCENTRATE | Y17: 10 mile diameter | AB17: =IF(Z17="","",IF(AA17<>"",6+Spells!AB$3,IF(OR(Z17="STR",Z17="INT"),INT(Spells!AB$3/3) &"+d3",IF(Z17="Special","???",(4+Spells!AB$3)&"+d4")))) ->  | AE17: X
A18: Create Food And Water | I18: 3 | J18: 3 | K18: 3 | L18: 3 | M18: 3 | N18: 3 | O18: 3 | P18: 3 | Q18: 3 | R18: 3 | S18: 3 | T18: 3 | U18: 3 | V18: Summon the food of the gods, enough for 1 small party | W18: 0 | X18: 1 meal | Y18: 1 meal | AE18: X | AF18: X
A19: Create Golem | I19: 6 | J19: 6 | K19: 6 | L19: 6 | M19: 6 | N19: 6 | O19: 6 | P19: 6 | Q19: 6 | R19: 6 | S19: 6 | T19: 6 | U19: 6 | V19: ??? | W19: 0 | X19: Permanent | Y19: 1 creature
A20: Dispel Evil | I20: 4 | J20: 4 | K20: 4 | L20: 4 | M20: 4 | N20: 4 | O20: 4 | P20: 4 | Q20: 4 | R20: 4 | S20: 4 | T20: 4 | U20: 4 | V20: Removes the evil from an area / object. | W20: 5' | X20: Permanent | Y20: 10' square | AE20: X | AF20: X
A21: Dissension's Feast | I21: 2 | L21: 2 | V21: Eating the meal causes everyone to argue. The ritual prepares ingredients to be added to the meal. They then need to be added somehow. | W21: 0 | X21: 1 hour | Y21: 1 meal | Z21: Endure | AF21: X
A22: Elemental Plane Shift | I22: 6 | J22: 6 | K22: 6 | L22: 6 | M22: 6 | N22: 6 | O22: 6 | P22: 6 | Q22: 6 | R22: 6 | S22: 6 | T22: 6 | U22: 6 | V22: Move encircled creatures to their plane. | W22: 0 | X22: Permanent | Y22: 10' diameter
A23: Find Familiar | I23: 1 | J23: 1 | L23: 1 | V23: Summon a familiar to serve loyally. Gain 4SP from the creature whilst it is alive (lose double if it meets an untimely end). Gain an appropriate enhanced sense. Burn 100gp | W23: 0 | X23: 1 life | Y23: 1 mile radius | AF23: X
A24: Foresight | H24: 5 | I24: 5 | V24: Foresight about bad things and how to avoid | W24: 0 | X24: 1 day | Y24: Special
A25: Learn Tongue | H25: 4 | I25: 4 | J25: 4 | K25: 4 | L25: 4 | M25: 4 | N25: 4 | O25: 4 | P25: 4 | Q25: 4 | R25: 4 | S25: 4 | T25: 4 | U25: 4 | V25: Learn a tongue from a willing individual in a day. (1 / month). | AF25: X
A26: Legal Thoughts | I26: 3 | M26: 3 | V26: Force a creature to obey the letter of a specific law that applies in the area. The law must be read out | W26: 0 | X26: 1 month | Y26: 1 creature
A27: Legend Lore | H27: 3 | I27: 3 | L27: 3 | V27: Level 3: Identify an object's function & rechargeability Level 4: Remaining charges Level 5: Command words Level 5 : Legend Lore, Reveals information about a legendry person, place or item, easier if at location. Will probably be cryptic and incomplete Subsequent castings do not improve the knowledge. | W27: 0 | X27: 1 item | Y27: 1 item | AF27: X
A28: Magic Circle | F28: 3 | I28: 3 | V28: Glowing runes appear on the floor in a circle. A creature of a specific type (celestial, elemental, fey, fiend, undead) cannot enter/exit by non-magical means without a save. The creature has disadvantage whilst inside; charms, frightenings or possessions cannot take place through the boundary. | W28: Touch | X28: 2d4 x10 minutes | Y28: 10' diameter | Z28: Will
A29: Planar Binding | I29: 5 | J29: 5 | K29: 5 | L29: 5 | M29: 5 | N29: 5 | O29: 5 | P29: 5 | Q29: 5 | R29: 5 | S29: 5 | T29: 5 | U29: 5 | V29: Bind a planar creature to your service. Follow, guard… It obeys the letter of the binding but may well be hostile and attempt to subvert the binding. When the task is complete it reports to you if it can otherwise it returns to the point of binding where it remains until the spell ends. When the spell ends it returns to its own plane (1/month). | W29: Touch | X29: 1 month | Y29: 10' diameter | AE29: X | AF29: X
A30: Purify Food & Drink | I30: 1 | J30: 1 | K30: 1 | L30: 1 | M30: 1 | N30: 1 | O30: 1 | P30: 1 | Q30: 1 | R30: 1 | S30: 1 | T30: 1 | U30: 1 | V30: Make food edible | W30: Touch | X30: 1 hour | Y30: 1 meal | AE30: X | AF30: X | AG30: X
A31: Quest | I31: 5 | J31: 5 | K31: 5 | L31: 5 | M31: 5 | N31: 5 | O31: 5 | P31: 5 | Q31: 5 | R31: 5 | S31: 5 | T31: 5 | U31: 5 | V31: Send a creature on a quest that the god approves of. Target loses 1 from each saving throws each day it ignores it. Can only be removed by a priest of the same religion and higher leve | W31: Touch | X31: Permanent | Y31: 1 creature | AE31: X | AF31: X
A32: Reflecting Pool | I32: 0 | V32: Creates a scrying device from a natural pool. Scrying spells have a 25% chance of working through it. Usable once per week. Views up to your normal range but in miles not feet. | W32: Touch | X32: 2d4 rounds | Y32: 1 pool
A33: Restore Magic | B33: 5 | I33: 5 | V33: Enable charges to be applied to an object. Each charge causes 1WP which only natural rest can heal. The appropriate spell also needs to be cast. | W33: Touch | X33: Permanent | Y33: 1 object | AC33: B
A34: Shadow Engines | D34: 7 | I34: 7 | P34: 7 | V34: Create shadow siege engines (caterpaults, siege towers…) plus crew. They cause 1/2 damage. Multiple castings cannot overlap the areas. Any damage causes the engines to disappear. | W34: 0 | X34: 10 x 10 min | Y34: 2d4 engines in 1/2 mile diameter | AB34: =IF(Z34="","",IF(AA34<>"",6+#REF!,IF(OR(Z34="STR",Z34="INT"),INT(#REF!/3) &"+d3",IF(Z34="Special","???",(4+#REF!)&"+d4")))) -> 
A35: Sigil Creation | B35: 4 | I35: 4 | V35: Creates a sigil on the target. Different sigils require different specialisations | W35: Touch | X35: Permanent | Y35: 1 creature
A36: Teleportation circle | F36: 5 | I36: 5 | V36: Create a temporary circle that links to another known circle. Cast in the same place every day for a month to make a permanent one (No using it to teleport when doing this) | W36: Touch | X36: 1 round | Y36: 5' diameter
A37: Unceasing Vigilance Of The Holy Sentinel | I37: 5 | J37: 5 | K37: 5 | L37: 5 | M37: 5 | N37: 5 | O37: 5 | P37: 5 | Q37: 5 | R37: 5 | S37: 5 | T37: 5 | U37: 5 | V37: Immobile area within which the priest can see invisible and in the dark. He has no need for sustenance or rest, regenerates 1SP per hour, is immune to fear and charms. Lasts 1 week | W37: 0 | X37: 1 week | Y37: Caster | AE37: X | AF37: X
A38: Vestment Of The Gods | I38: 5 | J38: 5 | K38: 5 | L38: 5 | M38: 5 | N38: 5 | O38: 5 | P38: 5 | Q38: 5 | R38: 5 | S38: 5 | T38: 5 | U38: 5 | V38: On consecrated ground the priest's clothes act as (1/3, 1/3, 1/3) for absorption Base AC 10. Lasts 1 month. | W38: Self | X38: 1 month | Y38: Caster | AE38: X | AF38: X
A39: Vestment Of The Saints | I39: 3 | J39: 3 | K39: 3 | L39: 3 | M39: 3 | N39: 3 | O39: 3 | P39: 3 | Q39: 3 | R39: 3 | S39: 3 | T39: 3 | U39: 3 | V39: On consecrated ground the priest's clothes act as (1/2, 1/2, 1/2) for absorption Base AC 10. Lasts 1 mont | W39: Self | X39: 1 month | Y39: Caster | AE39: X | AF39: X
A40: Von Gasik's refusal | F40: 5 | I40: 5 | V40: Prevents uninvited spellcasters from entering (anybody who has their own internal power to cast mage spells). Acts as 2 levels higher against dispelling | W40: 0 | X40: 1 month | Y40: 2d4 x1000 sq feet
A41: Word Of Recall | I41: 6 | J41: 6 | K41: 6 | L41: 6 | M41: 6 | N41: 6 | O41: 6 | P41: 6 | Q41: 6 | R41: 6 | S41: 6 | T41: 6 | U41: 6 | V41: Cast at the temple, activate by thought, Optionally add a a trigger | W41: 0 | Y41: Caster

Sheet Cantrips
B1: Cantrips do not normally affect creatures in combat
A2: Grakis | B2: Cantrip Effect / reverse? | D2: Alter | E2: Emot | F2: E-m | G2: Elem | H2: C/A | I2: For | J2: Div | K2: Grakis | L2: Gleb | M2: Leaphorn
A3: Appearance | B3: Eyes glow/change colour | D3: X | K3: X | M3: X
A4: Aroma | B4: The smell of fresh cut grass… | D4: X | K4: X | M4: X
A5: Bind | B5: Puts a knot in a rope | D5: X | K5: X | M5: X
A6: Campsite | B6: Puts up your tent & bed | D6: X | K6: X | M6: X
A7: Change | B7: Parchment to cloth, apple to orange… Lasts up to 1 minute | D7: X | K7: X | M7: X
A8: Colour | B8: Restore pigments or tinge surface colour | D8: X | K8: X | M8: X
A9: Erase | B9: Remove non-magical writing froma small area | D9: X | K9: X | M9: X
A10: Flavour | B10: Salt, spice, sweeten… | D10: X | K10: X | M10: X
A11: Freshen | B11: Curdle, sour | D11: X | K11: X | M11: X
A12: Hairy | B12: Up to 6" growth | D12: X | K12: X | M12: X
A13: Stitch | B13: Better than manually done by the mage but not as good as a craftsman | D13: X | K13: X | M13: X
A14: Tangle | B14: Tangles fine thread (not rope) | D14: X | K14: X | M14: X
A15: Tie | B15: Tie or untie a simple knot | D15: X | K15: X | M15: X
A16: Tweak | B16: Tweak a person | D16: X | K16: X | M16: X
A17: Wizard Mark | B17: Permanent invisible signature | D17: X | K17: X
A18: Amaze | B18: Beguile passers by INT <0 2d4 silver per hour | E18: X
A19: Body twitch | B19: Blink, cough, giggle, scratch, yawn… | E19: X
A20: Distract | B20: Look to left or right | E20: X
A21: Dancing lights | B21: UP to 4 Glowing light 1" illuminates 3' diameter | F21: X | K21: X | L21: X
A22: Hide | B22: Small object from viewers directly in front | F22: X | K22: X | L22: X
A23: Palm | B23: Illusion of palmed object (lasts 1s) | F23: X | K23: X | L23: X
A24: Present | B24: Hides a held object which will appear in the palm. | F24: X | K24: X | L24: X
A25: Smokepuff | B25: 12" Smokepuff | F25: X | K25: X | L25: X
A26: Booming voice | B26: Voice booms | G26: X
A27: Dry / Dampen | B27: Make wood suitable for a fire, dry sodden clothes (1 held garment at a time) | G27: X | M27: X
A28: Rain | B28: A 1' rain cloud | G28: X | M28: X
A29: Firefinger | B29: 3" flame from finger | G29: X | M29: X
A30: Flicker | B30: Flames flicker/brighten/dim | G30: X | M30: X
A31: Sound | B31: Raven cry, rumble of distant thunder, group of people | G31: X | M31: X
A32: Warm/chill | B32: Change a few degrees | G32: X | M32: X
A33: Exterminate | B33: Bee, bug… | H33: X | K33: X | L33: X | M33: X
A34: Haunting noise | B34: Creak, groan, footfall… | H34: X | K34: X | L34: X | M34: X
A35: Sprout | B35: Ripen, take root, make buds flower… | H35: X | K35: X | L35: X | M35: X
A36: Summon bug | B36: Bee, spider, gnat, beetle… | H36: X | K36: X | L36: X | M36: X
A37: Trail | B37: Leave a detectable magical trail for 30 minutes | H37: X | K37: X
A38: Clean & polish | B38: Dirty | I38: X | K38: X | L38: X | M38: X
A39: Gather | B39: Gather numerous small objects, can separate a particular type | I39: X | K39: X | L39: X | M39: X
A40: Tip | B40: Tip a small object to spill contents… | I40: X | K40: X | L40: X | M40: X
A41: Open | B41: Unlocked door/window flies open | I41: X | K41: X | L41: X | M41: X
A42: No surprise | B42: +1 to all surprise saves | J42: X
A43: See it coming | B43: +1 to defense bonus when not performing an action (except dodging). | J43: X

Sheet Mages
B1: Arcane / Faith | C1: INT / WIS | D1: Alteration | E1: Emotion | F1: E-mag | G1: Elemental | H1: C/A | I1: Force | J1: Divination
A2: Grakis | B2: 5 | C2: 3 | D2: 4 | E2: 0 | F2: 2 | G2: 0 | H2: 2 | I2: 4 | J2: 0
A3: Leaphorn | B3: 5 | C3: 4 | D3: 5 | E3: 0 | F3: 0 | G3: 1 | H3: 4 | I3: 4 | J3: 0
A4: Jurak | B4: 5 | C4: 2 | D4: 0 | E4: 0 | F4: 0 | G4: 0 | H4: 0 | I4: 0 | J4: 0
A5: Blondin | B5: 5 | C5: 3 | D5: 0 | E5: 0 | F5: 0 | G5: 0 | H5: 0 | I5: 0 | J5: 0
A6: Errol | B6: 5 | C6: 2 | D6: 0 | E6: 0 | F6: 0 | G6: 0 | H6: 0 | I6: 0 | J6: 0
A7: Ella | B7: 4 | C7: 2 | D7: 0 | E7: 0 | F7: 0 | G7: 0 | H7: 0 | I7: 0 | J7: 0
A8: Villan | B8: 2 | C8: 2 | D8: 0 | E8: 0 | F8: 0 | G8: 0 | H8: 0 | I8: 0 | J8: 0
A9: Deathmage | B9: 5 | C9: 3 | D9: 2 | E9: 3 | F9: 1 | G9: 0 | H9: 5 | I9: 0 | J9: 4
A10: Shaman | B10: 0 | C10: 0
A11: Bahrie at Honshar | B11: 0 | C11: 0
A12: Book | B12: 5 | C12: 4
A13: Casper | B13: 6 | C13: 5 | D13: 6 | E13: 6 | F13: 4 | G13: 2 | H13: 8 | I13: 5 | J13: 5
A14: Maria | B14: 5 | C14: 3 | D14: 2 | E14: 5 | F14: 0 | G14: 3 | H14: 2 | I14: 2 | J14: 2
A15: Lamorna | B15: 6 | C15: 4 | D15: 0 | E15: 0 | F15: 0 | G15: 0 | H15: 0 | I15: 0 | J15: 0

Sheet Spell Area
A2: Rectangles | C2: area sq feet | H2: Targets
A3: 120 | B3: 120 | C3: =A3*B3 -> 14400 | H3: =SQRT(C3)/5 -> 24
A4: 80 | B4: 5 | C4: =A4*B4 -> 400 | H4: =SQRT(C4)/5 -> 4
A5: 40 | B5: 10 | C5: =A5*B5 -> 400 | H5: =SQRT(C5)/5 -> 4
A6: 20 | B6: 20 | C6: =A6*B6 -> 400
A7: Circles diameter | H7: 0
A8: 150 | B8: 360 | C8: =3.142*A8*A8*B8/360/4 -> 17673.75 | D8: circle | H8: =SQRT(C8)/5 -> 26.58853136
A9: 80 | B9: 360 | C9: 5027.2 | D9: circle | E9: diameter | H9: 14.18055006
A10: 33 | B10: 360 | C10: 855.4095 | D10: circle | H10: 5.8494769
A11: 27 | B11: 360 | C11: 572.6295 | D11: circle | H11: 4.785935645
A12: 17 | B12: 360 | C12: =3.142*A12*A12*B12/360/4 -> 227.0095 | D12: circle | H12: 3.013366888
A13: Cone | H13: =SQRT(C13)/5 -> 0
A14: Length | B14: Angle | F14: Truncated | H14: 0
A15: 55 | B15: 25 | C15: =3.142*A15*A15*B15/360-F15 -> 660.0381944 | D15: cone | E15: Big | F15: 0 | H15: 5.138241701
A16: 26 | B16: 90 | C16: =3.142*A16*A16*B16/360-F16 -> 505.998 | D16: cone | E16: Wide | F16: 25 | H16: 4.498879861
A17: 45 | B17: 16 | C17: =3.142*A17*A17*B17/360-F17 -> 282.78 | D17: cone | E17: Small | F17: 0 | H17: =SQRT(C17)/5 -> 3.36321275
A18: 13 | B18: 90 | C18: =3.142*A18*A18*B18/360-F18 -> 122.7495 | D18: cone | E18: Wide-small | F18: 10 | H18: =SQRT(C18)/5 -> 2.215847468

Sheet Distribution
A1: Battle
C2: Alteration | D2: Emotion | E2: E-mag | F2: Elemental | G2: C/A | H2: Force | I2: Divination | J2: level | K2: Ki | L2: Bahrie | M2: Correllion | N2: Eo | O2: Correllion 2 | P2: Hast | Q2: Innana | R2: Loki | S2: Moradin | T2: Thor 2 | U2: Thor | V2: Poseidon | W2: Shaman | Z2: Level | AA2: Ideal # spells | AB2: TP cost
B3: 1 | C3: =COUNTIFS(Spells!B$5:B$236,$B3,Spells!$AC$5:$AC$236,"Battle") -> 0 | D3: =COUNTIFS(Spells!C$5:C$236,$B3,Spells!$AC$5:$AC$236,"Battle") -> 0 | E3: =COUNTIFS(Spells!D$5:D$236,$B3,Spells!$AC$5:$AC$236,"Battle") -> 0 | F3: =COUNTIFS(Spells!E$5:E$236,$B3,Spells!$AC$5:$AC$236,"Battle") -> 1 | G3: =COUNTIFS(Spells!F$5:F$236,$B3,Spells!$AC$5:$AC$236,"Battle") -> 1 | H3: =COUNTIFS(Spells!G$5:G$236,$B3,Spells!$AC$5:$AC$236,"Battle") -> 0 | I3: =COUNTIFS(Spells!H$5:H$236,$B3,Spells!$AC$5:$AC$236,"Battle") -> 1 | J3: =COUNTIFS(Spells!I$5:I$236,$B3,Spells!$AC$5:$AC$236,"Battle") -> 5 | K3: =COUNTIFS(Spells!J$5:J$236,$B3,Spells!$AC$5:$AC$236,"Battle") -> 2 | L3: =COUNTIFS(Spells!K$5:K$236,$B3,Spells!$AC$5:$AC$236,"Battle") -> 1 | M3: =COUNTIFS(Spells!L$5:L$236,$B3,Spells!$AC$5:$AC$236,"Battle") -> 2 | N3: =COUNTIFS(Spells!M$5:M$236,$B3,Spells!$AC$5:$AC$236,"Battle") -> 5 | O3: =COUNTIFS(Spells!N$5:N$236,$B3,Spells!$AC$5:$AC$236,"Battle") -> 1 | P3: =COUNTIFS(Spells!O$5:O$236,$B3,Spells!$AC$5:$AC$236,"Battle") -> 2 | Q3: =COUNTIFS(Spells!P$5:P$236,$B3,Spells!$AC$5:$AC$236,"Battle") -> 5 | R3: =COUNTIFS(Spells!Q$5:Q$236,$B3,Spells!$AC$5:$AC$236,"Battle") -> 2 | S3: =COUNTIFS(Spells!R$5:R$236,$B3,Spells!$AC$5:$AC$236,"Battle") -> 2 | T3: =COUNTIFS(Spells!S$5:S$236,$B3,Spells!$AC$5:$AC$236,"Battle") -> 1 | U3: =COUNTIFS(Spells!T$5:T$236,$B3,Spells!$AC$5:$AC$236,"Battle") -> 1 | V3: =COUNTIFS(Spells!U$5:U$236,$B3,Spells!$AC$5:$AC$236,"Battle") -> 2 | W3: =COUNTIFS(Spells!V$5:V$236,$B3,Spells!$AC$5:$AC$236,"Battle") -> 0 | Z3: 1 | AA3: 12 | AB3: =Z3*AA3/2 -> 6
B4: 2 | C4: =COUNTIFS(Spells!B$5:B$236,$B4,Spells!$AC$5:$AC$236,"Battle") -> 2 | D4: =COUNTIFS(Spells!C$5:C$236,$B4,Spells!$AC$5:$AC$236,"Battle") -> 1 | E4: =COUNTIFS(Spells!D$5:D$236,$B4,Spells!$AC$5:$AC$236,"Battle") -> 1 | F4: =COUNTIFS(Spells!E$5:E$236,$B4,Spells!$AC$5:$AC$236,"Battle") -> 2 | G4: =COUNTIFS(Spells!F$5:F$236,$B4,Spells!$AC$5:$AC$236,"Battle") -> 1 | H4: =COUNTIFS(Spells!G$5:G$236,$B4,Spells!$AC$5:$AC$236,"Battle") -> 0 | I4: =COUNTIFS(Spells!H$5:H$236,$B4,Spells!$AC$5:$AC$236,"Battle") -> 0 | J4: =COUNTIFS(Spells!I$5:I$236,$B4,Spells!$AC$5:$AC$236,"Battle") -> 4 | K4: =COUNTIFS(Spells!J$5:J$236,$B4,Spells!$AC$5:$AC$236,"Battle") -> 3 | L4: =COUNTIFS(Spells!K$5:K$236,$B4,Spells!$AC$5:$AC$236,"Battle") -> 3 | M4: =COUNTIFS(Spells!L$5:L$236,$B4,Spells!$AC$5:$AC$236,"Battle") -> 2 | N4: =COUNTIFS(Spells!M$5:M$236,$B4,Spells!$AC$5:$AC$236,"Battle") -> 1 | O4: =COUNTIFS(Spells!N$5:N$236,$B4,Spells!$AC$5:$AC$236,"Battle") -> 2 | P4: =COUNTIFS(Spells!O$5:O$236,$B4,Spells!$AC$5:$AC$236,"Battle") -> 1 | Q4: =COUNTIFS(Spells!P$5:P$236,$B4,Spells!$AC$5:$AC$236,"Battle") -> 2 | R4: =COUNTIFS(Spells!Q$5:Q$236,$B4,Spells!$AC$5:$AC$236,"Battle") -> 2 | S4: =COUNTIFS(Spells!R$5:R$236,$B4,Spells!$AC$5:$AC$236,"Battle") -> 1 | T4: =COUNTIFS(Spells!S$5:S$236,$B4,Spells!$AC$5:$AC$236,"Battle") -> 2 | U4: =COUNTIFS(Spells!T$5:T$236,$B4,Spells!$AC$5:$AC$236,"Battle") -> 2 | V4: =COUNTIFS(Spells!U$5:U$236,$B4,Spells!$AC$5:$AC$236,"Battle") -> 2 | W4: =COUNTIFS(Spells!V$5:V$236,$B4,Spells!$AC$5:$AC$236,"Battle") -> 0 | Z4: 2 | AA4: 10 | AB4: =Z4*AA4/2 -> 10
B5: 3 | C5: =COUNTIFS(Spells!B$5:B$236,$B5,Spells!$AC$5:$AC$236,"Battle") -> 0 | D5: =COUNTIFS(Spells!C$5:C$236,$B5,Spells!$AC$5:$AC$236,"Battle") -> 0 | E5: =COUNTIFS(Spells!D$5:D$236,$B5,Spells!$AC$5:$AC$236,"Battle") -> 1 | F5: =COUNTIFS(Spells!E$5:E$236,$B5,Spells!$AC$5:$AC$236,"Battle") -> 0 | G5: =COUNTIFS(Spells!F$5:F$236,$B5,Spells!$AC$5:$AC$236,"Battle") -> 0 | H5: =COUNTIFS(Spells!G$5:G$236,$B5,Spells!$AC$5:$AC$236,"Battle") -> 0 | I5: =COUNTIFS(Spells!H$5:H$236,$B5,Spells!$AC$5:$AC$236,"Battle") -> 0 | J5: =COUNTIFS(Spells!I$5:I$236,$B5,Spells!$AC$5:$AC$236,"Battle") -> 1 | K5: =COUNTIFS(Spells!J$5:J$236,$B5,Spells!$AC$5:$AC$236,"Battle") -> 0 | L5: =COUNTIFS(Spells!K$5:K$236,$B5,Spells!$AC$5:$AC$236,"Battle") -> 0 | M5: =COUNTIFS(Spells!L$5:L$236,$B5,Spells!$AC$5:$AC$236,"Battle") -> 0 | N5: =COUNTIFS(Spells!M$5:M$236,$B5,Spells!$AC$5:$AC$236,"Battle") -> 0 | O5: =COUNTIFS(Spells!N$5:N$236,$B5,Spells!$AC$5:$AC$236,"Battle") -> 0 | P5: =COUNTIFS(Spells!O$5:O$236,$B5,Spells!$AC$5:$AC$236,"Battle") -> 0 | Q5: =COUNTIFS(Spells!P$5:P$236,$B5,Spells!$AC$5:$AC$236,"Battle") -> 0 | R5: =COUNTIFS(Spells!Q$5:Q$236,$B5,Spells!$AC$5:$AC$236,"Battle") -> 0 | S5: =COUNTIFS(Spells!R$5:R$236,$B5,Spells!$AC$5:$AC$236,"Battle") -> 0 | T5: =COUNTIFS(Spells!S$5:S$236,$B5,Spells!$AC$5:$AC$236,"Battle") -> 1 | U5: =COUNTIFS(Spells!T$5:T$236,$B5,Spells!$AC$5:$AC$236,"Battle") -> 1 | V5: =COUNTIFS(Spells!U$5:U$236,$B5,Spells!$AC$5:$AC$236,"Battle") -> 0 | W5: =COUNTIFS(Spells!V$5:V$236,$B5,Spells!$AC$5:$AC$236,"Battle") -> 0 | Z5: 3 | AA5: 8 | AB5: 12
B6: 4 | C6: =COUNTIFS(Spells!B$5:B$236,$B6,Spells!$AC$5:$AC$236,"Battle") -> 1 | D6: =COUNTIFS(Spells!C$5:C$236,$B6,Spells!$AC$5:$AC$236,"Battle") -> 0 | E6: =COUNTIFS(Spells!D$5:D$236,$B6,Spells!$AC$5:$AC$236,"Battle") -> 0 | F6: =COUNTIFS(Spells!E$5:E$236,$B6,Spells!$AC$5:$AC$236,"Battle") -> 0 | G6: =COUNTIFS(Spells!F$5:F$236,$B6,Spells!$AC$5:$AC$236,"Battle") -> 0 | H6: =COUNTIFS(Spells!G$5:G$236,$B6,Spells!$AC$5:$AC$236,"Battle") -> 0 | I6: =COUNTIFS(Spells!H$5:H$236,$B6,Spells!$AC$5:$AC$236,"Battle") -> 0 | J6: =COUNTIFS(Spells!I$5:I$236,$B6,Spells!$AC$5:$AC$236,"Battle") -> 1 | K6: =COUNTIFS(Spells!J$5:J$236,$B6,Spells!$AC$5:$AC$236,"Battle") -> 1 | L6: =COUNTIFS(Spells!K$5:K$236,$B6,Spells!$AC$5:$AC$236,"Battle") -> 0 | M6: =COUNTIFS(Spells!L$5:L$236,$B6,Spells!$AC$5:$AC$236,"Battle") -> 0 | N6: =COUNTIFS(Spells!M$5:M$236,$B6,Spells!$AC$5:$AC$236,"Battle") -> 1 | O6: =COUNTIFS(Spells!N$5:N$236,$B6,Spells!$AC$5:$AC$236,"Battle") -> 0 | P6: =COUNTIFS(Spells!O$5:O$236,$B6,Spells!$AC$5:$AC$236,"Battle") -> 0 | Q6: =COUNTIFS(Spells!P$5:P$236,$B6,Spells!$AC$5:$AC$236,"Battle") -> 0 | R6: =COUNTIFS(Spells!Q$5:Q$236,$B6,Spells!$AC$5:$AC$236,"Battle") -> 1 | S6: =COUNTIFS(Spells!R$5:R$236,$B6,Spells!$AC$5:$AC$236,"Battle") -> 0 | T6: =COUNTIFS(Spells!S$5:S$236,$B6,Spells!$AC$5:$AC$236,"Battle") -> 0 | U6: =COUNTIFS(Spells!T$5:T$236,$B6,Spells!$AC$5:$AC$236,"Battle") -> 0 | V6: =COUNTIFS(Spells!U$5:U$236,$B6,Spells!$AC$5:$AC$236,"Battle") -> 0 | W6: =COUNTIFS(Spells!V$5:V$236,$B6,Spells!$AC$5:$AC$236,"Battle") -> 0 | Z6: 4 | AA6: 5 | AB6: 10
B7: 5 | C7: =COUNTIFS(Spells!B$5:B$236,$B7,Spells!$AC$5:$AC$236,"Battle") -> 0 | D7: =COUNTIFS(Spells!C$5:C$236,$B7,Spells!$AC$5:$AC$236,"Battle") -> 0 | E7: =COUNTIFS(Spells!D$5:D$236,$B7,Spells!$AC$5:$AC$236,"Battle") -> 0 | F7: =COUNTIFS(Spells!E$5:E$236,$B7,Spells!$AC$5:$AC$236,"Battle") -> 0 | G7: =COUNTIFS(Spells!F$5:F$236,$B7,Spells!$AC$5:$AC$236,"Battle") -> 0 | H7: =COUNTIFS(Spells!G$5:G$236,$B7,Spells!$AC$5:$AC$236,"Battle") -> 0 | I7: =COUNTIFS(Spells!H$5:H$236,$B7,Spells!$AC$5:$AC$236,"Battle") -> 0 | J7: =COUNTIFS(Spells!I$5:I$236,$B7,Spells!$AC$5:$AC$236,"Battle") -> 0 | K7: =COUNTIFS(Spells!J$5:J$236,$B7,Spells!$AC$5:$AC$236,"Battle") -> 0 | L7: =COUNTIFS(Spells!K$5:K$236,$B7,Spells!$AC$5:$AC$236,"Battle") -> 0 | M7: =COUNTIFS(Spells!L$5:L$236,$B7,Spells!$AC$5:$AC$236,"Battle") -> 0 | N7: =COUNTIFS(Spells!M$5:M$236,$B7,Spells!$AC$5:$AC$236,"Battle") -> 0 | O7: =COUNTIFS(Spells!N$5:N$236,$B7,Spells!$AC$5:$AC$236,"Battle") -> 0 | P7: =COUNTIFS(Spells!O$5:O$236,$B7,Spells!$AC$5:$AC$236,"Battle") -> 0 | Q7: =COUNTIFS(Spells!P$5:P$236,$B7,Spells!$AC$5:$AC$236,"Battle") -> 0 | R7: =COUNTIFS(Spells!Q$5:Q$236,$B7,Spells!$AC$5:$AC$236,"Battle") -> 0 | S7: =COUNTIFS(Spells!R$5:R$236,$B7,Spells!$AC$5:$AC$236,"Battle") -> 0 | T7: =COUNTIFS(Spells!S$5:S$236,$B7,Spells!$AC$5:$AC$236,"Battle") -> 0 | U7: =COUNTIFS(Spells!T$5:T$236,$B7,Spells!$AC$5:$AC$236,"Battle") -> 0 | V7: =COUNTIFS(Spells!U$5:U$236,$B7,Spells!$AC$5:$AC$236,"Battle") -> 0 | W7: =COUNTIFS(Spells!V$5:V$236,$B7,Spells!$AC$5:$AC$236,"Battle") -> 0 | Z7: 5 | AA7: 4 | AB7: 10
B8: 6 | C8: =COUNTIFS(Spells!B$5:B$236,$B8,Spells!$AC$5:$AC$236,"Battle") -> 0 | D8: =COUNTIFS(Spells!C$5:C$236,$B8,Spells!$AC$5:$AC$236,"Battle") -> 0 | E8: =COUNTIFS(Spells!D$5:D$236,$B8,Spells!$AC$5:$AC$236,"Battle") -> 0 | F8: =COUNTIFS(Spells!E$5:E$236,$B8,Spells!$AC$5:$AC$236,"Battle") -> 0 | G8: =COUNTIFS(Spells!F$5:F$236,$B8,Spells!$AC$5:$AC$236,"Battle") -> 0 | H8: =COUNTIFS(Spells!G$5:G$236,$B8,Spells!$AC$5:$AC$236,"Battle") -> 0 | I8: =COUNTIFS(Spells!H$5:H$236,$B8,Spells!$AC$5:$AC$236,"Battle") -> 0 | J8: =COUNTIFS(Spells!I$5:I$236,$B8,Spells!$AC$5:$AC$236,"Battle") -> 0 | K8: =COUNTIFS(Spells!J$5:J$236,$B8,Spells!$AC$5:$AC$236,"Battle") -> 0 | L8: =COUNTIFS(Spells!K$5:K$236,$B8,Spells!$AC$5:$AC$236,"Battle") -> 0 | M8: =COUNTIFS(Spells!L$5:L$236,$B8,Spells!$AC$5:$AC$236,"Battle") -> 0 | N8: =COUNTIFS(Spells!M$5:M$236,$B8,Spells!$AC$5:$AC$236,"Battle") -> 0 | O8: =COUNTIFS(Spells!N$5:N$236,$B8,Spells!$AC$5:$AC$236,"Battle") -> 0 | P8: =COUNTIFS(Spells!O$5:O$236,$B8,Spells!$AC$5:$AC$236,"Battle") -> 0 | Q8: =COUNTIFS(Spells!P$5:P$236,$B8,Spells!$AC$5:$AC$236,"Battle") -> 0 | R8: =COUNTIFS(Spells!Q$5:Q$236,$B8,Spells!$AC$5:$AC$236,"Battle") -> 0 | S8: =COUNTIFS(Spells!R$5:R$236,$B8,Spells!$AC$5:$AC$236,"Battle") -> 0 | T8: =COUNTIFS(Spells!S$5:S$236,$B8,Spells!$AC$5:$AC$236,"Battle") -> 0 | U8: =COUNTIFS(Spells!T$5:T$236,$B8,Spells!$AC$5:$AC$236,"Battle") -> 0 | V8: =COUNTIFS(Spells!U$5:U$236,$B8,Spells!$AC$5:$AC$236,"Battle") -> 0 | W8: =COUNTIFS(Spells!V$5:V$236,$B8,Spells!$AC$5:$AC$236,"Battle") -> 0 | Z8: 6 | AA8: 3 | AB8: 9
B9: 7 | C9: =COUNTIFS(Spells!B$5:B$236,$B9,Spells!$AC$5:$AC$236,"Battle") -> 0 | D9: =COUNTIFS(Spells!C$5:C$236,$B9,Spells!$AC$5:$AC$236,"Battle") -> 0 | E9: =COUNTIFS(Spells!D$5:D$236,$B9,Spells!$AC$5:$AC$236,"Battle") -> 0 | F9: =COUNTIFS(Spells!E$5:E$236,$B9,Spells!$AC$5:$AC$236,"Battle") -> 0 | G9: =COUNTIFS(Spells!F$5:F$236,$B9,Spells!$AC$5:$AC$236,"Battle") -> 1 | H9: =COUNTIFS(Spells!G$5:G$236,$B9,Spells!$AC$5:$AC$236,"Battle") -> 0 | I9: =COUNTIFS(Spells!H$5:H$236,$B9,Spells!$AC$5:$AC$236,"Battle") -> 0 | J9: =COUNTIFS(Spells!I$5:I$236,$B9,Spells!$AC$5:$AC$236,"Battle") -> 1 | K9: =COUNTIFS(Spells!J$5:J$236,$B9,Spells!$AC$5:$AC$236,"Battle") -> 0 | L9: =COUNTIFS(Spells!K$5:K$236,$B9,Spells!$AC$5:$AC$236,"Battle") -> 0 | M9: =COUNTIFS(Spells!L$5:L$236,$B9,Spells!$AC$5:$AC$236,"Battle") -> 0 | N9: =COUNTIFS(Spells!M$5:M$236,$B9,Spells!$AC$5:$AC$236,"Battle") -> 0 | O9: =COUNTIFS(Spells!N$5:N$236,$B9,Spells!$AC$5:$AC$236,"Battle") -> 0 | P9: =COUNTIFS(Spells!O$5:O$236,$B9,Spells!$AC$5:$AC$236,"Battle") -> 0 | Q9: =COUNTIFS(Spells!P$5:P$236,$B9,Spells!$AC$5:$AC$236,"Battle") -> 0 | R9: =COUNTIFS(Spells!Q$5:Q$236,$B9,Spells!$AC$5:$AC$236,"Battle") -> 0 | S9: =COUNTIFS(Spells!R$5:R$236,$B9,Spells!$AC$5:$AC$236,"Battle") -> 0 | T9: =COUNTIFS(Spells!S$5:S$236,$B9,Spells!$AC$5:$AC$236,"Battle") -> 0 | U9: =COUNTIFS(Spells!T$5:T$236,$B9,Spells!$AC$5:$AC$236,"Battle") -> 0 | V9: =COUNTIFS(Spells!U$5:U$236,$B9,Spells!$AC$5:$AC$236,"Battle") -> 0 | W9: =COUNTIFS(Spells!V$5:V$236,$B9,Spells!$AC$5:$AC$236,"Battle") -> 0 | Z9: 7 | AA9: 2 | AB9: 7
B10: 8 | C10: =COUNTIFS(Spells!B$5:B$236,$B10,Spells!$AC$5:$AC$236,"Battle") -> 0 | D10: =COUNTIFS(Spells!C$5:C$236,$B10,Spells!$AC$5:$AC$236,"Battle") -> 0 | E10: =COUNTIFS(Spells!D$5:D$236,$B10,Spells!$AC$5:$AC$236,"Battle") -> 0 | F10: =COUNTIFS(Spells!E$5:E$236,$B10,Spells!$AC$5:$AC$236,"Battle") -> 0 | G10: =COUNTIFS(Spells!F$5:F$236,$B10,Spells!$AC$5:$AC$236,"Battle") -> 0 | H10: =COUNTIFS(Spells!G$5:G$236,$B10,Spells!$AC$5:$AC$236,"Battle") -> 0 | I10: =COUNTIFS(Spells!H$5:H$236,$B10,Spells!$AC$5:$AC$236,"Battle") -> 0 | J10: =COUNTIFS(Spells!I$5:I$236,$B10,Spells!$AC$5:$AC$236,"Battle") -> 0 | K10: =COUNTIFS(Spells!J$5:J$236,$B10,Spells!$AC$5:$AC$236,"Battle") -> 0 | L10: =COUNTIFS(Spells!K$5:K$236,$B10,Spells!$AC$5:$AC$236,"Battle") -> 0 | M10: =COUNTIFS(Spells!L$5:L$236,$B10,Spells!$AC$5:$AC$236,"Battle") -> 0 | N10: =COUNTIFS(Spells!M$5:M$236,$B10,Spells!$AC$5:$AC$236,"Battle") -> 0 | O10: =COUNTIFS(Spells!N$5:N$236,$B10,Spells!$AC$5:$AC$236,"Battle") -> 0 | P10: =COUNTIFS(Spells!O$5:O$236,$B10,Spells!$AC$5:$AC$236,"Battle") -> 0 | Q10: =COUNTIFS(Spells!P$5:P$236,$B10,Spells!$AC$5:$AC$236,"Battle") -> 0 | R10: =COUNTIFS(Spells!Q$5:Q$236,$B10,Spells!$AC$5:$AC$236,"Battle") -> 0 | S10: =COUNTIFS(Spells!R$5:R$236,$B10,Spells!$AC$5:$AC$236,"Battle") -> 0 | T10: =COUNTIFS(Spells!S$5:S$236,$B10,Spells!$AC$5:$AC$236,"Battle") -> 0 | U10: =COUNTIFS(Spells!T$5:T$236,$B10,Spells!$AC$5:$AC$236,"Battle") -> 0 | V10: =COUNTIFS(Spells!U$5:U$236,$B10,Spells!$AC$5:$AC$236,"Battle") -> 0 | W10: =COUNTIFS(Spells!V$5:V$236,$B10,Spells!$AC$5:$AC$236,"Battle") -> 0
B11: 9 | C11: =COUNTIFS(Spells!B$5:B$236,$B11,Spells!$AC$5:$AC$236,"Battle") -> 0 | D11: =COUNTIFS(Spells!C$5:C$236,$B11,Spells!$AC$5:$AC$236,"Battle") -> 0 | E11: =COUNTIFS(Spells!D$5:D$236,$B11,Spells!$AC$5:$AC$236,"Battle") -> 0 | F11: =COUNTIFS(Spells!E$5:E$236,$B11,Spells!$AC$5:$AC$236,"Battle") -> 0 | G11: =COUNTIFS(Spells!F$5:F$236,$B11,Spells!$AC$5:$AC$236,"Battle") -> 0 | H11: =COUNTIFS(Spells!G$5:G$236,$B11,Spells!$AC$5:$AC$236,"Battle") -> 0 | I11: =COUNTIFS(Spells!H$5:H$236,$B11,Spells!$AC$5:$AC$236,"Battle") -> 0 | J11: =COUNTIFS(Spells!I$5:I$236,$B11,Spells!$AC$5:$AC$236,"Battle") -> 0 | K11: =COUNTIFS(Spells!J$5:J$236,$B11,Spells!$AC$5:$AC$236,"Battle") -> 0 | L11: =COUNTIFS(Spells!K$5:K$236,$B11,Spells!$AC$5:$AC$236,"Battle") -> 0 | M11: =COUNTIFS(Spells!L$5:L$236,$B11,Spells!$AC$5:$AC$236,"Battle") -> 0 | N11: =COUNTIFS(Spells!M$5:M$236,$B11,Spells!$AC$5:$AC$236,"Battle") -> 0 | O11: =COUNTIFS(Spells!N$5:N$236,$B11,Spells!$AC$5:$AC$236,"Battle") -> 0 | P11: =COUNTIFS(Spells!O$5:O$236,$B11,Spells!$AC$5:$AC$236,"Battle") -> 0 | Q11: =COUNTIFS(Spells!P$5:P$236,$B11,Spells!$AC$5:$AC$236,"Battle") -> 0 | R11: =COUNTIFS(Spells!Q$5:Q$236,$B11,Spells!$AC$5:$AC$236,"Battle") -> 0 | S11: =COUNTIFS(Spells!R$5:R$236,$B11,Spells!$AC$5:$AC$236,"Battle") -> 0 | T11: =COUNTIFS(Spells!S$5:S$236,$B11,Spells!$AC$5:$AC$236,"Battle") -> 0 | U11: =COUNTIFS(Spells!T$5:T$236,$B11,Spells!$AC$5:$AC$236,"Battle") -> 0 | V11: =COUNTIFS(Spells!U$5:U$236,$B11,Spells!$AC$5:$AC$236,"Battle") -> 0 | W11: =COUNTIFS(Spells!V$5:V$236,$B11,Spells!$AC$5:$AC$236,"Battle") -> 0
A12: Utility
C13: Alteration | D13: Emotion | E13: E-mag | F13: Elemental | G13: C/A | H13: Force | I13: Divination | J13: level | K13: Ki | L13: Bahrie | M13: Correllion | N13: Eo | O13: Correllion 2 | P13: Hast | Q13: Innana | R13: Loki | S13: Moradin | T13: Thor 2 | U13: Thor | V13: Poseidon | W13: Shaman
B14: 1 | C14: =COUNTIFS(Spells!B$5:B$236,$B14,Spells!$AC$5:$AC$236,"Utility") -> 9 | D14: =COUNTIFS(Spells!C$5:C$236,$B14,Spells!$AC$5:$AC$236,"Utility") -> 2 | E14: =COUNTIFS(Spells!D$5:D$236,$B14,Spells!$AC$5:$AC$236,"Utility") -> 3 | F14: =COUNTIFS(Spells!E$5:E$236,$B14,Spells!$AC$5:$AC$236,"Utility") -> 2 | G14: =COUNTIFS(Spells!F$5:F$236,$B14,Spells!$AC$5:$AC$236,"Utility") -> 3 | H14: =COUNTIFS(Spells!G$5:G$236,$B14,Spells!$AC$5:$AC$236,"Utility") -> 3 | I14: =COUNTIFS(Spells!H$5:H$236,$B14,Spells!$AC$5:$AC$236,"Utility") -> 8 | J14: =COUNTIFS(Spells!I$5:I$236,$B14,Spells!$AC$5:$AC$236,"Utility") -> 28 | K14: =COUNTIFS(Spells!J$5:J$236,$B14,Spells!$AC$5:$AC$236,"Utility") -> 9 | L14: =COUNTIFS(Spells!K$5:K$236,$B14,Spells!$AC$5:$AC$236,"Utility") -> 8 | M14: =COUNTIFS(Spells!L$5:L$236,$B14,Spells!$AC$5:$AC$236,"Utility") -> 4 | N14: =COUNTIFS(Spells!M$5:M$236,$B14,Spells!$AC$5:$AC$236,"Utility") -> 4 | O14: =COUNTIFS(Spells!N$5:N$236,$B14,Spells!$AC$5:$AC$236,"Utility") -> 4 | P14: =COUNTIFS(Spells!O$5:O$236,$B14,Spells!$AC$5:$AC$236,"Utility") -> 4 | Q14: =COUNTIFS(Spells!P$5:P$236,$B14,Spells!$AC$5:$AC$236,"Utility") -> 5 | R14: =COUNTIFS(Spells!Q$5:Q$236,$B14,Spells!$AC$5:$AC$236,"Utility") -> 10 | S14: =COUNTIFS(Spells!R$5:R$236,$B14,Spells!$AC$5:$AC$236,"Utility") -> 6 | T14: =COUNTIFS(Spells!S$5:S$236,$B14,Spells!$AC$5:$AC$236,"Utility") -> 4 | U14: =COUNTIFS(Spells!T$5:T$236,$B14,Spells!$AC$5:$AC$236,"Utility") -> 5 | V14: =COUNTIFS(Spells!U$5:U$236,$B14,Spells!$AC$5:$AC$236,"Utility") -> 5 | W14: =COUNTIFS(Spells!V$5:V$236,$B14,Spells!$AC$5:$AC$236,"Utility") -> 0
B15: 2 | C15: =COUNTIFS(Spells!B$5:B$236,$B15,Spells!$AC$5:$AC$236,"Utility") -> 6 | D15: =COUNTIFS(Spells!C$5:C$236,$B15,Spells!$AC$5:$AC$236,"Utility") -> 2 | E15: =COUNTIFS(Spells!D$5:D$236,$B15,Spells!$AC$5:$AC$236,"Utility") -> 1 | F15: =COUNTIFS(Spells!E$5:E$236,$B15,Spells!$AC$5:$AC$236,"Utility") -> 0 | G15: =COUNTIFS(Spells!F$5:F$236,$B15,Spells!$AC$5:$AC$236,"Utility") -> 7 | H15: =COUNTIFS(Spells!G$5:G$236,$B15,Spells!$AC$5:$AC$236,"Utility") -> 0 | I15: =COUNTIFS(Spells!H$5:H$236,$B15,Spells!$AC$5:$AC$236,"Utility") -> 5 | J15: =COUNTIFS(Spells!I$5:I$236,$B15,Spells!$AC$5:$AC$236,"Utility") -> 17 | K15: =COUNTIFS(Spells!J$5:J$236,$B15,Spells!$AC$5:$AC$236,"Utility") -> 3 | L15: =COUNTIFS(Spells!K$5:K$236,$B15,Spells!$AC$5:$AC$236,"Utility") -> 3 | M15: =COUNTIFS(Spells!L$5:L$236,$B15,Spells!$AC$5:$AC$236,"Utility") -> 2 | N15: =COUNTIFS(Spells!M$5:M$236,$B15,Spells!$AC$5:$AC$236,"Utility") -> 2 | O15: =COUNTIFS(Spells!N$5:N$236,$B15,Spells!$AC$5:$AC$236,"Utility") -> 2 | P15: =COUNTIFS(Spells!O$5:O$236,$B15,Spells!$AC$5:$AC$236,"Utility") -> 2 | Q15: =COUNTIFS(Spells!P$5:P$236,$B15,Spells!$AC$5:$AC$236,"Utility") -> 3 | R15: =COUNTIFS(Spells!Q$5:Q$236,$B15,Spells!$AC$5:$AC$236,"Utility") -> 6 | S15: =COUNTIFS(Spells!R$5:R$236,$B15,Spells!$AC$5:$AC$236,"Utility") -> 2 | T15: =COUNTIFS(Spells!S$5:S$236,$B15,Spells!$AC$5:$AC$236,"Utility") -> 2 | U15: =COUNTIFS(Spells!T$5:T$236,$B15,Spells!$AC$5:$AC$236,"Utility") -> 2 | V15: =COUNTIFS(Spells!U$5:U$236,$B15,Spells!$AC$5:$AC$236,"Utility") -> 2 | W15: =COUNTIFS(Spells!V$5:V$236,$B15,Spells!$AC$5:$AC$236,"Utility") -> 0
B16: 3 | C16: =COUNTIFS(Spells!B$5:B$236,$B16,Spells!$AC$5:$AC$236,"Utility") -> 3 | D16: =COUNTIFS(Spells!C$5:C$236,$B16,Spells!$AC$5:$AC$236,"Utility") -> 3 | E16: =COUNTIFS(Spells!D$5:D$236,$B16,Spells!$AC$5:$AC$236,"Utility") -> 0 | F16: =COUNTIFS(Spells!E$5:E$236,$B16,Spells!$AC$5:$AC$236,"Utility") -> 1 | G16: =COUNTIFS(Spells!F$5:F$236,$B16,Spells!$AC$5:$AC$236,"Utility") -> 0 | H16: =COUNTIFS(Spells!G$5:G$236,$B16,Spells!$AC$5:$AC$236,"Utility") -> 1 | I16: =COUNTIFS(Spells!H$5:H$236,$B16,Spells!$AC$5:$AC$236,"Utility") -> 3 | J16: =COUNTIFS(Spells!I$5:I$236,$B16,Spells!$AC$5:$AC$236,"Utility") -> 14 | K16: =COUNTIFS(Spells!J$5:J$236,$B16,Spells!$AC$5:$AC$236,"Utility") -> 1 | L16: =COUNTIFS(Spells!K$5:K$236,$B16,Spells!$AC$5:$AC$236,"Utility") -> 1 | M16: =COUNTIFS(Spells!L$5:L$236,$B16,Spells!$AC$5:$AC$236,"Utility") -> 4 | N16: =COUNTIFS(Spells!M$5:M$236,$B16,Spells!$AC$5:$AC$236,"Utility") -> 0 | O16: =COUNTIFS(Spells!N$5:N$236,$B16,Spells!$AC$5:$AC$236,"Utility") -> 4 | P16: =COUNTIFS(Spells!O$5:O$236,$B16,Spells!$AC$5:$AC$236,"Utility") -> 1 | Q16: =COUNTIFS(Spells!P$5:P$236,$B16,Spells!$AC$5:$AC$236,"Utility") -> 0 | R16: =COUNTIFS(Spells!Q$5:Q$236,$B16,Spells!$AC$5:$AC$236,"Utility") -> 3 | S16: =COUNTIFS(Spells!R$5:R$236,$B16,Spells!$AC$5:$AC$236,"Utility") -> 1 | T16: =COUNTIFS(Spells!S$5:S$236,$B16,Spells!$AC$5:$AC$236,"Utility") -> 1 | U16: =COUNTIFS(Spells!T$5:T$236,$B16,Spells!$AC$5:$AC$236,"Utility") -> 1 | V16: =COUNTIFS(Spells!U$5:U$236,$B16,Spells!$AC$5:$AC$236,"Utility") -> 1 | W16: =COUNTIFS(Spells!V$5:V$236,$B16,Spells!$AC$5:$AC$236,"Utility") -> 0
B17: 4 | C17: =COUNTIFS(Spells!B$5:B$236,$B17,Spells!$AC$5:$AC$236,"Utility") -> 1 | D17: =COUNTIFS(Spells!C$5:C$236,$B17,Spells!$AC$5:$AC$236,"Utility") -> 0 | E17: =COUNTIFS(Spells!D$5:D$236,$B17,Spells!$AC$5:$AC$236,"Utility") -> 1 | F17: =COUNTIFS(Spells!E$5:E$236,$B17,Spells!$AC$5:$AC$236,"Utility") -> 3 | G17: =COUNTIFS(Spells!F$5:F$236,$B17,Spells!$AC$5:$AC$236,"Utility") -> 2 | H17: =COUNTIFS(Spells!G$5:G$236,$B17,Spells!$AC$5:$AC$236,"Utility") -> 2 | I17: =COUNTIFS(Spells!H$5:H$236,$B17,Spells!$AC$5:$AC$236,"Utility") -> 4 | J17: =COUNTIFS(Spells!I$5:I$236,$B17,Spells!$AC$5:$AC$236,"Utility") -> 12 | K17: =COUNTIFS(Spells!J$5:J$236,$B17,Spells!$AC$5:$AC$236,"Utility") -> 1 | L17: =COUNTIFS(Spells!K$5:K$236,$B17,Spells!$AC$5:$AC$236,"Utility") -> 1 | M17: =COUNTIFS(Spells!L$5:L$236,$B17,Spells!$AC$5:$AC$236,"Utility") -> 2 | N17: =COUNTIFS(Spells!M$5:M$236,$B17,Spells!$AC$5:$AC$236,"Utility") -> 0 | O17: =COUNTIFS(Spells!N$5:N$236,$B17,Spells!$AC$5:$AC$236,"Utility") -> 2 | P17: =COUNTIFS(Spells!O$5:O$236,$B17,Spells!$AC$5:$AC$236,"Utility") -> 1 | Q17: =COUNTIFS(Spells!P$5:P$236,$B17,Spells!$AC$5:$AC$236,"Utility") -> 0 | R17: =COUNTIFS(Spells!Q$5:Q$236,$B17,Spells!$AC$5:$AC$236,"Utility") -> 1 | S17: =COUNTIFS(Spells!R$5:R$236,$B17,Spells!$AC$5:$AC$236,"Utility") -> 2 | T17: =COUNTIFS(Spells!S$5:S$236,$B17,Spells!$AC$5:$AC$236,"Utility") -> 2 | U17: =COUNTIFS(Spells!T$5:T$236,$B17,Spells!$AC$5:$AC$236,"Utility") -> 2 | V17: =COUNTIFS(Spells!U$5:U$236,$B17,Spells!$AC$5:$AC$236,"Utility") -> 3 | W17: =COUNTIFS(Spells!V$5:V$236,$B17,Spells!$AC$5:$AC$236,"Utility") -> 0
B18: 5 | C18: =COUNTIFS(Spells!B$5:B$236,$B18,Spells!$AC$5:$AC$236,"Utility") -> 2 | D18: =COUNTIFS(Spells!C$5:C$236,$B18,Spells!$AC$5:$AC$236,"Utility") -> 0 | E18: =COUNTIFS(Spells!D$5:D$236,$B18,Spells!$AC$5:$AC$236,"Utility") -> 1 | F18: =COUNTIFS(Spells!E$5:E$236,$B18,Spells!$AC$5:$AC$236,"Utility") -> 1 | G18: =COUNTIFS(Spells!F$5:F$236,$B18,Spells!$AC$5:$AC$236,"Utility") -> 5 | H18: =COUNTIFS(Spells!G$5:G$236,$B18,Spells!$AC$5:$AC$236,"Utility") -> 0 | I18: =COUNTIFS(Spells!H$5:H$236,$B18,Spells!$AC$5:$AC$236,"Utility") -> 0 | J18: =COUNTIFS(Spells!I$5:I$236,$B18,Spells!$AC$5:$AC$236,"Utility") -> 9 | K18: =COUNTIFS(Spells!J$5:J$236,$B18,Spells!$AC$5:$AC$236,"Utility") -> 3 | L18: =COUNTIFS(Spells!K$5:K$236,$B18,Spells!$AC$5:$AC$236,"Utility") -> 3 | M18: =COUNTIFS(Spells!L$5:L$236,$B18,Spells!$AC$5:$AC$236,"Utility") -> 3 | N18: =COUNTIFS(Spells!M$5:M$236,$B18,Spells!$AC$5:$AC$236,"Utility") -> 2 | O18: =COUNTIFS(Spells!N$5:N$236,$B18,Spells!$AC$5:$AC$236,"Utility") -> 1 | P18: =COUNTIFS(Spells!O$5:O$236,$B18,Spells!$AC$5:$AC$236,"Utility") -> 1 | Q18: =COUNTIFS(Spells!P$5:P$236,$B18,Spells!$AC$5:$AC$236,"Utility") -> 2 | R18: =COUNTIFS(Spells!Q$5:Q$236,$B18,Spells!$AC$5:$AC$236,"Utility") -> 2 | S18: =COUNTIFS(Spells!R$5:R$236,$B18,Spells!$AC$5:$AC$236,"Utility") -> 2 | T18: =COUNTIFS(Spells!S$5:S$236,$B18,Spells!$AC$5:$AC$236,"Utility") -> 1 | U18: =COUNTIFS(Spells!T$5:T$236,$B18,Spells!$AC$5:$AC$236,"Utility") -> 2 | V18: =COUNTIFS(Spells!U$5:U$236,$B18,Spells!$AC$5:$AC$236,"Utility") -> 2 | W18: =COUNTIFS(Spells!V$5:V$236,$B18,Spells!$AC$5:$AC$236,"Utility") -> 0
B19: 6 | C19: =COUNTIFS(Spells!B$5:B$236,$B19,Spells!$AC$5:$AC$236,"Utility") -> 3 | D19: =COUNTIFS(Spells!C$5:C$236,$B19,Spells!$AC$5:$AC$236,"Utility") -> 0 | E19: =COUNTIFS(Spells!D$5:D$236,$B19,Spells!$AC$5:$AC$236,"Utility") -> 1 | F19: =COUNTIFS(Spells!E$5:E$236,$B19,Spells!$AC$5:$AC$236,"Utility") -> 0 | G19: =COUNTIFS(Spells!F$5:F$236,$B19,Spells!$AC$5:$AC$236,"Utility") -> 2 | H19: =COUNTIFS(Spells!G$5:G$236,$B19,Spells!$AC$5:$AC$236,"Utility") -> 0 | I19: =COUNTIFS(Spells!H$5:H$236,$B19,Spells!$AC$5:$AC$236,"Utility") -> 0 | J19: =COUNTIFS(Spells!I$5:I$236,$B19,Spells!$AC$5:$AC$236,"Utility") -> 6 | K19: =COUNTIFS(Spells!J$5:J$236,$B19,Spells!$AC$5:$AC$236,"Utility") -> 1 | L19: =COUNTIFS(Spells!K$5:K$236,$B19,Spells!$AC$5:$AC$236,"Utility") -> 2 | M19: =COUNTIFS(Spells!L$5:L$236,$B19,Spells!$AC$5:$AC$236,"Utility") -> 2 | N19: =COUNTIFS(Spells!M$5:M$236,$B19,Spells!$AC$5:$AC$236,"Utility") -> 1 | O19: =COUNTIFS(Spells!N$5:N$236,$B19,Spells!$AC$5:$AC$236,"Utility") -> 1 | P19: =COUNTIFS(Spells!O$5:O$236,$B19,Spells!$AC$5:$AC$236,"Utility") -> 1 | Q19: =COUNTIFS(Spells!P$5:P$236,$B19,Spells!$AC$5:$AC$236,"Utility") -> 1 | R19: =COUNTIFS(Spells!Q$5:Q$236,$B19,Spells!$AC$5:$AC$236,"Utility") -> 3 | S19: =COUNTIFS(Spells!R$5:R$236,$B19,Spells!$AC$5:$AC$236,"Utility") -> 3 | T19: =COUNTIFS(Spells!S$5:S$236,$B19,Spells!$AC$5:$AC$236,"Utility") -> 1 | U19: =COUNTIFS(Spells!T$5:T$236,$B19,Spells!$AC$5:$AC$236,"Utility") -> 2 | V19: =COUNTIFS(Spells!U$5:U$236,$B19,Spells!$AC$5:$AC$236,"Utility") -> 1 | W19: =COUNTIFS(Spells!V$5:V$236,$B19,Spells!$AC$5:$AC$236,"Utility") -> 0
B20: 7 | C20: =COUNTIFS(Spells!B$5:B$236,$B20,Spells!$AC$5:$AC$236,"Utility") -> 1 | D20: =COUNTIFS(Spells!C$5:C$236,$B20,Spells!$AC$5:$AC$236,"Utility") -> 0 | E20: =COUNTIFS(Spells!D$5:D$236,$B20,Spells!$AC$5:$AC$236,"Utility") -> 0 | F20: =COUNTIFS(Spells!E$5:E$236,$B20,Spells!$AC$5:$AC$236,"Utility") -> 0 | G20: =COUNTIFS(Spells!F$5:F$236,$B20,Spells!$AC$5:$AC$236,"Utility") -> 1 | H20: =COUNTIFS(Spells!G$5:G$236,$B20,Spells!$AC$5:$AC$236,"Utility") -> 0 | I20: =COUNTIFS(Spells!H$5:H$236,$B20,Spells!$AC$5:$AC$236,"Utility") -> 0 | J20: =COUNTIFS(Spells!I$5:I$236,$B20,Spells!$AC$5:$AC$236,"Utility") -> 2 | K20: =COUNTIFS(Spells!J$5:J$236,$B20,Spells!$AC$5:$AC$236,"Utility") -> 0 | L20: =COUNTIFS(Spells!K$5:K$236,$B20,Spells!$AC$5:$AC$236,"Utility") -> 0 | M20: =COUNTIFS(Spells!L$5:L$236,$B20,Spells!$AC$5:$AC$236,"Utility") -> 0 | N20: =COUNTIFS(Spells!M$5:M$236,$B20,Spells!$AC$5:$AC$236,"Utility") -> 0 | O20: =COUNTIFS(Spells!N$5:N$236,$B20,Spells!$AC$5:$AC$236,"Utility") -> 0 | P20: =COUNTIFS(Spells!O$5:O$236,$B20,Spells!$AC$5:$AC$236,"Utility") -> 0 | Q20: =COUNTIFS(Spells!P$5:P$236,$B20,Spells!$AC$5:$AC$236,"Utility") -> 0 | R20: =COUNTIFS(Spells!Q$5:Q$236,$B20,Spells!$AC$5:$AC$236,"Utility") -> 0 | S20: =COUNTIFS(Spells!R$5:R$236,$B20,Spells!$AC$5:$AC$236,"Utility") -> 0 | T20: =COUNTIFS(Spells!S$5:S$236,$B20,Spells!$AC$5:$AC$236,"Utility") -> 0 | U20: =COUNTIFS(Spells!T$5:T$236,$B20,Spells!$AC$5:$AC$236,"Utility") -> 0 | V20: =COUNTIFS(Spells!U$5:U$236,$B20,Spells!$AC$5:$AC$236,"Utility") -> 0 | W20: =COUNTIFS(Spells!V$5:V$236,$B20,Spells!$AC$5:$AC$236,"Utility") -> 0
B21: 8 | C21: =COUNTIFS(Spells!B$5:B$236,$B21,Spells!$AC$5:$AC$236,"Utility") -> 0 | D21: =COUNTIFS(Spells!C$5:C$236,$B21,Spells!$AC$5:$AC$236,"Utility") -> 0 | E21: =COUNTIFS(Spells!D$5:D$236,$B21,Spells!$AC$5:$AC$236,"Utility") -> 0 | F21: =COUNTIFS(Spells!E$5:E$236,$B21,Spells!$AC$5:$AC$236,"Utility") -> 0 | G21: =COUNTIFS(Spells!F$5:F$236,$B21,Spells!$AC$5:$AC$236,"Utility") -> 1 | H21: =COUNTIFS(Spells!G$5:G$236,$B21,Spells!$AC$5:$AC$236,"Utility") -> 0 | I21: =COUNTIFS(Spells!H$5:H$236,$B21,Spells!$AC$5:$AC$236,"Utility") -> 0 | J21: =COUNTIFS(Spells!I$5:I$236,$B21,Spells!$AC$5:$AC$236,"Utility") -> 1 | K21: =COUNTIFS(Spells!J$5:J$236,$B21,Spells!$AC$5:$AC$236,"Utility") -> 0 | L21: =COUNTIFS(Spells!K$5:K$236,$B21,Spells!$AC$5:$AC$236,"Utility") -> 0 | M21: =COUNTIFS(Spells!L$5:L$236,$B21,Spells!$AC$5:$AC$236,"Utility") -> 0 | N21: =COUNTIFS(Spells!M$5:M$236,$B21,Spells!$AC$5:$AC$236,"Utility") -> 0 | O21: =COUNTIFS(Spells!N$5:N$236,$B21,Spells!$AC$5:$AC$236,"Utility") -> 0 | P21: =COUNTIFS(Spells!O$5:O$236,$B21,Spells!$AC$5:$AC$236,"Utility") -> 0 | Q21: =COUNTIFS(Spells!P$5:P$236,$B21,Spells!$AC$5:$AC$236,"Utility") -> 0 | R21: =COUNTIFS(Spells!Q$5:Q$236,$B21,Spells!$AC$5:$AC$236,"Utility") -> 0 | S21: =COUNTIFS(Spells!R$5:R$236,$B21,Spells!$AC$5:$AC$236,"Utility") -> 0 | T21: =COUNTIFS(Spells!S$5:S$236,$B21,Spells!$AC$5:$AC$236,"Utility") -> 0 | U21: =COUNTIFS(Spells!T$5:T$236,$B21,Spells!$AC$5:$AC$236,"Utility") -> 0 | V21: =COUNTIFS(Spells!U$5:U$236,$B21,Spells!$AC$5:$AC$236,"Utility") -> 0 | W21: =COUNTIFS(Spells!V$5:V$236,$B21,Spells!$AC$5:$AC$236,"Utility") -> 0
B22: 9 | C22: =COUNTIFS(Spells!B$5:B$236,$B22,Spells!$AC$5:$AC$236,"Utility") -> 0 | D22: =COUNTIFS(Spells!C$5:C$236,$B22,Spells!$AC$5:$AC$236,"Utility") -> 0 | E22: =COUNTIFS(Spells!D$5:D$236,$B22,Spells!$AC$5:$AC$236,"Utility") -> 0 | F22: =COUNTIFS(Spells!E$5:E$236,$B22,Spells!$AC$5:$AC$236,"Utility") -> 0 | G22: =COUNTIFS(Spells!F$5:F$236,$B22,Spells!$AC$5:$AC$236,"Utility") -> 0 | H22: =COUNTIFS(Spells!G$5:G$236,$B22,Spells!$AC$5:$AC$236,"Utility") -> 0 | I22: =COUNTIFS(Spells!H$5:H$236,$B22,Spells!$AC$5:$AC$236,"Utility") -> 0 | J22: =COUNTIFS(Spells!I$5:I$236,$B22,Spells!$AC$5:$AC$236,"Utility") -> 0 | K22: =COUNTIFS(Spells!J$5:J$236,$B22,Spells!$AC$5:$AC$236,"Utility") -> 0 | L22: =COUNTIFS(Spells!K$5:K$236,$B22,Spells!$AC$5:$AC$236,"Utility") -> 0 | M22: =COUNTIFS(Spells!L$5:L$236,$B22,Spells!$AC$5:$AC$236,"Utility") -> 0 | N22: =COUNTIFS(Spells!M$5:M$236,$B22,Spells!$AC$5:$AC$236,"Utility") -> 0 | O22: =COUNTIFS(Spells!N$5:N$236,$B22,Spells!$AC$5:$AC$236,"Utility") -> 0 | P22: =COUNTIFS(Spells!O$5:O$236,$B22,Spells!$AC$5:$AC$236,"Utility") -> 0 | Q22: =COUNTIFS(Spells!P$5:P$236,$B22,Spells!$AC$5:$AC$236,"Utility") -> 0 | R22: =COUNTIFS(Spells!Q$5:Q$236,$B22,Spells!$AC$5:$AC$236,"Utility") -> 0 | S22: =COUNTIFS(Spells!R$5:R$236,$B22,Spells!$AC$5:$AC$236,"Utility") -> 0 | T22: =COUNTIFS(Spells!S$5:S$236,$B22,Spells!$AC$5:$AC$236,"Utility") -> 0 | U22: =COUNTIFS(Spells!T$5:T$236,$B22,Spells!$AC$5:$AC$236,"Utility") -> 0 | V22: =COUNTIFS(Spells!U$5:U$236,$B22,Spells!$AC$5:$AC$236,"Utility") -> 0 | W22: =COUNTIFS(Spells!V$5:V$236,$B22,Spells!$AC$5:$AC$236,"Utility") -> 0
A24: Normal
C25: Alteration | D25: Emotion | E25: E-mag | F25: Elemental | G25: C/A | H25: Force | I25: Divination | J25: level | K25: Ki | L25: Bahrie | M25: Correllion | N25: Eo | O25: Correllion 2 | P25: Hast | Q25: Innana | R25: Loki | S25: Moradin | T25: Thor 2 | U25: Thor | V25: Poseidon | W25: Shaman
B26: 1 | C26: =COUNTIFS(Spells!B$5:B$236,$B26,Spells!$AC$5:$AC$236,"") -> 8 | D26: =COUNTIFS(Spells!C$5:C$236,$B26,Spells!$AC$5:$AC$236,"") -> 4 | E26: =COUNTIFS(Spells!D$5:D$236,$B26,Spells!$AC$5:$AC$236,"") -> 3 | F26: =COUNTIFS(Spells!E$5:E$236,$B26,Spells!$AC$5:$AC$236,"") -> 3 | G26: =COUNTIFS(Spells!F$5:F$236,$B26,Spells!$AC$5:$AC$236,"") -> 4 | H26: =COUNTIFS(Spells!G$5:G$236,$B26,Spells!$AC$5:$AC$236,"") -> 3 | I26: =COUNTIFS(Spells!H$5:H$236,$B26,Spells!$AC$5:$AC$236,"") -> 0 | J26: =COUNTIFS(Spells!I$5:I$236,$B26,Spells!$AC$5:$AC$236,"") -> 30 | K26: =COUNTIFS(Spells!J$5:J$236,$B26,Spells!$AC$5:$AC$236,"") -> 9 | L26: =COUNTIFS(Spells!K$5:K$236,$B26,Spells!$AC$5:$AC$236,"") -> 8 | M26: =COUNTIFS(Spells!L$5:L$236,$B26,Spells!$AC$5:$AC$236,"") -> 8 | N26: =COUNTIFS(Spells!M$5:M$236,$B26,Spells!$AC$5:$AC$236,"") -> 5 | O26: =COUNTIFS(Spells!N$5:N$236,$B26,Spells!$AC$5:$AC$236,"") -> 8 | P26: =COUNTIFS(Spells!O$5:O$236,$B26,Spells!$AC$5:$AC$236,"") -> 6 | Q26: =COUNTIFS(Spells!P$5:P$236,$B26,Spells!$AC$5:$AC$236,"") -> 8 | R26: =COUNTIFS(Spells!Q$5:Q$236,$B26,Spells!$AC$5:$AC$236,"") -> 10 | S26: =COUNTIFS(Spells!R$5:R$236,$B26,Spells!$AC$5:$AC$236,"") -> 7 | T26: =COUNTIFS(Spells!S$5:S$236,$B26,Spells!$AC$5:$AC$236,"") -> 6 | U26: =COUNTIFS(Spells!T$5:T$236,$B26,Spells!$AC$5:$AC$236,"") -> 6 | V26: =COUNTIFS(Spells!U$5:U$236,$B26,Spells!$AC$5:$AC$236,"") -> 6 | W26: =COUNTIFS(Spells!V$5:V$236,$B26,Spells!$AC$5:$AC$236,"") -> 0
B27: 2 | C27: =COUNTIFS(Spells!B$5:B$236,$B27,Spells!$AC$5:$AC$236,"") -> 8 | D27: =COUNTIFS(Spells!C$5:C$236,$B27,Spells!$AC$5:$AC$236,"") -> 4 | E27: =COUNTIFS(Spells!D$5:D$236,$B27,Spells!$AC$5:$AC$236,"") -> 4 | F27: =COUNTIFS(Spells!E$5:E$236,$B27,Spells!$AC$5:$AC$236,"") -> 4 | G27: =COUNTIFS(Spells!F$5:F$236,$B27,Spells!$AC$5:$AC$236,"") -> 8 | H27: =COUNTIFS(Spells!G$5:G$236,$B27,Spells!$AC$5:$AC$236,"") -> 1 | I27: =COUNTIFS(Spells!H$5:H$236,$B27,Spells!$AC$5:$AC$236,"") -> 1 | J27: =COUNTIFS(Spells!I$5:I$236,$B27,Spells!$AC$5:$AC$236,"") -> 24 | K27: =COUNTIFS(Spells!J$5:J$236,$B27,Spells!$AC$5:$AC$236,"") -> 9 | L27: =COUNTIFS(Spells!K$5:K$236,$B27,Spells!$AC$5:$AC$236,"") -> 7 | M27: =COUNTIFS(Spells!L$5:L$236,$B27,Spells!$AC$5:$AC$236,"") -> 6 | N27: =COUNTIFS(Spells!M$5:M$236,$B27,Spells!$AC$5:$AC$236,"") -> 4 | O27: =COUNTIFS(Spells!N$5:N$236,$B27,Spells!$AC$5:$AC$236,"") -> 6 | P27: =COUNTIFS(Spells!O$5:O$236,$B27,Spells!$AC$5:$AC$236,"") -> 5 | Q27: =COUNTIFS(Spells!P$5:P$236,$B27,Spells!$AC$5:$AC$236,"") -> 5 | R27: =COUNTIFS(Spells!Q$5:Q$236,$B27,Spells!$AC$5:$AC$236,"") -> 10 | S27: =COUNTIFS(Spells!R$5:R$236,$B27,Spells!$AC$5:$AC$236,"") -> 10 | T27: =COUNTIFS(Spells!S$5:S$236,$B27,Spells!$AC$5:$AC$236,"") -> 6 | U27: =COUNTIFS(Spells!T$5:T$236,$B27,Spells!$AC$5:$AC$236,"") -> 6 | V27: =COUNTIFS(Spells!U$5:U$236,$B27,Spells!$AC$5:$AC$236,"") -> 7 | W27: =COUNTIFS(Spells!V$5:V$236,$B27,Spells!$AC$5:$AC$236,"") -> 0
B28: 3 | C28: =COUNTIFS(Spells!B$5:B$236,$B28,Spells!$AC$5:$AC$236,"") -> 2 | D28: =COUNTIFS(Spells!C$5:C$236,$B28,Spells!$AC$5:$AC$236,"") -> 1 | E28: =COUNTIFS(Spells!D$5:D$236,$B28,Spells!$AC$5:$AC$236,"") -> 0 | F28: =COUNTIFS(Spells!E$5:E$236,$B28,Spells!$AC$5:$AC$236,"") -> 2 | G28: =COUNTIFS(Spells!F$5:F$236,$B28,Spells!$AC$5:$AC$236,"") -> 3 | H28: =COUNTIFS(Spells!G$5:G$236,$B28,Spells!$AC$5:$AC$236,"") -> 2 | I28: =COUNTIFS(Spells!H$5:H$236,$B28,Spells!$AC$5:$AC$236,"") -> 1 | J28: =COUNTIFS(Spells!I$5:I$236,$B28,Spells!$AC$5:$AC$236,"") -> 13 | K28: =COUNTIFS(Spells!J$5:J$236,$B28,Spells!$AC$5:$AC$236,"") -> 5 | L28: =COUNTIFS(Spells!K$5:K$236,$B28,Spells!$AC$5:$AC$236,"") -> 5 | M28: =COUNTIFS(Spells!L$5:L$236,$B28,Spells!$AC$5:$AC$236,"") -> 4 | N28: =COUNTIFS(Spells!M$5:M$236,$B28,Spells!$AC$5:$AC$236,"") -> 6 | O28: =COUNTIFS(Spells!N$5:N$236,$B28,Spells!$AC$5:$AC$236,"") -> 4 | P28: =COUNTIFS(Spells!O$5:O$236,$B28,Spells!$AC$5:$AC$236,"") -> 3 | Q28: =COUNTIFS(Spells!P$5:P$236,$B28,Spells!$AC$5:$AC$236,"") -> 6 | R28: =COUNTIFS(Spells!Q$5:Q$236,$B28,Spells!$AC$5:$AC$236,"") -> 3 | S28: =COUNTIFS(Spells!R$5:R$236,$B28,Spells!$AC$5:$AC$236,"") -> 6 | T28: =COUNTIFS(Spells!S$5:S$236,$B28,Spells!$AC$5:$AC$236,"") -> 5 | U28: =COUNTIFS(Spells!T$5:T$236,$B28,Spells!$AC$5:$AC$236,"") -> 5 | V28: =COUNTIFS(Spells!U$5:U$236,$B28,Spells!$AC$5:$AC$236,"") -> 4 | W28: =COUNTIFS(Spells!V$5:V$236,$B28,Spells!$AC$5:$AC$236,"") -> 0
B29: 4 | C29: =COUNTIFS(Spells!B$5:B$236,$B29,Spells!$AC$5:$AC$236,"") -> 5 | D29: =COUNTIFS(Spells!C$5:C$236,$B29,Spells!$AC$5:$AC$236,"") -> 3 | E29: =COUNTIFS(Spells!D$5:D$236,$B29,Spells!$AC$5:$AC$236,"") -> 3 | F29: =COUNTIFS(Spells!E$5:E$236,$B29,Spells!$AC$5:$AC$236,"") -> 2 | G29: =COUNTIFS(Spells!F$5:F$236,$B29,Spells!$AC$5:$AC$236,"") -> 1 | H29: =COUNTIFS(Spells!G$5:G$236,$B29,Spells!$AC$5:$AC$236,"") -> 2 | I29: =COUNTIFS(Spells!H$5:H$236,$B29,Spells!$AC$5:$AC$236,"") -> 0 | J29: =COUNTIFS(Spells!I$5:I$236,$B29,Spells!$AC$5:$AC$236,"") -> 22 | K29: =COUNTIFS(Spells!J$5:J$236,$B29,Spells!$AC$5:$AC$236,"") -> 4 | L29: =COUNTIFS(Spells!K$5:K$236,$B29,Spells!$AC$5:$AC$236,"") -> 4 | M29: =COUNTIFS(Spells!L$5:L$236,$B29,Spells!$AC$5:$AC$236,"") -> 3 | N29: =COUNTIFS(Spells!M$5:M$236,$B29,Spells!$AC$5:$AC$236,"") -> 4 | O29: =COUNTIFS(Spells!N$5:N$236,$B29,Spells!$AC$5:$AC$236,"") -> 3 | P29: =COUNTIFS(Spells!O$5:O$236,$B29,Spells!$AC$5:$AC$236,"") -> 3 | Q29: =COUNTIFS(Spells!P$5:P$236,$B29,Spells!$AC$5:$AC$236,"") -> 4 | R29: =COUNTIFS(Spells!Q$5:Q$236,$B29,Spells!$AC$5:$AC$236,"") -> 3 | S29: =COUNTIFS(Spells!R$5:R$236,$B29,Spells!$AC$5:$AC$236,"") -> 3 | T29: =COUNTIFS(Spells!S$5:S$236,$B29,Spells!$AC$5:$AC$236,"") -> 3 | U29: =COUNTIFS(Spells!T$5:T$236,$B29,Spells!$AC$5:$AC$236,"") -> 4 | V29: =COUNTIFS(Spells!U$5:U$236,$B29,Spells!$AC$5:$AC$236,"") -> 3 | W29: =COUNTIFS(Spells!V$5:V$236,$B29,Spells!$AC$5:$AC$236,"") -> 0
B30: 5 | C30: =COUNTIFS(Spells!B$5:B$236,$B30,Spells!$AC$5:$AC$236,"") -> 3 | D30: =COUNTIFS(Spells!C$5:C$236,$B30,Spells!$AC$5:$AC$236,"") -> 1 | E30: =COUNTIFS(Spells!D$5:D$236,$B30,Spells!$AC$5:$AC$236,"") -> 1 | F30: =COUNTIFS(Spells!E$5:E$236,$B30,Spells!$AC$5:$AC$236,"") -> 3 | G30: =COUNTIFS(Spells!F$5:F$236,$B30,Spells!$AC$5:$AC$236,"") -> 2 | H30: =COUNTIFS(Spells!G$5:G$236,$B30,Spells!$AC$5:$AC$236,"") -> 2 | I30: =COUNTIFS(Spells!H$5:H$236,$B30,Spells!$AC$5:$AC$236,"") -> 1 | J30: =COUNTIFS(Spells!I$5:I$236,$B30,Spells!$AC$5:$AC$236,"") -> 12 | K30: =COUNTIFS(Spells!J$5:J$236,$B30,Spells!$AC$5:$AC$236,"") -> 2 | L30: =COUNTIFS(Spells!K$5:K$236,$B30,Spells!$AC$5:$AC$236,"") -> 2 | M30: =COUNTIFS(Spells!L$5:L$236,$B30,Spells!$AC$5:$AC$236,"") -> 4 | N30: =COUNTIFS(Spells!M$5:M$236,$B30,Spells!$AC$5:$AC$236,"") -> 4 | O30: =COUNTIFS(Spells!N$5:N$236,$B30,Spells!$AC$5:$AC$236,"") -> 3 | P30: =COUNTIFS(Spells!O$5:O$236,$B30,Spells!$AC$5:$AC$236,"") -> 4 | Q30: =COUNTIFS(Spells!P$5:P$236,$B30,Spells!$AC$5:$AC$236,"") -> 4 | R30: =COUNTIFS(Spells!Q$5:Q$236,$B30,Spells!$AC$5:$AC$236,"") -> 1 | S30: =COUNTIFS(Spells!R$5:R$236,$B30,Spells!$AC$5:$AC$236,"") -> 3 | T30: =COUNTIFS(Spells!S$5:S$236,$B30,Spells!$AC$5:$AC$236,"") -> 2 | U30: =COUNTIFS(Spells!T$5:T$236,$B30,Spells!$AC$5:$AC$236,"") -> 4 | V30: =COUNTIFS(Spells!U$5:U$236,$B30,Spells!$AC$5:$AC$236,"") -> 3 | W30: =COUNTIFS(Spells!V$5:V$236,$B30,Spells!$AC$5:$AC$236,"") -> 0
B31: 6 | C31: =COUNTIFS(Spells!B$5:B$236,$B31,Spells!$AC$5:$AC$236,"") -> 1 | D31: =COUNTIFS(Spells!C$5:C$236,$B31,Spells!$AC$5:$AC$236,"") -> 1 | E31: =COUNTIFS(Spells!D$5:D$236,$B31,Spells!$AC$5:$AC$236,"") -> 1 | F31: =COUNTIFS(Spells!E$5:E$236,$B31,Spells!$AC$5:$AC$236,"") -> 1 | G31: =COUNTIFS(Spells!F$5:F$236,$B31,Spells!$AC$5:$AC$236,"") -> 3 | H31: =COUNTIFS(Spells!G$5:G$236,$B31,Spells!$AC$5:$AC$236,"") -> 1 | I31: =COUNTIFS(Spells!H$5:H$236,$B31,Spells!$AC$5:$AC$236,"") -> 0 | J31: =COUNTIFS(Spells!I$5:I$236,$B31,Spells!$AC$5:$AC$236,"") -> 10 | K31: =COUNTIFS(Spells!J$5:J$236,$B31,Spells!$AC$5:$AC$236,"") -> 3 | L31: =COUNTIFS(Spells!K$5:K$236,$B31,Spells!$AC$5:$AC$236,"") -> 1 | M31: =COUNTIFS(Spells!L$5:L$236,$B31,Spells!$AC$5:$AC$236,"") -> 4 | N31: =COUNTIFS(Spells!M$5:M$236,$B31,Spells!$AC$5:$AC$236,"") -> 3 | O31: =COUNTIFS(Spells!N$5:N$236,$B31,Spells!$AC$5:$AC$236,"") -> 1 | P31: =COUNTIFS(Spells!O$5:O$236,$B31,Spells!$AC$5:$AC$236,"") -> 1 | Q31: =COUNTIFS(Spells!P$5:P$236,$B31,Spells!$AC$5:$AC$236,"") -> 2 | R31: =COUNTIFS(Spells!Q$5:Q$236,$B31,Spells!$AC$5:$AC$236,"") -> 1 | S31: =COUNTIFS(Spells!R$5:R$236,$B31,Spells!$AC$5:$AC$236,"") -> 1 | T31: =COUNTIFS(Spells!S$5:S$236,$B31,Spells!$AC$5:$AC$236,"") -> 2 | U31: =COUNTIFS(Spells!T$5:T$236,$B31,Spells!$AC$5:$AC$236,"") -> 3 | V31: =COUNTIFS(Spells!U$5:U$236,$B31,Spells!$AC$5:$AC$236,"") -> 3 | W31: =COUNTIFS(Spells!V$5:V$236,$B31,Spells!$AC$5:$AC$236,"") -> 0
B32: 7 | C32: =COUNTIFS(Spells!B$5:B$236,$B32,Spells!$AC$5:$AC$236,"") -> 2 | D32: =COUNTIFS(Spells!C$5:C$236,$B32,Spells!$AC$5:$AC$236,"") -> 1 | E32: =COUNTIFS(Spells!D$5:D$236,$B32,Spells!$AC$5:$AC$236,"") -> 0 | F32: =COUNTIFS(Spells!E$5:E$236,$B32,Spells!$AC$5:$AC$236,"") -> 1 | G32: =COUNTIFS(Spells!F$5:F$236,$B32,Spells!$AC$5:$AC$236,"") -> 3 | H32: =COUNTIFS(Spells!G$5:G$236,$B32,Spells!$AC$5:$AC$236,"") -> 0 | I32: =COUNTIFS(Spells!H$5:H$236,$B32,Spells!$AC$5:$AC$236,"") -> 0 | J32: =COUNTIFS(Spells!I$5:I$236,$B32,Spells!$AC$5:$AC$236,"") -> 8 | K32: =COUNTIFS(Spells!J$5:J$236,$B32,Spells!$AC$5:$AC$236,"") -> 1 | L32: =COUNTIFS(Spells!K$5:K$236,$B32,Spells!$AC$5:$AC$236,"") -> 1 | M32: =COUNTIFS(Spells!L$5:L$236,$B32,Spells!$AC$5:$AC$236,"") -> 2 | N32: =COUNTIFS(Spells!M$5:M$236,$B32,Spells!$AC$5:$AC$236,"") -> 2 | O32: =COUNTIFS(Spells!N$5:N$236,$B32,Spells!$AC$5:$AC$236,"") -> 2 | P32: =COUNTIFS(Spells!O$5:O$236,$B32,Spells!$AC$5:$AC$236,"") -> 1 | Q32: =COUNTIFS(Spells!P$5:P$236,$B32,Spells!$AC$5:$AC$236,"") -> 2 | R32: =COUNTIFS(Spells!Q$5:Q$236,$B32,Spells!$AC$5:$AC$236,"") -> 1 | S32: =COUNTIFS(Spells!R$5:R$236,$B32,Spells!$AC$5:$AC$236,"") -> 2 | T32: =COUNTIFS(Spells!S$5:S$236,$B32,Spells!$AC$5:$AC$236,"") -> 2 | U32: =COUNTIFS(Spells!T$5:T$236,$B32,Spells!$AC$5:$AC$236,"") -> 2 | V32: =COUNTIFS(Spells!U$5:U$236,$B32,Spells!$AC$5:$AC$236,"") -> 1 | W32: =COUNTIFS(Spells!V$5:V$236,$B32,Spells!$AC$5:$AC$236,"") -> 0
B33: 8 | C33: =COUNTIFS(Spells!B$5:B$236,$B33,Spells!$AC$5:$AC$236,"") -> 1 | D33: =COUNTIFS(Spells!C$5:C$236,$B33,Spells!$AC$5:$AC$236,"") -> 0 | E33: =COUNTIFS(Spells!D$5:D$236,$B33,Spells!$AC$5:$AC$236,"") -> 0 | F33: =COUNTIFS(Spells!E$5:E$236,$B33,Spells!$AC$5:$AC$236,"") -> 0 | G33: =COUNTIFS(Spells!F$5:F$236,$B33,Spells!$AC$5:$AC$236,"") -> 1 | H33: =COUNTIFS(Spells!G$5:G$236,$B33,Spells!$AC$5:$AC$236,"") -> 0 | I33: =COUNTIFS(Spells!H$5:H$236,$B33,Spells!$AC$5:$AC$236,"") -> 0 | J33: =COUNTIFS(Spells!I$5:I$236,$B33,Spells!$AC$5:$AC$236,"") -> 2 | K33: =COUNTIFS(Spells!J$5:J$236,$B33,Spells!$AC$5:$AC$236,"") -> 0 | L33: =COUNTIFS(Spells!K$5:K$236,$B33,Spells!$AC$5:$AC$236,"") -> 0 | M33: =COUNTIFS(Spells!L$5:L$236,$B33,Spells!$AC$5:$AC$236,"") -> 0 | N33: =COUNTIFS(Spells!M$5:M$236,$B33,Spells!$AC$5:$AC$236,"") -> 0 | O33: =COUNTIFS(Spells!N$5:N$236,$B33,Spells!$AC$5:$AC$236,"") -> 0 | P33: =COUNTIFS(Spells!O$5:O$236,$B33,Spells!$AC$5:$AC$236,"") -> 0 | Q33: =COUNTIFS(Spells!P$5:P$236,$B33,Spells!$AC$5:$AC$236,"") -> 0 | R33: =COUNTIFS(Spells!Q$5:Q$236,$B33,Spells!$AC$5:$AC$236,"") -> 0 | S33: =COUNTIFS(Spells!R$5:R$236,$B33,Spells!$AC$5:$AC$236,"") -> 0 | T33: =COUNTIFS(Spells!S$5:S$236,$B33,Spells!$AC$5:$AC$236,"") -> 0 | U33: =COUNTIFS(Spells!T$5:T$236,$B33,Spells!$AC$5:$AC$236,"") -> 0 | V33: =COUNTIFS(Spells!U$5:U$236,$B33,Spells!$AC$5:$AC$236,"") -> 0 | W33: =COUNTIFS(Spells!V$5:V$236,$B33,Spells!$AC$5:$AC$236,"") -> 0
B34: 9 | C34: =COUNTIFS(Spells!B$5:B$236,$B34,Spells!$AC$5:$AC$236,"") -> 2 | D34: =COUNTIFS(Spells!C$5:C$236,$B34,Spells!$AC$5:$AC$236,"") -> 0 | E34: =COUNTIFS(Spells!D$5:D$236,$B34,Spells!$AC$5:$AC$236,"") -> 0 | F34: =COUNTIFS(Spells!E$5:E$236,$B34,Spells!$AC$5:$AC$236,"") -> 0 | G34: =COUNTIFS(Spells!F$5:F$236,$B34,Spells!$AC$5:$AC$236,"") -> 0 | H34: =COUNTIFS(Spells!G$5:G$236,$B34,Spells!$AC$5:$AC$236,"") -> 0 | I34: =COUNTIFS(Spells!H$5:H$236,$B34,Spells!$AC$5:$AC$236,"") -> 0 | J34: =COUNTIFS(Spells!I$5:I$236,$B34,Spells!$AC$5:$AC$236,"") -> 2 | K34: =COUNTIFS(Spells!J$5:J$236,$B34,Spells!$AC$5:$AC$236,"") -> 0 | L34: =COUNTIFS(Spells!K$5:K$236,$B34,Spells!$AC$5:$AC$236,"") -> 0 | M34: =COUNTIFS(Spells!L$5:L$236,$B34,Spells!$AC$5:$AC$236,"") -> 0 | N34: =COUNTIFS(Spells!M$5:M$236,$B34,Spells!$AC$5:$AC$236,"") -> 0 | O34: =COUNTIFS(Spells!N$5:N$236,$B34,Spells!$AC$5:$AC$236,"") -> 0 | P34: =COUNTIFS(Spells!O$5:O$236,$B34,Spells!$AC$5:$AC$236,"") -> 0 | Q34: =COUNTIFS(Spells!P$5:P$236,$B34,Spells!$AC$5:$AC$236,"") -> 0 | R34: =COUNTIFS(Spells!Q$5:Q$236,$B34,Spells!$AC$5:$AC$236,"") -> 0 | S34: =COUNTIFS(Spells!R$5:R$236,$B34,Spells!$AC$5:$AC$236,"") -> 0 | T34: =COUNTIFS(Spells!S$5:S$236,$B34,Spells!$AC$5:$AC$236,"") -> 0 | U34: =COUNTIFS(Spells!T$5:T$236,$B34,Spells!$AC$5:$AC$236,"") -> 0 | V34: =COUNTIFS(Spells!U$5:U$236,$B34,Spells!$AC$5:$AC$236,"") -> 0 | W34: =COUNTIFS(Spells!V$5:V$236,$B34,Spells!$AC$5:$AC$236,"") -> 0
A36: Reaction
C37: Alteration | D37: Emotion | E37: E-mag | F37: Elemental | G37: C/A | H37: Force | I37: Divination | J37: level | K37: Ki | L37: Bahrie | M37: Correllion | N37: Eo | O37: Correllion 2 | P37: Hast | Q37: Innana | R37: Loki | S37: Moradin | T37: Thor 2 | U37: Thor | V37: Poseidon | W37: Shaman
B38: 1 | C38: =COUNTIFS(Spells!B$5:B$236,$B38,Spells!$AC$5:$AC$236,"React") -> 0 | D38: =COUNTIFS(Spells!C$5:C$236,$B38,Spells!$AC$5:$AC$236,"React") -> 0 | E38: =COUNTIFS(Spells!D$5:D$236,$B38,Spells!$AC$5:$AC$236,"React") -> 0 | F38: =COUNTIFS(Spells!E$5:E$236,$B38,Spells!$AC$5:$AC$236,"React") -> 0 | G38: =COUNTIFS(Spells!F$5:F$236,$B38,Spells!$AC$5:$AC$236,"React") -> 0 | H38: =COUNTIFS(Spells!G$5:G$236,$B38,Spells!$AC$5:$AC$236,"React") -> 2 | I38: =COUNTIFS(Spells!H$5:H$236,$B38,Spells!$AC$5:$AC$236,"React") -> 0 | J38: =COUNTIFS(Spells!I$5:I$236,$B38,Spells!$AC$5:$AC$236,"React") -> 3 | K38: =COUNTIFS(Spells!J$5:J$236,$B38,Spells!$AC$5:$AC$236,"React") -> 1 | L38: =COUNTIFS(Spells!K$5:K$236,$B38,Spells!$AC$5:$AC$236,"React") -> 1 | M38: =COUNTIFS(Spells!L$5:L$236,$B38,Spells!$AC$5:$AC$236,"React") -> 1 | N38: =COUNTIFS(Spells!M$5:M$236,$B38,Spells!$AC$5:$AC$236,"React") -> 1 | O38: =COUNTIFS(Spells!N$5:N$236,$B38,Spells!$AC$5:$AC$236,"React") -> 1 | P38: =COUNTIFS(Spells!O$5:O$236,$B38,Spells!$AC$5:$AC$236,"React") -> 1 | Q38: =COUNTIFS(Spells!P$5:P$236,$B38,Spells!$AC$5:$AC$236,"React") -> 2 | R38: =COUNTIFS(Spells!Q$5:Q$236,$B38,Spells!$AC$5:$AC$236,"React") -> 2 | S38: =COUNTIFS(Spells!R$5:R$236,$B38,Spells!$AC$5:$AC$236,"React") -> 1 | T38: =COUNTIFS(Spells!S$5:S$236,$B38,Spells!$AC$5:$AC$236,"React") -> 2 | U38: =COUNTIFS(Spells!T$5:T$236,$B38,Spells!$AC$5:$AC$236,"React") -> 2 | V38: =COUNTIFS(Spells!U$5:U$236,$B38,Spells!$AC$5:$AC$236,"React") -> 1 | W38: =COUNTIFS(Spells!V$5:V$236,$B38,Spells!$AC$5:$AC$236,"React") -> 0
B39: 2 | C39: =COUNTIFS(Spells!B$5:B$236,$B39,Spells!$AC$5:$AC$236,"React") -> 1 | D39: =COUNTIFS(Spells!C$5:C$236,$B39,Spells!$AC$5:$AC$236,"React") -> 0 | E39: =COUNTIFS(Spells!D$5:D$236,$B39,Spells!$AC$5:$AC$236,"React") -> 0 | F39: =COUNTIFS(Spells!E$5:E$236,$B39,Spells!$AC$5:$AC$236,"React") -> 0 | G39: =COUNTIFS(Spells!F$5:F$236,$B39,Spells!$AC$5:$AC$236,"React") -> 1 | H39: =COUNTIFS(Spells!G$5:G$236,$B39,Spells!$AC$5:$AC$236,"React") -> 1 | I39: =COUNTIFS(Spells!H$5:H$236,$B39,Spells!$AC$5:$AC$236,"React") -> 0 | J39: =COUNTIFS(Spells!I$5:I$236,$B39,Spells!$AC$5:$AC$236,"React") -> 1 | K39: =COUNTIFS(Spells!J$5:J$236,$B39,Spells!$AC$5:$AC$236,"React") -> 1 | L39: =COUNTIFS(Spells!K$5:K$236,$B39,Spells!$AC$5:$AC$236,"React") -> 1 | M39: =COUNTIFS(Spells!L$5:L$236,$B39,Spells!$AC$5:$AC$236,"React") -> 0 | N39: =COUNTIFS(Spells!M$5:M$236,$B39,Spells!$AC$5:$AC$236,"React") -> 0 | O39: =COUNTIFS(Spells!N$5:N$236,$B39,Spells!$AC$5:$AC$236,"React") -> 0 | P39: =COUNTIFS(Spells!O$5:O$236,$B39,Spells!$AC$5:$AC$236,"React") -> 0 | Q39: =COUNTIFS(Spells!P$5:P$236,$B39,Spells!$AC$5:$AC$236,"React") -> 0 | R39: =COUNTIFS(Spells!Q$5:Q$236,$B39,Spells!$AC$5:$AC$236,"React") -> 1 | S39: =COUNTIFS(Spells!R$5:R$236,$B39,Spells!$AC$5:$AC$236,"React") -> 0 | T39: =COUNTIFS(Spells!S$5:S$236,$B39,Spells!$AC$5:$AC$236,"React") -> 0 | U39: =COUNTIFS(Spells!T$5:T$236,$B39,Spells!$AC$5:$AC$236,"React") -> 0 | V39: =COUNTIFS(Spells!U$5:U$236,$B39,Spells!$AC$5:$AC$236,"React") -> 0 | W39: =COUNTIFS(Spells!V$5:V$236,$B39,Spells!$AC$5:$AC$236,"React") -> 0
B40: 3 | C40: =COUNTIFS(Spells!B$5:B$236,$B40,Spells!$AC$5:$AC$236,"React") -> 0 | D40: =COUNTIFS(Spells!C$5:C$236,$B40,Spells!$AC$5:$AC$236,"React") -> 0 | E40: =COUNTIFS(Spells!D$5:D$236,$B40,Spells!$AC$5:$AC$236,"React") -> 0 | F40: =COUNTIFS(Spells!E$5:E$236,$B40,Spells!$AC$5:$AC$236,"React") -> 0 | G40: =COUNTIFS(Spells!F$5:F$236,$B40,Spells!$AC$5:$AC$236,"React") -> 0 | H40: =COUNTIFS(Spells!G$5:G$236,$B40,Spells!$AC$5:$AC$236,"React") -> 1 | I40: =COUNTIFS(Spells!H$5:H$236,$B40,Spells!$AC$5:$AC$236,"React") -> 0 | J40: =COUNTIFS(Spells!I$5:I$236,$B40,Spells!$AC$5:$AC$236,"React") -> 1 | K40: =COUNTIFS(Spells!J$5:J$236,$B40,Spells!$AC$5:$AC$236,"React") -> 0 | L40: =COUNTIFS(Spells!K$5:K$236,$B40,Spells!$AC$5:$AC$236,"React") -> 0 | M40: =COUNTIFS(Spells!L$5:L$236,$B40,Spells!$AC$5:$AC$236,"React") -> 0 | N40: =COUNTIFS(Spells!M$5:M$236,$B40,Spells!$AC$5:$AC$236,"React") -> 0 | O40: =COUNTIFS(Spells!N$5:N$236,$B40,Spells!$AC$5:$AC$236,"React") -> 0 | P40: =COUNTIFS(Spells!O$5:O$236,$B40,Spells!$AC$5:$AC$236,"React") -> 0 | Q40: =COUNTIFS(Spells!P$5:P$236,$B40,Spells!$AC$5:$AC$236,"React") -> 1 | R40: =COUNTIFS(Spells!Q$5:Q$236,$B40,Spells!$AC$5:$AC$236,"React") -> 0 | S40: =COUNTIFS(Spells!R$5:R$236,$B40,Spells!$AC$5:$AC$236,"React") -> 0 | T40: =COUNTIFS(Spells!S$5:S$236,$B40,Spells!$AC$5:$AC$236,"React") -> 0 | U40: =COUNTIFS(Spells!T$5:T$236,$B40,Spells!$AC$5:$AC$236,"React") -> 1 | V40: =COUNTIFS(Spells!U$5:U$236,$B40,Spells!$AC$5:$AC$236,"React") -> 0 | W40: =COUNTIFS(Spells!V$5:V$236,$B40,Spells!$AC$5:$AC$236,"React") -> 0
B41: 4 | C41: =COUNTIFS(Spells!B$5:B$236,$B41,Spells!$AC$5:$AC$236,"React") -> 0 | D41: =COUNTIFS(Spells!C$5:C$236,$B41,Spells!$AC$5:$AC$236,"React") -> 0 | E41: =COUNTIFS(Spells!D$5:D$236,$B41,Spells!$AC$5:$AC$236,"React") -> 0 | F41: =COUNTIFS(Spells!E$5:E$236,$B41,Spells!$AC$5:$AC$236,"React") -> 0 | G41: =COUNTIFS(Spells!F$5:F$236,$B41,Spells!$AC$5:$AC$236,"React") -> 0 | H41: =COUNTIFS(Spells!G$5:G$236,$B41,Spells!$AC$5:$AC$236,"React") -> 0 | I41: =COUNTIFS(Spells!H$5:H$236,$B41,Spells!$AC$5:$AC$236,"React") -> 0 | J41: =COUNTIFS(Spells!I$5:I$236,$B41,Spells!$AC$5:$AC$236,"React") -> 0 | K41: =COUNTIFS(Spells!J$5:J$236,$B41,Spells!$AC$5:$AC$236,"React") -> 0 | L41: =COUNTIFS(Spells!K$5:K$236,$B41,Spells!$AC$5:$AC$236,"React") -> 0 | M41: =COUNTIFS(Spells!L$5:L$236,$B41,Spells!$AC$5:$AC$236,"React") -> 0 | N41: =COUNTIFS(Spells!M$5:M$236,$B41,Spells!$AC$5:$AC$236,"React") -> 0 | O41: =COUNTIFS(Spells!N$5:N$236,$B41,Spells!$AC$5:$AC$236,"React") -> 0 | P41: =COUNTIFS(Spells!O$5:O$236,$B41,Spells!$AC$5:$AC$236,"React") -> 0 | Q41: =COUNTIFS(Spells!P$5:P$236,$B41,Spells!$AC$5:$AC$236,"React") -> 0 | R41: =COUNTIFS(Spells!Q$5:Q$236,$B41,Spells!$AC$5:$AC$236,"React") -> 0 | S41: =COUNTIFS(Spells!R$5:R$236,$B41,Spells!$AC$5:$AC$236,"React") -> 0 | T41: =COUNTIFS(Spells!S$5:S$236,$B41,Spells!$AC$5:$AC$236,"React") -> 0 | U41: =COUNTIFS(Spells!T$5:T$236,$B41,Spells!$AC$5:$AC$236,"React") -> 0 | V41: =COUNTIFS(Spells!U$5:U$236,$B41,Spells!$AC$5:$AC$236,"React") -> 0 | W41: =COUNTIFS(Spells!V$5:V$236,$B41,Spells!$AC$5:$AC$236,"React") -> 0
B42: 5 | C42: =COUNTIFS(Spells!B$5:B$236,$B42,Spells!$AC$5:$AC$236,"React") -> 0 | D42: =COUNTIFS(Spells!C$5:C$236,$B42,Spells!$AC$5:$AC$236,"React") -> 0 | E42: =COUNTIFS(Spells!D$5:D$236,$B42,Spells!$AC$5:$AC$236,"React") -> 0 | F42: =COUNTIFS(Spells!E$5:E$236,$B42,Spells!$AC$5:$AC$236,"React") -> 0 | G42: =COUNTIFS(Spells!F$5:F$236,$B42,Spells!$AC$5:$AC$236,"React") -> 0 | H42: =COUNTIFS(Spells!G$5:G$236,$B42,Spells!$AC$5:$AC$236,"React") -> 0 | I42: =COUNTIFS(Spells!H$5:H$236,$B42,Spells!$AC$5:$AC$236,"React") -> 0 | J42: =COUNTIFS(Spells!I$5:I$236,$B42,Spells!$AC$5:$AC$236,"React") -> 0 | K42: =COUNTIFS(Spells!J$5:J$236,$B42,Spells!$AC$5:$AC$236,"React") -> 0 | L42: =COUNTIFS(Spells!K$5:K$236,$B42,Spells!$AC$5:$AC$236,"React") -> 0 | M42: =COUNTIFS(Spells!L$5:L$236,$B42,Spells!$AC$5:$AC$236,"React") -> 0 | N42: =COUNTIFS(Spells!M$5:M$236,$B42,Spells!$AC$5:$AC$236,"React") -> 0 | O42: =COUNTIFS(Spells!N$5:N$236,$B42,Spells!$AC$5:$AC$236,"React") -> 0 | P42: =COUNTIFS(Spells!O$5:O$236,$B42,Spells!$AC$5:$AC$236,"React") -> 0 | Q42: =COUNTIFS(Spells!P$5:P$236,$B42,Spells!$AC$5:$AC$236,"React") -> 0 | R42: =COUNTIFS(Spells!Q$5:Q$236,$B42,Spells!$AC$5:$AC$236,"React") -> 0 | S42: =COUNTIFS(Spells!R$5:R$236,$B42,Spells!$AC$5:$AC$236,"React") -> 0 | T42: =COUNTIFS(Spells!S$5:S$236,$B42,Spells!$AC$5:$AC$236,"React") -> 0 | U42: =COUNTIFS(Spells!T$5:T$236,$B42,Spells!$AC$5:$AC$236,"React") -> 0 | V42: =COUNTIFS(Spells!U$5:U$236,$B42,Spells!$AC$5:$AC$236,"React") -> 0 | W42: =COUNTIFS(Spells!V$5:V$236,$B42,Spells!$AC$5:$AC$236,"React") -> 0
B43: 6 | C43: =COUNTIFS(Spells!B$5:B$236,$B43,Spells!$AC$5:$AC$236,"React") -> 0 | D43: =COUNTIFS(Spells!C$5:C$236,$B43,Spells!$AC$5:$AC$236,"React") -> 0 | E43: =COUNTIFS(Spells!D$5:D$236,$B43,Spells!$AC$5:$AC$236,"React") -> 0 | F43: =COUNTIFS(Spells!E$5:E$236,$B43,Spells!$AC$5:$AC$236,"React") -> 0 | G43: =COUNTIFS(Spells!F$5:F$236,$B43,Spells!$AC$5:$AC$236,"React") -> 1 | H43: =COUNTIFS(Spells!G$5:G$236,$B43,Spells!$AC$5:$AC$236,"React") -> 0 | I43: =COUNTIFS(Spells!H$5:H$236,$B43,Spells!$AC$5:$AC$236,"React") -> 0 | J43: =COUNTIFS(Spells!I$5:I$236,$B43,Spells!$AC$5:$AC$236,"React") -> 1 | K43: =COUNTIFS(Spells!J$5:J$236,$B43,Spells!$AC$5:$AC$236,"React") -> 0 | L43: =COUNTIFS(Spells!K$5:K$236,$B43,Spells!$AC$5:$AC$236,"React") -> 0 | M43: =COUNTIFS(Spells!L$5:L$236,$B43,Spells!$AC$5:$AC$236,"React") -> 0 | N43: =COUNTIFS(Spells!M$5:M$236,$B43,Spells!$AC$5:$AC$236,"React") -> 0 | O43: =COUNTIFS(Spells!N$5:N$236,$B43,Spells!$AC$5:$AC$236,"React") -> 0 | P43: =COUNTIFS(Spells!O$5:O$236,$B43,Spells!$AC$5:$AC$236,"React") -> 0 | Q43: =COUNTIFS(Spells!P$5:P$236,$B43,Spells!$AC$5:$AC$236,"React") -> 0 | R43: =COUNTIFS(Spells!Q$5:Q$236,$B43,Spells!$AC$5:$AC$236,"React") -> 1 | S43: =COUNTIFS(Spells!R$5:R$236,$B43,Spells!$AC$5:$AC$236,"React") -> 0 | T43: =COUNTIFS(Spells!S$5:S$236,$B43,Spells!$AC$5:$AC$236,"React") -> 0 | U43: =COUNTIFS(Spells!T$5:T$236,$B43,Spells!$AC$5:$AC$236,"React") -> 0 | V43: =COUNTIFS(Spells!U$5:U$236,$B43,Spells!$AC$5:$AC$236,"React") -> 0 | W43: =COUNTIFS(Spells!V$5:V$236,$B43,Spells!$AC$5:$AC$236,"React") -> 0
B44: 7 | C44: =COUNTIFS(Spells!B$5:B$236,$B44,Spells!$AC$5:$AC$236,"React") -> 0 | D44: =COUNTIFS(Spells!C$5:C$236,$B44,Spells!$AC$5:$AC$236,"React") -> 0 | E44: =COUNTIFS(Spells!D$5:D$236,$B44,Spells!$AC$5:$AC$236,"React") -> 0 | F44: =COUNTIFS(Spells!E$5:E$236,$B44,Spells!$AC$5:$AC$236,"React") -> 0 | G44: =COUNTIFS(Spells!F$5:F$236,$B44,Spells!$AC$5:$AC$236,"React") -> 0 | H44: =COUNTIFS(Spells!G$5:G$236,$B44,Spells!$AC$5:$AC$236,"React") -> 0 | I44: =COUNTIFS(Spells!H$5:H$236,$B44,Spells!$AC$5:$AC$236,"React") -> 0 | J44: =COUNTIFS(Spells!I$5:I$236,$B44,Spells!$AC$5:$AC$236,"React") -> 0 | K44: =COUNTIFS(Spells!J$5:J$236,$B44,Spells!$AC$5:$AC$236,"React") -> 0 | L44: =COUNTIFS(Spells!K$5:K$236,$B44,Spells!$AC$5:$AC$236,"React") -> 0 | M44: =COUNTIFS(Spells!L$5:L$236,$B44,Spells!$AC$5:$AC$236,"React") -> 0 | N44: =COUNTIFS(Spells!M$5:M$236,$B44,Spells!$AC$5:$AC$236,"React") -> 0 | O44: =COUNTIFS(Spells!N$5:N$236,$B44,Spells!$AC$5:$AC$236,"React") -> 0 | P44: =COUNTIFS(Spells!O$5:O$236,$B44,Spells!$AC$5:$AC$236,"React") -> 0 | Q44: =COUNTIFS(Spells!P$5:P$236,$B44,Spells!$AC$5:$AC$236,"React") -> 0 | R44: =COUNTIFS(Spells!Q$5:Q$236,$B44,Spells!$AC$5:$AC$236,"React") -> 0 | S44: =COUNTIFS(Spells!R$5:R$236,$B44,Spells!$AC$5:$AC$236,"React") -> 0 | T44: =COUNTIFS(Spells!S$5:S$236,$B44,Spells!$AC$5:$AC$236,"React") -> 0 | U44: =COUNTIFS(Spells!T$5:T$236,$B44,Spells!$AC$5:$AC$236,"React") -> 0 | V44: =COUNTIFS(Spells!U$5:U$236,$B44,Spells!$AC$5:$AC$236,"React") -> 0 | W44: =COUNTIFS(Spells!V$5:V$236,$B44,Spells!$AC$5:$AC$236,"React") -> 0
B45: 8 | C45: =COUNTIFS(Spells!B$5:B$236,$B45,Spells!$AC$5:$AC$236,"React") -> 0 | D45: =COUNTIFS(Spells!C$5:C$236,$B45,Spells!$AC$5:$AC$236,"React") -> 0 | E45: =COUNTIFS(Spells!D$5:D$236,$B45,Spells!$AC$5:$AC$236,"React") -> 0 | F45: =COUNTIFS(Spells!E$5:E$236,$B45,Spells!$AC$5:$AC$236,"React") -> 0 | G45: =COUNTIFS(Spells!F$5:F$236,$B45,Spells!$AC$5:$AC$236,"React") -> 0 | H45: =COUNTIFS(Spells!G$5:G$236,$B45,Spells!$AC$5:$AC$236,"React") -> 0 | I45: =COUNTIFS(Spells!H$5:H$236,$B45,Spells!$AC$5:$AC$236,"React") -> 0 | J45: =COUNTIFS(Spells!I$5:I$236,$B45,Spells!$AC$5:$AC$236,"React") -> 0 | K45: =COUNTIFS(Spells!J$5:J$236,$B45,Spells!$AC$5:$AC$236,"React") -> 0 | L45: =COUNTIFS(Spells!K$5:K$236,$B45,Spells!$AC$5:$AC$236,"React") -> 0 | M45: =COUNTIFS(Spells!L$5:L$236,$B45,Spells!$AC$5:$AC$236,"React") -> 0 | N45: =COUNTIFS(Spells!M$5:M$236,$B45,Spells!$AC$5:$AC$236,"React") -> 0 | O45: =COUNTIFS(Spells!N$5:N$236,$B45,Spells!$AC$5:$AC$236,"React") -> 0 | P45: =COUNTIFS(Spells!O$5:O$236,$B45,Spells!$AC$5:$AC$236,"React") -> 0 | Q45: =COUNTIFS(Spells!P$5:P$236,$B45,Spells!$AC$5:$AC$236,"React") -> 0 | R45: =COUNTIFS(Spells!Q$5:Q$236,$B45,Spells!$AC$5:$AC$236,"React") -> 0 | S45: =COUNTIFS(Spells!R$5:R$236,$B45,Spells!$AC$5:$AC$236,"React") -> 0 | T45: =COUNTIFS(Spells!S$5:S$236,$B45,Spells!$AC$5:$AC$236,"React") -> 0 | U45: =COUNTIFS(Spells!T$5:T$236,$B45,Spells!$AC$5:$AC$236,"React") -> 0 | V45: =COUNTIFS(Spells!U$5:U$236,$B45,Spells!$AC$5:$AC$236,"React") -> 0 | W45: =COUNTIFS(Spells!V$5:V$236,$B45,Spells!$AC$5:$AC$236,"React") -> 0
B46: 9 | C46: =COUNTIFS(Spells!B$5:B$236,$B46,Spells!$AC$5:$AC$236,"React") -> 0 | D46: =COUNTIFS(Spells!C$5:C$236,$B46,Spells!$AC$5:$AC$236,"React") -> 0 | E46: =COUNTIFS(Spells!D$5:D$236,$B46,Spells!$AC$5:$AC$236,"React") -> 0 | F46: =COUNTIFS(Spells!E$5:E$236,$B46,Spells!$AC$5:$AC$236,"React") -> 0 | G46: =COUNTIFS(Spells!F$5:F$236,$B46,Spells!$AC$5:$AC$236,"React") -> 0 | H46: =COUNTIFS(Spells!G$5:G$236,$B46,Spells!$AC$5:$AC$236,"React") -> 0 | I46: =COUNTIFS(Spells!H$5:H$236,$B46,Spells!$AC$5:$AC$236,"React") -> 0 | J46: =COUNTIFS(Spells!I$5:I$236,$B46,Spells!$AC$5:$AC$236,"React") -> 0 | K46: =COUNTIFS(Spells!J$5:J$236,$B46,Spells!$AC$5:$AC$236,"React") -> 0 | L46: =COUNTIFS(Spells!K$5:K$236,$B46,Spells!$AC$5:$AC$236,"React") -> 0 | M46: =COUNTIFS(Spells!L$5:L$236,$B46,Spells!$AC$5:$AC$236,"React") -> 0 | N46: =COUNTIFS(Spells!M$5:M$236,$B46,Spells!$AC$5:$AC$236,"React") -> 0 | O46: =COUNTIFS(Spells!N$5:N$236,$B46,Spells!$AC$5:$AC$236,"React") -> 0 | P46: =COUNTIFS(Spells!O$5:O$236,$B46,Spells!$AC$5:$AC$236,"React") -> 0 | Q46: =COUNTIFS(Spells!P$5:P$236,$B46,Spells!$AC$5:$AC$236,"React") -> 0 | R46: =COUNTIFS(Spells!Q$5:Q$236,$B46,Spells!$AC$5:$AC$236,"React") -> 0 | S46: =COUNTIFS(Spells!R$5:R$236,$B46,Spells!$AC$5:$AC$236,"React") -> 0 | T46: =COUNTIFS(Spells!S$5:S$236,$B46,Spells!$AC$5:$AC$236,"React") -> 0 | U46: =COUNTIFS(Spells!T$5:T$236,$B46,Spells!$AC$5:$AC$236,"React") -> 0 | V46: =COUNTIFS(Spells!U$5:U$236,$B46,Spells!$AC$5:$AC$236,"React") -> 0 | W46: =COUNTIFS(Spells!V$5:V$236,$B46,Spells!$AC$5:$AC$236,"React") -> 0
A48: Total
C49: Alteration | D49: Emotion | E49: E-mag | F49: Elemental | G49: C/A | H49: Force | I49: Divination | J49: level | K49: Ki | L49: Bahrie | M49: Correllion | N49: Eo | O49: Correllion 2 | P49: Hast | Q49: Innana | R49: Loki | S49: Moradin | T49: Thor 2 | U49: Thor | V49: Poseidon | W49: Shaman
A50: 1 | B50: 1 | C50: =COUNTIF(Spells!B2:B236,$B50) -> 17 | D50: =COUNTIF(Spells!C2:C236,$B50) -> 6 | E50: =COUNTIF(Spells!D2:D236,$B50) -> 6 | F50: =COUNTIF(Spells!E2:E236,$B50) -> 6 | G50: =COUNTIF(Spells!F2:F236,$B50) -> 8 | H50: =COUNTIF(Spells!G2:G236,$B50) -> 8 | I50: =COUNTIF(Spells!H2:H236,$B50) -> 9 | J50: =COUNTIF(Spells!I2:I236,$B50) -> 66 | K50: =COUNTIF(Spells!J2:J236,$B50) -> 21 | L50: =COUNTIF(Spells!K2:K236,$B50) -> 18 | M50: =COUNTIF(Spells!L2:L236,$B50) -> 15 | N50: =COUNTIF(Spells!M2:M236,$B50) -> 15 | O50: =COUNTIF(Spells!N2:N236,$B50) -> 14 | P50: =COUNTIF(Spells!O2:O236,$B50) -> 13 | Q50: =COUNTIF(Spells!P2:P236,$B50) -> 20 | R50: =COUNTIF(Spells!Q2:Q236,$B50) -> 24 | S50: =COUNTIF(Spells!R2:R236,$B50) -> 16 | T50: =COUNTIF(Spells!S2:S236,$B50) -> 13 | U50: =COUNTIF(Spells!T2:T236,$B50) -> 14 | V50: =COUNTIF(Spells!U2:U236,$B50) -> 14 | W50: =COUNTIF(Spells!V2:V236,$B50) -> 0
A51: 2 | B51: 2 | C51: =COUNTIF(Spells!B3:B237,$B51) -> 17 | D51: =COUNTIF(Spells!C3:C237,$B51) -> 7 | E51: =COUNTIF(Spells!D3:D237,$B51) -> 7 | F51: =COUNTIF(Spells!E3:E237,$B51) -> 6 | G51: =COUNTIF(Spells!F3:F237,$B51) -> 18 | H51: =COUNTIF(Spells!G3:G237,$B51) -> 2 | I51: =COUNTIF(Spells!H3:H237,$B51) -> 6 | J51: =COUNTIF(Spells!I3:I237,$B51) -> 46 | K51: =COUNTIF(Spells!J3:J237,$B51) -> 16 | L51: =COUNTIF(Spells!K3:K237,$B51) -> 14 | M51: =COUNTIF(Spells!L3:L237,$B51) -> 10 | N51: =COUNTIF(Spells!M3:M237,$B51) -> 7 | O51: =COUNTIF(Spells!N3:N237,$B51) -> 10 | P51: =COUNTIF(Spells!O3:O237,$B51) -> 8 | Q51: =COUNTIF(Spells!P3:P237,$B51) -> 10 | R51: =COUNTIF(Spells!Q3:Q237,$B51) -> 19 | S51: =COUNTIF(Spells!R3:R237,$B51) -> 13 | T51: =COUNTIF(Spells!S3:S237,$B51) -> 10 | U51: =COUNTIF(Spells!T3:T237,$B51) -> 10 | V51: =COUNTIF(Spells!U3:U237,$B51) -> 11 | W51: =COUNTIF(Spells!V3:V237,$B51) -> 0
A52: 3 | B52: 3 | C52: =COUNTIF(Spells!B4:B238,$B52) -> 5 | D52: =COUNTIF(Spells!C4:C238,$B52) -> 4 | E52: =COUNTIF(Spells!D4:D238,$B52) -> 1 | F52: =COUNTIF(Spells!E4:E238,$B52) -> 3 | G52: =COUNTIF(Spells!F4:F238,$B52) -> 3 | H52: =COUNTIF(Spells!G4:G238,$B52) -> 4 | I52: =COUNTIF(Spells!H4:H238,$B52) -> 4 | J52: =COUNTIF(Spells!I4:I238,$B52) -> 29 | K52: =COUNTIF(Spells!J4:J238,$B52) -> 6 | L52: =COUNTIF(Spells!K4:K238,$B52) -> 6 | M52: =COUNTIF(Spells!L4:L238,$B52) -> 8 | N52: =COUNTIF(Spells!M4:M238,$B52) -> 6 | O52: =COUNTIF(Spells!N4:N238,$B52) -> 8 | P52: =COUNTIF(Spells!O4:O238,$B52) -> 4 | Q52: =COUNTIF(Spells!P4:P238,$B52) -> 7 | R52: =COUNTIF(Spells!Q4:Q238,$B52) -> 6 | S52: =COUNTIF(Spells!R4:R238,$B52) -> 7 | T52: =COUNTIF(Spells!S4:S238,$B52) -> 7 | U52: =COUNTIF(Spells!T4:T238,$B52) -> 8 | V52: =COUNTIF(Spells!U4:U238,$B52) -> 5 | W52: =COUNTIF(Spells!V4:V238,$B52) -> 0
A53: 5 | B53: 4 | C53: =COUNTIF(Spells!B5:B239,$B53) -> 8 | D53: =COUNTIF(Spells!C5:C239,$B53) -> 3 | E53: =COUNTIF(Spells!D5:D239,$B53) -> 4 | F53: =COUNTIF(Spells!E5:E239,$B53) -> 5 | G53: =COUNTIF(Spells!F5:F239,$B53) -> 3 | H53: =COUNTIF(Spells!G5:G239,$B53) -> 4 | I53: =COUNTIF(Spells!H5:H239,$B53) -> 4 | J53: =COUNTIF(Spells!I5:I239,$B53) -> 36 | K53: =COUNTIF(Spells!J5:J239,$B53) -> 6 | L53: =COUNTIF(Spells!K5:K239,$B53) -> 5 | M53: =COUNTIF(Spells!L5:L239,$B53) -> 5 | N53: =COUNTIF(Spells!M5:M239,$B53) -> 5 | O53: =COUNTIF(Spells!N5:N239,$B53) -> 5 | P53: =COUNTIF(Spells!O5:O239,$B53) -> 4 | Q53: =COUNTIF(Spells!P5:P239,$B53) -> 4 | R53: =COUNTIF(Spells!Q5:Q239,$B53) -> 5 | S53: =COUNTIF(Spells!R5:R239,$B53) -> 5 | T53: =COUNTIF(Spells!S5:S239,$B53) -> 5 | U53: =COUNTIF(Spells!T5:T239,$B53) -> 6 | V53: =COUNTIF(Spells!U5:U239,$B53) -> 6 | W53: =COUNTIF(Spells!V5:V239,$B53) -> 0
A54: 7 | B54: 5 | C54: =COUNTIF(Spells!B6:B240,$B54) -> 5 | D54: =COUNTIF(Spells!C6:C240,$B54) -> 1 | E54: =COUNTIF(Spells!D6:D240,$B54) -> 2 | F54: =COUNTIF(Spells!E6:E240,$B54) -> 4 | G54: =COUNTIF(Spells!F6:F240,$B54) -> 7 | H54: =COUNTIF(Spells!G6:G240,$B54) -> 2 | I54: =COUNTIF(Spells!H6:H240,$B54) -> 1 | J54: =COUNTIF(Spells!I6:I240,$B54) -> 21 | K54: =COUNTIF(Spells!J6:J240,$B54) -> 5 | L54: =COUNTIF(Spells!K6:K240,$B54) -> 5 | M54: =COUNTIF(Spells!L6:L240,$B54) -> 7 | N54: =COUNTIF(Spells!M6:M240,$B54) -> 6 | O54: =COUNTIF(Spells!N6:N240,$B54) -> 4 | P54: =COUNTIF(Spells!O6:O240,$B54) -> 5 | Q54: =COUNTIF(Spells!P6:P240,$B54) -> 6 | R54: =COUNTIF(Spells!Q6:Q240,$B54) -> 3 | S54: =COUNTIF(Spells!R6:R240,$B54) -> 5 | T54: =COUNTIF(Spells!S6:S240,$B54) -> 3 | U54: =COUNTIF(Spells!T6:T240,$B54) -> 6 | V54: =COUNTIF(Spells!U6:U240,$B54) -> 5 | W54: =COUNTIF(Spells!V6:V240,$B54) -> 0
A55: 9 | B55: 6 | C55: =COUNTIF(Spells!B7:B241,$B55) -> 4 | D55: =COUNTIF(Spells!C7:C241,$B55) -> 2 | E55: =COUNTIF(Spells!D7:D241,$B55) -> 2 | F55: =COUNTIF(Spells!E7:E241,$B55) -> 1 | G55: =COUNTIF(Spells!F7:F241,$B55) -> 6 | H55: =COUNTIF(Spells!G7:G241,$B55) -> 1 | I55: =COUNTIF(Spells!H7:H241,$B55) -> 0 | J55: =COUNTIF(Spells!I7:I241,$B55) -> 18 | K55: =COUNTIF(Spells!J7:J241,$B55) -> 4 | L55: =COUNTIF(Spells!K7:K241,$B55) -> 3 | M55: =COUNTIF(Spells!L7:L241,$B55) -> 7 | N55: =COUNTIF(Spells!M7:M241,$B55) -> 5 | O55: =COUNTIF(Spells!N7:N241,$B55) -> 3 | P55: =COUNTIF(Spells!O7:O241,$B55) -> 2 | Q55: =COUNTIF(Spells!P7:P241,$B55) -> 3 | R55: =COUNTIF(Spells!Q7:Q241,$B55) -> 5 | S55: =COUNTIF(Spells!R7:R241,$B55) -> 4 | T55: =COUNTIF(Spells!S7:S241,$B55) -> 3 | U55: =COUNTIF(Spells!T7:T241,$B55) -> 5 | V55: =COUNTIF(Spells!U7:U241,$B55) -> 4 | W55: =COUNTIF(Spells!V7:V241,$B55) -> 0
A56: 11 | B56: 7 | C56: =COUNTIF(Spells!B8:B242,$B56) -> 3 | D56: =COUNTIF(Spells!C8:C242,$B56) -> 1 | E56: =COUNTIF(Spells!D8:D242,$B56) -> 0 | F56: =COUNTIF(Spells!E8:E242,$B56) -> 1 | G56: =COUNTIF(Spells!F8:F242,$B56) -> 6 | H56: =COUNTIF(Spells!G8:G242,$B56) -> 0 | I56: =COUNTIF(Spells!H8:H242,$B56) -> 0 | J56: =COUNTIF(Spells!I8:I242,$B56) -> 12 | K56: =COUNTIF(Spells!J8:J242,$B56) -> 1 | L56: =COUNTIF(Spells!K8:K242,$B56) -> 1 | M56: =COUNTIF(Spells!L8:L242,$B56) -> 2 | N56: =COUNTIF(Spells!M8:M242,$B56) -> 2 | O56: =COUNTIF(Spells!N8:N242,$B56) -> 2 | P56: =COUNTIF(Spells!O8:O242,$B56) -> 1 | Q56: =COUNTIF(Spells!P8:P242,$B56) -> 2 | R56: =COUNTIF(Spells!Q8:Q242,$B56) -> 1 | S56: =COUNTIF(Spells!R8:R242,$B56) -> 2 | T56: =COUNTIF(Spells!S8:S242,$B56) -> 2 | U56: =COUNTIF(Spells!T8:T242,$B56) -> 2 | V56: =COUNTIF(Spells!U8:U242,$B56) -> 1 | W56: =COUNTIF(Spells!V8:V242,$B56) -> 0
B57: 8 | C57: =COUNTIF(Spells!B9:B243,$B57) -> 1 | D57: =COUNTIF(Spells!C9:C243,$B57) -> 0 | E57: =COUNTIF(Spells!D9:D243,$B57) -> 0 | F57: =COUNTIF(Spells!E9:E243,$B57) -> 0 | G57: =COUNTIF(Spells!F9:F243,$B57) -> 2 | H57: =COUNTIF(Spells!G9:G243,$B57) -> 0 | I57: =COUNTIF(Spells!H9:H243,$B57) -> 0 | J57: =COUNTIF(Spells!I9:I243,$B57) -> 3 | K57: =COUNTIF(Spells!J9:J243,$B57) -> 0 | L57: =COUNTIF(Spells!K9:K243,$B57) -> 0 | M57: =COUNTIF(Spells!L9:L243,$B57) -> 0 | N57: =COUNTIF(Spells!M9:M243,$B57) -> 0 | O57: =COUNTIF(Spells!N9:N243,$B57) -> 0 | P57: =COUNTIF(Spells!O9:O243,$B57) -> 0 | Q57: =COUNTIF(Spells!P9:P243,$B57) -> 0 | R57: =COUNTIF(Spells!Q9:Q243,$B57) -> 0 | S57: =COUNTIF(Spells!R9:R243,$B57) -> 0 | T57: =COUNTIF(Spells!S9:S243,$B57) -> 0 | U57: =COUNTIF(Spells!T9:T243,$B57) -> 0 | V57: =COUNTIF(Spells!U9:U243,$B57) -> 0 | W57: =COUNTIF(Spells!V9:V243,$B57) -> 0
B58: 9 | C58: =COUNTIF(Spells!B10:B244,$B58) -> 2 | D58: =COUNTIF(Spells!C10:C244,$B58) -> 0 | E58: =COUNTIF(Spells!D10:D244,$B58) -> 0 | F58: =COUNTIF(Spells!E10:E244,$B58) -> 0 | G58: =COUNTIF(Spells!F10:F244,$B58) -> 0 | H58: =COUNTIF(Spells!G10:G244,$B58) -> 0 | I58: =COUNTIF(Spells!H10:H244,$B58) -> 0 | J58: =COUNTIF(Spells!I10:I244,$B58) -> 2 | K58: =COUNTIF(Spells!J10:J244,$B58) -> 0 | L58: =COUNTIF(Spells!K10:K244,$B58) -> 0 | M58: =COUNTIF(Spells!L10:L244,$B58) -> 0 | N58: =COUNTIF(Spells!M10:M244,$B58) -> 0 | O58: =COUNTIF(Spells!N10:N244,$B58) -> 0 | P58: =COUNTIF(Spells!O10:O244,$B58) -> 0 | Q58: =COUNTIF(Spells!P10:P244,$B58) -> 0 | R58: =COUNTIF(Spells!Q10:Q244,$B58) -> 0 | S58: =COUNTIF(Spells!R10:R244,$B58) -> 0 | T58: =COUNTIF(Spells!S10:S244,$B58) -> 0 | U58: =COUNTIF(Spells!T10:T244,$B58) -> 0 | V58: =COUNTIF(Spells!U10:U244,$B58) -> 0 | W58: =COUNTIF(Spells!V10:V244,$B58) -> 0
